{"text_format":"1","workbook":"xlsx","n_sheets":2,"sheets":["NOT ALLOWED TO GRADUATE","ALLOWED TO GRADUATE"],"not_rendered":{"charts":0,"images":1,"macros":0,"external_links":1,"defined_names":2,"comments":0,"pivot_tables":0},"unopened":[],"bounds":{"document_bytes":16777216,"sheet_cells":100000,"rows_first":2000,"rows_last":500,"rows_between":2000,"halvings":0,"cell_chars":16384,"cell_head_chars":4096},"cells_cut":0,"cells_raw":0,"read":"whole","date_system":"1900"}

{"sheet":"NOT ALLOWED TO GRADUATE","index":0,"n_rows":71,"n_cols":9,"rows_kept":71,"cut":false,"hidden":false,"merged":[[10,0,10,14],[11,0,11,14]]}
[]
[null,null,null,null,"COLLEGE OF AGRICULTURE, ANIMAL SCIENCES AND VETERINARY MEDICINE"]
[]
[]
[]
[]
[]
[]
[]
[]
["Provisional Graduation List (Not Allowed to Graduate)"]
["Academic Year : 2018-2019"]
[]
[]
[null,"LIST OF CAVM STUDENTS WHO ARE NOT CLEARED FOR GRADUATION  DUE TO THE FINANCIAL DEBT NOT YET PAID"]
[]
["S/N","Reg No","Student's family Name","Student's First Name","PROGRAM","Year of study","sponsor","DEBTS NOT YET PAID ","COMMENTS "]
[1,215026883,"UMUHUZA","JEAN DE DIEU","BSC AGR WITH HONS IN CROP PRODUCTION","4","FARG",130000,"Did not pay special retake fees for 18-19"]
[2,215001723,"NSENGIYUMVA","INNOCENT","BSC AGR WITH HONS IN AGRIBUSINESS","4","REB",130000,"Did not pay special retake fees for 18-19"]
[3,216255368,"MANISHIMWE","BEATRICE","BSC AGR WITH HONS IN CROP PRODUCTION","4","REB",32500,"Did not pay hostel fees at Huye 15/16"]
[4,216245486,"MUGENZI","GERARD","BSC AGR WITH HONS IN CROP PRODUCTION","4","REB",130000,"Did not pay special retake fees for 18-19"]
[5,216085004,"HASHAKINEZA","ANATHOLE","BSC IN AGR WITH HON IN ANIMAL PRODUCTION","4","REB",50000,"Did not pay balance of retake fees 17/18"]
[6,215018523,"TUYISENGE","PHENIAS","BACHELOR OF  VETERINARY MEDICINE","5","REB",37500,"Did not pay balance of retake fees 17/18"]
[7,216155568,"UZAMUKUNDA","EDISSA","BSC  WITH HONOURS IN FORESTRY","4","REB",5500,"Did not pay hostel fees at Huye 15/16"]
[8,216178517,"UWIZEYE","GISELE","BSC  WITH HONOURS IN FORESTRY","4","REB",20000,"Did not pay hostel fees at Huye 15/16"]
[9,215043174,"MUGIRANEZA","BIENVENU","BSC AGR WITH HONS IN HORTICULTURE","4","REB",20000,"Did not pay hostel fees at Busogo  18/19"]
[10,216245478,"MUHIRE","FRED","BSC WITH HONS IN AGROFORESTRY","4","REB",20000,"Did not pay hostel fees at Huye 15/16"]
[11,216261643,"NDATIMANA","MARCEL","BSC AGR WITH HONS IN CROP PRODUCTION","4","REB",{"$f":"27500+97500","v":125000},"Did not pay special retake fees for 18-19 and the balance of normanl retake 18/19"]
[12,215043405,"MUTABAZI","JANVIER","BSC WITH HONS IN AGROFORESTRY","4","REB",45000,"Did not pay special registration & hostel  fees for 18-19"]
[13,216204631,"MUKIZA","ANGE BLANDINE","BSC AGR WITH HONS IN HORTICULTURE","4","REB",20500,"Did not pay hostel fees at Busogo  17/18"]
[14,216199069,"GASHIRABAKE","JACKSON","BSC IN AGR ENG (HON) AGRIC-MECHANIZATION","4","REB",62500,"Did not pay balance of retake fees 17/18"]
[15,215005141,"UWIHIRWE","SOSTHENE","BSC IN AGR ENG (HON)IN IRRIGATION &DRAIN","4","REB",62500,"Did not pay remedial  fees 17/18"]
[16,216123240,"ISHIMWE","ALICE","BSC IN AGR ENG (HON)IN IRRIGATION &DRAIN","4","REB",62500,"Did not pay remedial  fees 17/18"]
[17,216128536,"NSHIMYUMUKIZA","ZACHÉE","BSC IN AGR ENG (HON)IN IRRIGATION &DRAIN","4","REB",62500,"Did not pay remedial  fees 17/18"]
[18,216245125,"SANKARA","PAULIN","BSC IN AGR ENG (HON)IN IRRIGATION &DRAIN","4","REB",93750,"Did not pay remedial  fees 17/18"]
[19,216205794,"IRANKUNDA","JEAN PIERRE","BSC AGR WITH HONS IN SOIL SCIENCES","4","REB",65000,"Did not pay normal retake fees 18/19"]
[20,216181445,"UWUMUREMYI","JONAS","BSC WITH HONS IN RURAL DEVELOPMENT","4","REB",77500,"Did not pay normal retake fees 18/19"]
[21,215003674,"NDUNGUTSE","SAMUEL","BSC AGR WITH HONS IN AGRIBUSINESS","4","REB",85000,"Did not pay balance of retake fees 17/18"]
[22,216155460,"KAYIHURA","ERIC","BSC AGR WITH HONS IN AGRIBUSINESS","4","REB",100000,"Did not pay balance of retake fees 17/18"]
[23,215003970,"SIBORUREMA","APHRODIS","BSC AGR WITH HONS IN AGRIBUSINESS","4","REB",110000,"Did not pay balance of retake fees 17/18&18/19"]
[24,216213304,"CYIZA","AUGUSTIN","BSC (HON) IN FOOD SCIENCE AND TECHNOLOGY","4","REB",134000,"Did not pay balance of retake fees 17/18;18/19 & hostel feee 15/16 huye"]
[25,215010688,"MANIRIHO","JEAN CLAUDE","BSC WITH HONS IN RURAL DEVELOPMENT",4,"REB",135000,"Did not pay balance of retake fees 17/18 and registration fees 18/19"]
[26,215030033,"NIYIZURUGERO MANZI","SAUVE","BSC AGR WITH HONS IN HORTICULTURE","4","REPEATER",97500,"Did not pay normal retake fees 18/19"]
[27,219015871,"DUSHIMIMANA","JEAN PIERRE","BSC WITH HONS IN RURAL DEVELOPMENT","4","SELF",450000,"Did not pay  retake fees 18/19 and registration fees 18/19"]
[28,216357667,"GIRITEKA","DON ADOR","BSC WITH HONS IN AGRICULTURAL ECONOMICS","4","SELF",820000,"Did not pay tuition & hostel fees 18/19"]
[29,215005471,"TUYISENGE","EMMANUEL","BSC AGR WITH HONS IN CROP PRODUCTION","4","SELF",1730000,"Did not pay tuition & retake  fees 18/19"]
[null,null,"SUB TOTAL 1",null,null,null,null,{"$f":"SUM(H18:H46)","v":4913750}]
[]
[null,"LIST OF CAVM STUDENTS WHO ARE NOT CLEARED FOR GRADUATION  DUE TO THE LACK OF ACADEMIC INFORMATIONS ON THE SPECIAL RETAKE 18/19 TO BE DONE "]
[]
[1,215020721,"HAFASHIMANA","INNOCENT","BSC (HON) IN FOOD SCIENCE AND TECHNOLOGY","4","REB",null,"NO CLARIFICATION ON INDUSTRIAL ATTACHMENT"]
[2,216074983,"NDAGIJIMANA","BENJAMIN","BSC (HON) IN FOOD SCIENCE AND TECHNOLOGY","4","REB",null,"NO CLARIFICATION ON RESEARCH PROJECT, EXTENSION AND COMMUNICATION"]
[3,216152283,"TUYISHIMIRE","MARC","BSC (HON) IN FOOD SCIENCE AND TECHNOLOGY","4","REB",null,"NO CLARIFICATION ON INDUSTRIAL ATTACHMENT, RESEARCH PROJECT"]
[4,216189934,"MUGANAMFURA","AIMABLE","BSC (HON) IN FOOD SCIENCE AND TECHNOLOGY","4","REB",null,"NO CLARIFICATION ON  RESEARCH PROJECT"]
[5,216187893,"NIYONSENGA","LEA","BSC (HON) IN FOOD SCIENCE AND TECHNOLOGY","4","REB",null,"NO CLARIFICATION ON EXTENSION AND COMMUNICATION"]
[6,216216699,"NIZEYIMANA","ALPHONSE","BSC (HON) IN FOOD SCIENCE AND TECHNOLOGY","4","REB",null,"NO CLARIFICATION ON RESEARCH PROJECT"]
[7,216232260,"KARANGWA","FELICE","BSC (HON) IN FOOD SCIENCE AND TECHNOLOGY","4","REB",null,"NO CLARIFICATION ON INDUSTRIAL ATTACHMENT"]
[8,216248310,"KAYUMBA","CHRISTIAN","BSC (HON) IN FOOD SCIENCE AND TECHNOLOGY","4","REB",null,"NO CLARIFICATION ON INDUSTRIAL ATTACHMENT"]
[9,216316707,"MUHIRE","INNOCENT","BSC (HON) IN FOOD SCIENCE AND TECHNOLOGY","4","REB",null,"NO CLARIFICATION ON INDUSTRIAL ATTACHMENT"]
[10,215029171,"NGIRINSHUTI","VIATEUR","BSC (HON) IN FOOD SCIENCE AND TECHNOLOGY","4","REB",null,"NO CLARIFICATION  EXTENSION AND COMMUNICATION, INDUSTRIAL ATTACHMENT, RESEARCH PROJECT"]
[11,216173108,"ITURINDE","JACKSON","BSC (HON) IN FOOD SCIENCE AND TECHNOLOGY","4","REB",null,"NO CLARIFICATION ON INDUSTRIAL ATTACHMENT, RESEARCH PROJECT"]
[12,216123720,"KAYITARE","VINCENT","BSC (HON) IN FOOD SCIENCE AND TECHNOLOGY","4","REB",null,"NO CLARIFICATION ON INDUSTRIAL ATTACHMENT, RESEARCH PROJECT"]
[13,216174201,"MUGISHA","LEON CHARLES","BSC (HON) IN FOOD SCIENCE AND TECHNOLOGY","4","REB",null,"NO CLARIFICATION ON INDUSTRIAL ATTACHMENT &  Biostatistics and Research Methodology"]
[14,216213304,"CYIZA","AUGUSTIN","BSC (HON) IN FOOD SCIENCE AND TECHNOLOGY","4","REB",null,"NO CLARIFICATION ON FOOD MICROBIOLOGY"]
[15,215002837,"UMUBYEYI","DIANE","BSC AGR WITH HONS IN AGRIBUSINESS","4","REB",null,"No clarification on APPLIED ECONOMETRICS IN AGRICULTURE"]
[16,216089239,"NZABATIZUWERA","JEAN GRATIEN","BSC AGR WITH HONS IN AGRIBUSINESS","4","REB",null,"No clarification on APPLIED ECONOMETRICS IN AGRICULTURE"]
[17,216143535,"IRAGUHA","JEAN BAPTISTE","BSC AGR WITH HONS IN AGRIBUSINESS","4","REB",null,"No clarification on APPLIED ECONOMETRICS IN AGRICULTURE"]
[18,216282624,"NTAWUKURIRYAYO","JOSEPH","BSC AGR WITH HONS IN AGRIBUSINESS","4","REB",null,"No clarification on APPLIED ECONOMETRICS IN AGRICULTURE"]
[19,215005393,"UWANYIRIGIRA","JEAN RENE","BSC AGR WITH HONS IN AGRIBUSINESS","4","REB",null,"No clarification on APPLIED ECONOMETRICS IN AGRICULTURE"]
[20,215003970,"SIBORUREMA","APHRODIS","BSC AGR WITH HONS IN AGRIBUSINESS","4","REB",null,"No clarification on APPLIED ECONOMETRICS IN AGRICULTURE"]
[21,215005471,"TUYISENGE","EMMANUEL","BSC AGR WITH HONS IN CROP PRODUCTION","4","SELF",null,"NO CLARIFICATION ON AGRICULTURE -EXTENTION & POLICIES, RESEACH PROJECT II"]

{"sheet":"ALLOWED TO GRADUATE","index":1,"n_rows":848,"n_cols":11,"rows_kept":848,"cut":false,"hidden":false,"merged":[[11,0,11,14],[12,0,12,14]]}
[]
[]
[null,null,null,null,"COLLEGE OF AGRICULTURE, ANIMAL SCIENCES AND VETERINARY MEDICINE"]
[]
[]
[]
[]
[]
[]
[]
[]
["Provisional Graduation List"]
["Academic Year : 2018-2019"]
[1,215014512,"BAZIKI","THEONESTE","M",0.67922253637566132,"NA","(BACHELOR OF VETERINARY MEDICINE)","VETERINARY MEDICINE","VETERINARY MEDICINE","COLLEGE OF AGRICULTURE, ANIMAL SCIENCES AND VETERINARY MEDICINE"]
[2,215005873,"DUSABE","JEAN BOSCO","M",0.6801762749453647,"NA","(BACHELOR OF VETERINARY MEDICINE)","VETERINARY MEDICINE","VETERINARY MEDICINE","COLLEGE OF AGRICULTURE, ANIMAL SCIENCES AND VETERINARY MEDICINE"]
[3,215002488,"GASAGURE","AIMED'ERIC","M",0.66403979216988729,"NA","(BACHELOR OF VETERINARY MEDICINE)","VETERINARY MEDICINE","VETERINARY MEDICINE","COLLEGE OF AGRICULTURE, ANIMAL SCIENCES AND VETERINARY MEDICINE"]
[4,215003444,"GIRUMUGISHA NATACHA","LAURAINE","F",0.69171904869737744,"NA","(BACHELOR OF VETERINARY MEDICINE)","VETERINARY MEDICINE","VETERINARY MEDICINE","COLLEGE OF AGRICULTURE, ANIMAL SCIENCES AND VETERINARY MEDICINE"]
[5,215014411,"HABIMANA","ALEXIS","M",0.69841519762192317,"NA","(BACHELOR OF VETERINARY MEDICINE)","VETERINARY MEDICINE","VETERINARY MEDICINE","COLLEGE OF AGRICULTURE, ANIMAL SCIENCES AND VETERINARY MEDICINE"]
[6,215015969,"HABINEZA","FRODOUARD","M",0.67660369687428112,"NA","(BACHELOR OF VETERINARY MEDICINE)","VETERINARY MEDICINE","VETERINARY MEDICINE","COLLEGE OF AGRICULTURE, ANIMAL SCIENCES AND VETERINARY MEDICINE"]
[7,215003875,"HAGENIMANA","EPHREM","M",0.69032630621693114,"NA","(BACHELOR OF VETERINARY MEDICINE)","VETERINARY MEDICINE","VETERINARY MEDICINE","COLLEGE OF AGRICULTURE, ANIMAL SCIENCES AND VETERINARY MEDICINE"]
[8,215036864,"HAKIZIMANA","ALPHONSE","M",0.66887916127501723,"NA","(BACHELOR OF VETERINARY MEDICINE)","VETERINARY MEDICINE","VETERINARY MEDICINE","COLLEGE OF AGRICULTURE, ANIMAL SCIENCES AND VETERINARY MEDICINE"]
[9,215007339,"HISHAMUNDA","PASCAL","M",0.7657504403180353,"NA","(BACHELOR OF VETERINARY MEDICINE)","VETERINARY MEDICINE","VETERINARY MEDICINE","COLLEGE OF AGRICULTURE, ANIMAL SCIENCES AND VETERINARY MEDICINE"]
[10,215008101,"IRADUKUNDA","DESIRE CRISPIN","M",0.76809519657953762,"NA","(BACHELOR OF VETERINARY MEDICINE)","VETERINARY MEDICINE","VETERINARY MEDICINE","COLLEGE OF AGRICULTURE, ANIMAL SCIENCES AND VETERINARY MEDICINE"]
[11,215004393,"ISHIMWE","PROVIDENCE","M",0.64994830414653793,"NA","(BACHELOR OF VETERINARY MEDICINE)","VETERINARY MEDICINE","VETERINARY MEDICINE","COLLEGE OF AGRICULTURE, ANIMAL SCIENCES AND VETERINARY MEDICINE"]
[12,215013464,"KAMUGUNGA","LAMBERT","M",0.68824305016390608,"NA","(BACHELOR OF VETERINARY MEDICINE)","VETERINARY MEDICINE","VETERINARY MEDICINE","COLLEGE OF AGRICULTURE, ANIMAL SCIENCES AND VETERINARY MEDICINE"]
[13,215011943,"MANIRAGABA","WELLARS","M",0.69931008238440295,"NA","(BACHELOR OF VETERINARY MEDICINE)","VETERINARY MEDICINE","VETERINARY MEDICINE","COLLEGE OF AGRICULTURE, ANIMAL SCIENCES AND VETERINARY MEDICINE"]
[14,215012646,"MUHIRE","SAMUEL","M",0.71621013953588686,"NA","(BACHELOR OF VETERINARY MEDICINE)","VETERINARY MEDICINE","VETERINARY MEDICINE","COLLEGE OF AGRICULTURE, ANIMAL SCIENCES AND VETERINARY MEDICINE"]
[15,215008603,"MUKESHIMANA","FELIX","M",0.70306690821256046,"NA","(BACHELOR OF VETERINARY MEDICINE)","VETERINARY MEDICINE","VETERINARY MEDICINE","COLLEGE OF AGRICULTURE, ANIMAL SCIENCES AND VETERINARY MEDICINE"]
[16,215015379,"MUNYANEZA","WELLARS","M",0.68243420031055901,"NA","(BACHELOR OF VETERINARY MEDICINE)","VETERINARY MEDICINE","VETERINARY MEDICINE","COLLEGE OF AGRICULTURE, ANIMAL SCIENCES AND VETERINARY MEDICINE"]
[17,215012715,"MURWANASHYAKA","JEAN CLAUDE","M",0.70308784865999541,"NA","(BACHELOR OF VETERINARY MEDICINE)","VETERINARY MEDICINE","VETERINARY MEDICINE","COLLEGE OF AGRICULTURE, ANIMAL SCIENCES AND VETERINARY MEDICINE"]
[18,215009247,"NAGAHWEJE","EMELIENNE","F",0.71176092168449501,"NA","(BACHELOR OF VETERINARY MEDICINE)","VETERINARY MEDICINE","VETERINARY MEDICINE","COLLEGE OF AGRICULTURE, ANIMAL SCIENCES AND VETERINARY MEDICINE"]
[19,215011932,"NAKURE","JEANNETTE","F",0.70885445889406495,"NA","(BACHELOR OF VETERINARY MEDICINE)","VETERINARY MEDICINE","VETERINARY MEDICINE","COLLEGE OF AGRICULTURE, ANIMAL SCIENCES AND VETERINARY MEDICINE"]
[20,215013043,"NIWEMUGENI","JEANNE  MARIE ASSOUMPTA","F",0.74286261070853454,"NA","(BACHELOR OF VETERINARY MEDICINE)","VETERINARY MEDICINE","VETERINARY MEDICINE","COLLEGE OF AGRICULTURE, ANIMAL SCIENCES AND VETERINARY MEDICINE"]
[21,215003391,"NKURIKIYUMUKIZA","MOISE","M",0.67448833822176213,"NA","(BACHELOR OF VETERINARY MEDICINE)","VETERINARY MEDICINE","VETERINARY MEDICINE","COLLEGE OF AGRICULTURE, ANIMAL SCIENCES AND VETERINARY MEDICINE"]
[22,216357438,"NKURUNZIZA","VINCENT","M",0.73043802155221982,"NA","(BACHELOR OF VETERINARY MEDICINE)","VETERINARY MEDICINE","VETERINARY MEDICINE","COLLEGE OF AGRICULTURE, ANIMAL SCIENCES AND VETERINARY MEDICINE"]
[23,215013688,"NSABIMANA","EMMANUEL","M",0.6982089727829538,"NA","(BACHELOR OF VETERINARY MEDICINE)","VETERINARY MEDICINE","VETERINARY MEDICINE","COLLEGE OF AGRICULTURE, ANIMAL SCIENCES AND VETERINARY MEDICINE"]
[24,215011332,"NSANZUMWAMI","ESDRAS","M",0.6588900958994709,"NA","(BACHELOR OF VETERINARY MEDICINE)","VETERINARY MEDICINE","VETERINARY MEDICINE","COLLEGE OF AGRICULTURE, ANIMAL SCIENCES AND VETERINARY MEDICINE"]
[25,215001049,"NZAYISENGA","CAMILLE","M",0.69472544822578797,"NA","(BACHELOR OF VETERINARY MEDICINE)","VETERINARY MEDICINE","VETERINARY MEDICINE","COLLEGE OF AGRICULTURE, ANIMAL SCIENCES AND VETERINARY MEDICINE"]
[26,215011730,"SIMBI","JOYEUSE","F",0.72409275146652874,"NA","(BACHELOR OF VETERINARY MEDICINE)","VETERINARY MEDICINE","VETERINARY MEDICINE","COLLEGE OF AGRICULTURE, ANIMAL SCIENCES AND VETERINARY MEDICINE"]
[27,215020497,"SINDIKUBWABO","THEOGENE","M",0.7176363616430872,"NA","(BACHELOR OF VETERINARY MEDICINE)","VETERINARY MEDICINE","VETERINARY MEDICINE","COLLEGE OF AGRICULTURE, ANIMAL SCIENCES AND VETERINARY MEDICINE"]
[28,215010904,"TWAGIRUMUKIZA","SCHOLASTIQUE","F",0.6960339037698412,"NA","(BACHELOR OF VETERINARY MEDICINE)","VETERINARY MEDICINE","VETERINARY MEDICINE","COLLEGE OF AGRICULTURE, ANIMAL SCIENCES AND VETERINARY MEDICINE"]
[29,215006597,"UWAYEZU","GERMAINE","F",0.70092892871520585,"NA","(BACHELOR OF VETERINARY MEDICINE)","VETERINARY MEDICINE","VETERINARY MEDICINE","COLLEGE OF AGRICULTURE, ANIMAL SCIENCES AND VETERINARY MEDICINE"]
[30,215009324,"UWIMANA","JULIENNE","F",0.67495166170634913,"NA","(BACHELOR OF VETERINARY MEDICINE)","VETERINARY MEDICINE","VETERINARY MEDICINE","COLLEGE OF AGRICULTURE, ANIMAL SCIENCES AND VETERINARY MEDICINE"]
[31,215001402,"UWIZEYIMANA","GISELE","F",0.68261827122153207,"NA","(BACHELOR OF VETERINARY MEDICINE)","VETERINARY MEDICINE","VETERINARY MEDICINE","COLLEGE OF AGRICULTURE, ANIMAL SCIENCES AND VETERINARY MEDICINE"]
[32,215046714,"BIZIMANA","THEOPHILE","M",67.268921015774737,"SECOND CLASS HONOURS, LOWER DIVISION","(BSC  WITH HONS IN ANIMAL PRODUCTION)"," ANIMAL PRODUCTION","VETERINARY MEDICINE","COLLEGE OF AGRICULTURE, ANIMAL SCIENCES AND VETERINARY MEDICINE"]
[33,215044398,"DUSABANE","DOMINA","F",69.703168767506995,"SECOND CLASS HONOURS, LOWER DIVISION","(BSC  WITH HONS IN ANIMAL PRODUCTION)"," ANIMAL PRODUCTION","VETERINARY MEDICINE","COLLEGE OF AGRICULTURE, ANIMAL SCIENCES AND VETERINARY MEDICINE"]
[34,216102464,"DUTEGEREZE","LOUISE","F",74.099611160253559,"SECOND CLASS HONOURS, LOWER DIVISION","(BSC  WITH HONS IN ANIMAL PRODUCTION)"," ANIMAL PRODUCTION","VETERINARY MEDICINE","COLLEGE OF AGRICULTURE, ANIMAL SCIENCES AND VETERINARY MEDICINE"]
[35,216188563,"HABIMANA ","ELYSE","M",64.966111049683036,"SECOND CLASS HONOURS, LOWER DIVISION","(BSC  WITH HONS IN ANIMAL PRODUCTION)"," ANIMAL PRODUCTION","VETERINARY MEDICINE","COLLEGE OF AGRICULTURE, ANIMAL SCIENCES AND VETERINARY MEDICINE"]
[36,216143101,"HABINEZA ","HODAL","M",74.704651334217886,"SECOND CLASS HONOURS, LOWER DIVISION","(BSC  WITH HONS IN ANIMAL PRODUCTION)"," ANIMAL PRODUCTION","VETERINARY MEDICINE","COLLEGE OF AGRICULTURE, ANIMAL SCIENCES AND VETERINARY MEDICINE"]
[37,216123666,"HATEGEKIMANA ","INNOCENT","M",73.275456103494022,"SECOND CLASS HONOURS, LOWER DIVISION","(BSC  WITH HONS IN ANIMAL PRODUCTION)"," ANIMAL PRODUCTION","VETERINARY MEDICINE","COLLEGE OF AGRICULTURE, ANIMAL SCIENCES AND VETERINARY MEDICINE"]
[38,216111749,"HIRWA ","FABRICE","M",76.422677097154647,"SECOND CLASS HONOURS, UPPER DIVISION","(BSC  WITH HONS IN ANIMAL PRODUCTION)"," ANIMAL PRODUCTION","VETERINARY MEDICINE","COLLEGE OF AGRICULTURE, ANIMAL SCIENCES AND VETERINARY MEDICINE"]
[39,216141923,"IKWAKIRE MUKUNDWA","DIOGENE","M",64.160304437564506,"SECOND CLASS HONOURS, LOWER DIVISION","(BSC  WITH HONS IN ANIMAL PRODUCTION)"," ANIMAL PRODUCTION","VETERINARY MEDICINE","COLLEGE OF AGRICULTURE, ANIMAL SCIENCES AND VETERINARY MEDICINE"]
[40,216115698,"INGABIRE ","JEANNE","F",73.86261536193426,"SECOND CLASS HONOURS, LOWER DIVISION","(BSC  WITH HONS IN ANIMAL PRODUCTION)"," ANIMAL PRODUCTION","VETERINARY MEDICINE","COLLEGE OF AGRICULTURE, ANIMAL SCIENCES AND VETERINARY MEDICINE"]
[41,216103479,"INGABIRE ","MARIE ROSINE","F",68.070479876161002,"SECOND CLASS HONOURS, LOWER DIVISION","(BSC  WITH HONS IN ANIMAL PRODUCTION)"," ANIMAL PRODUCTION","VETERINARY MEDICINE","COLLEGE OF AGRICULTURE, ANIMAL SCIENCES AND VETERINARY MEDICINE"]
[42,215043400,"IRADUKUNDA ","MARIE ASSUMPTA","F",73.030915892672866,"SECOND CLASS HONOURS, LOWER DIVISION","(BSC  WITH HONS IN ANIMAL PRODUCTION)"," ANIMAL PRODUCTION","VETERINARY MEDICINE","COLLEGE OF AGRICULTURE, ANIMAL SCIENCES AND VETERINARY MEDICINE"]
[43,216150582,"IZERIYAWE MUTIMANAMA","CHARLES","M",70.081937380215237,"SECOND CLASS HONOURS, LOWER DIVISION","(BSC  WITH HONS IN ANIMAL PRODUCTION)"," ANIMAL PRODUCTION","VETERINARY MEDICINE","COLLEGE OF AGRICULTURE, ANIMAL SCIENCES AND VETERINARY MEDICINE"]
[44,216100925,"KABASINGIZA ","NADINE","F",65.945017875571281,"SECOND CLASS HONOURS, LOWER DIVISION","(BSC  WITH HONS IN ANIMAL PRODUCTION)"," ANIMAL PRODUCTION","VETERINARY MEDICINE","COLLEGE OF AGRICULTURE, ANIMAL SCIENCES AND VETERINARY MEDICINE"]
[45,215003968,"KARANGWA","JEAN BAPTISTE","M",68.444615214506854,"SECOND CLASS HONOURS, LOWER DIVISION","(BSC  WITH HONS IN ANIMAL PRODUCTION)"," ANIMAL PRODUCTION","VETERINARY MEDICINE","COLLEGE OF AGRICULTURE, ANIMAL SCIENCES AND VETERINARY MEDICINE"]
[46,216105382,"MAHORO","EGIDIA","F",75.380101909184731,"SECOND CLASS HONOURS, UPPER DIVISION","(BSC  WITH HONS IN ANIMAL PRODUCTION)"," ANIMAL PRODUCTION","VETERINARY MEDICINE","COLLEGE OF AGRICULTURE, ANIMAL SCIENCES AND VETERINARY MEDICINE"]
[47,216115027,"MANIRAGUHA ","VENUSTE","M",81.446669062361778,"FIRST CLASS HONOURS","(BSC  WITH HONS IN ANIMAL PRODUCTION)"," ANIMAL PRODUCTION","VETERINARY MEDICINE","COLLEGE OF AGRICULTURE, ANIMAL SCIENCES AND VETERINARY MEDICINE"]
[48,216174074,"MUGENIWAYESU","CHARLINE","F",70.123303110717984,"SECOND CLASS HONOURS, LOWER DIVISION","(BSC  WITH HONS IN ANIMAL PRODUCTION)"," ANIMAL PRODUCTION","VETERINARY MEDICINE","COLLEGE OF AGRICULTURE, ANIMAL SCIENCES AND VETERINARY MEDICINE"]
[49,216098041,"MUNEZERO","OLIVIER","M",81.333681630546963,"SECOND CLASS HONOURS, UPPER DIVISION","(BSC  WITH HONS IN ANIMAL PRODUCTION)"," ANIMAL PRODUCTION","VETERINARY MEDICINE","COLLEGE OF AGRICULTURE, ANIMAL SCIENCES AND VETERINARY MEDICINE"]
[50,216077990,"MUTUYIMANA ","ANNUALITA","F ",62.643045112781962,"SECOND CLASS HONOURS, LOWER DIVISION","(BSC  WITH HONS IN ANIMAL PRODUCTION)"," ANIMAL PRODUCTION","VETERINARY MEDICINE","COLLEGE OF AGRICULTURE, ANIMAL SCIENCES AND VETERINARY MEDICINE"]
[51,216085284,"NAHIMANA ","JEAN DE DIEU","M",68.271388950316975,"SECOND CLASS HONOURS, LOWER DIVISION","(BSC  WITH HONS IN ANIMAL PRODUCTION)"," ANIMAL PRODUCTION","VETERINARY MEDICINE","COLLEGE OF AGRICULTURE, ANIMAL SCIENCES AND VETERINARY MEDICINE"]
[52,215046277,"NASHIMWE ","OLIVIER","M",72.551151039363106,"SECOND CLASS HONOURS, LOWER DIVISION","(BSC  WITH HONS IN ANIMAL PRODUCTION)"," ANIMAL PRODUCTION","VETERINARY MEDICINE","COLLEGE OF AGRICULTURE, ANIMAL SCIENCES AND VETERINARY MEDICINE"]
[53,216144833,"NDUHUKIYEHE ","SYLVERE","M",74.190990343505831,"SECOND CLASS HONOURS, LOWER DIVISION","(BSC  WITH HONS IN ANIMAL PRODUCTION)"," ANIMAL PRODUCTION","VETERINARY MEDICINE","COLLEGE OF AGRICULTURE, ANIMAL SCIENCES AND VETERINARY MEDICINE"]
[54,216333695,"NDUWAMUNGU","JEAN BAPTISTE","M",63.476574524546649,"SECOND CLASS HONOURS, LOWER DIVISION","(BSC  WITH HONS IN ANIMAL PRODUCTION)"," ANIMAL PRODUCTION","VETERINARY MEDICINE","COLLEGE OF AGRICULTURE, ANIMAL SCIENCES AND VETERINARY MEDICINE"]
[55,216128854,"NIYIGENA","JEAN PIERRE","M",67.351593137254909,"SECOND CLASS HONOURS, LOWER DIVISION","(BSC  WITH HONS IN ANIMAL PRODUCTION)"," ANIMAL PRODUCTION","VETERINARY MEDICINE","COLLEGE OF AGRICULTURE, ANIMAL SCIENCES AND VETERINARY MEDICINE"]
[56,215042898,"NIYITEGEKA ","ROSINE","F",72.677157047029326,"SECOND CLASS HONOURS, LOWER DIVISION","(BSC  WITH HONS IN ANIMAL PRODUCTION)"," ANIMAL PRODUCTION","VETERINARY MEDICINE","COLLEGE OF AGRICULTURE, ANIMAL SCIENCES AND VETERINARY MEDICINE"]
[57,215009201,"NIYOMUKIZA","VENUSTE","M",63.929965538847121,"SECOND CLASS HONOURS, LOWER DIVISION","(BSC  WITH HONS IN ANIMAL PRODUCTION)"," ANIMAL PRODUCTION","VETERINARY MEDICINE","COLLEGE OF AGRICULTURE, ANIMAL SCIENCES AND VETERINARY MEDICINE"]
[58,216096758,"NIYONSABA ","AARON","M",78.101184947663285,"SECOND CLASS HONOURS, UPPER DIVISION","(BSC  WITH HONS IN ANIMAL PRODUCTION)"," ANIMAL PRODUCTION","VETERINARY MEDICINE","COLLEGE OF AGRICULTURE, ANIMAL SCIENCES AND VETERINARY MEDICINE"]
[59,216165245,"NIYOREMBO ","VALENTINE","F",68.334273182957389,"SECOND CLASS HONOURS, LOWER DIVISION","(BSC  WITH HONS IN ANIMAL PRODUCTION)"," ANIMAL PRODUCTION","VETERINARY MEDICINE","COLLEGE OF AGRICULTURE, ANIMAL SCIENCES AND VETERINARY MEDICINE"]
[60,216107407,"NIZEYIMANA","THEOGENE","M",77.000720735662696,"SECOND CLASS HONOURS, UPPER DIVISION","(BSC  WITH HONS IN ANIMAL PRODUCTION)"," ANIMAL PRODUCTION","VETERINARY MEDICINE","COLLEGE OF AGRICULTURE, ANIMAL SCIENCES AND VETERINARY MEDICINE"]
[61,216125847,"NKURUNZIZA ","JEAN DE DIEU","M",74.618647722246777,"SECOND CLASS HONOURS, UPPER DIVISION","(BSC  WITH HONS IN ANIMAL PRODUCTION)"," ANIMAL PRODUCTION","VETERINARY MEDICINE","COLLEGE OF AGRICULTURE, ANIMAL SCIENCES AND VETERINARY MEDICINE"]
[62,215026291,"NSABIMANA ","AIMABLE","M",63.257922379478103,"SECOND CLASS HONOURS, LOWER DIVISION","(BSC  WITH HONS IN ANIMAL PRODUCTION)"," ANIMAL PRODUCTION","VETERINARY MEDICINE","COLLEGE OF AGRICULTURE, ANIMAL SCIENCES AND VETERINARY MEDICINE"]
[63,216172187,"NSABIMANA ","PHILIPPE","M",63.056672932330827,"SECOND CLASS HONOURS, LOWER DIVISION","(BSC  WITH HONS IN ANIMAL PRODUCTION)"," ANIMAL PRODUCTION","VETERINARY MEDICINE","COLLEGE OF AGRICULTURE, ANIMAL SCIENCES AND VETERINARY MEDICINE"]
[64,216255465,"NSENGIYUMVA ","ALPHONSE","M",71.659765406162464,"SECOND CLASS HONOURS, LOWER DIVISION","(BSC  WITH HONS IN ANIMAL PRODUCTION)"," ANIMAL PRODUCTION","VETERINARY MEDICINE","COLLEGE OF AGRICULTURE, ANIMAL SCIENCES AND VETERINARY MEDICINE"]
[65,216075599,"NSENGUMUREMYI ","AIMABLE","M",74.245368937048511,"SECOND CLASS HONOURS, UPPER DIVISION","(BSC  WITH HONS IN ANIMAL PRODUCTION)"," ANIMAL PRODUCTION","VETERINARY MEDICINE","COLLEGE OF AGRICULTURE, ANIMAL SCIENCES AND VETERINARY MEDICINE"]
[66,216283280,"NSHUTIYIMANA","DEVOTHE","F",70.888271598112937,"SECOND CLASS HONOURS, LOWER DIVISION","(BSC  WITH HONS IN ANIMAL PRODUCTION)"," ANIMAL PRODUCTION","VETERINARY MEDICINE","COLLEGE OF AGRICULTURE, ANIMAL SCIENCES AND VETERINARY MEDICINE"]
[67,216281989,"NTAKIRUTIMANA ","FERDINAND","M",68.648121406457335,"SECOND CLASS HONOURS, LOWER DIVISION","(BSC  WITH HONS IN ANIMAL PRODUCTION)"," ANIMAL PRODUCTION","VETERINARY MEDICINE","COLLEGE OF AGRICULTURE, ANIMAL SCIENCES AND VETERINARY MEDICINE"]
[68,216100097,"NTIBAZIYAREMYE","GASPARD","M",75.834180119416175,"SECOND CLASS HONOURS, UPPER DIVISION","(BSC  WITH HONS IN ANIMAL PRODUCTION)"," ANIMAL PRODUCTION","VETERINARY MEDICINE","COLLEGE OF AGRICULTURE, ANIMAL SCIENCES AND VETERINARY MEDICINE"]
[69,216291518,"NTIRENGANYA ","ALBERT","M",68.004511278195494,"SECOND CLASS HONOURS, LOWER DIVISION","(BSC  WITH HONS IN ANIMAL PRODUCTION)"," ANIMAL PRODUCTION","VETERINARY MEDICINE","COLLEGE OF AGRICULTURE, ANIMAL SCIENCES AND VETERINARY MEDICINE"]
[70,216075882,"NZABONIMANA ","JEAN DE LA CROIX","M",64.067520824119129,"SECOND CLASS HONOURS, LOWER DIVISION","(BSC  WITH HONS IN ANIMAL PRODUCTION)"," ANIMAL PRODUCTION","VETERINARY MEDICINE","COLLEGE OF AGRICULTURE, ANIMAL SCIENCES AND VETERINARY MEDICINE"]
[71,216166039,"SINDAYIGAYA","JEAN CLAUDE","M",68.843998046587046,"SECOND CLASS HONOURS, LOWER DIVISION","(BSC  WITH HONS IN ANIMAL PRODUCTION)"," ANIMAL PRODUCTION","VETERINARY MEDICINE","COLLEGE OF AGRICULTURE, ANIMAL SCIENCES AND VETERINARY MEDICINE"]
[72,215022800,"TURATSINZE ","GEROME","M",66.660026905499038,"SECOND CLASS HONOURS, LOWER DIVISION","(BSC  WITH HONS IN ANIMAL PRODUCTION)"," ANIMAL PRODUCTION","VETERINARY MEDICINE","COLLEGE OF AGRICULTURE, ANIMAL SCIENCES AND VETERINARY MEDICINE"]
[73,216133815,"TUYIZERE ","MARIE CLAIRE","F",70.913945709862887,"SECOND CLASS HONOURS, LOWER DIVISION","(BSC  WITH HONS IN ANIMAL PRODUCTION)"," ANIMAL PRODUCTION","VETERINARY MEDICINE","COLLEGE OF AGRICULTURE, ANIMAL SCIENCES AND VETERINARY MEDICINE"]
[74,216196744,"TUYIZERE ","JEAN DE DIEU","M",69.840959568037746,"SECOND CLASS HONOURS, LOWER DIVISION","(BSC  WITH HONS IN ANIMAL PRODUCTION)"," ANIMAL PRODUCTION","VETERINARY MEDICINE","COLLEGE OF AGRICULTURE, ANIMAL SCIENCES AND VETERINARY MEDICINE"]
[75,216120845,"TWIZERIMANA ","WILSON","M",63.639628482972128,"SECOND CLASS HONOURS, LOWER DIVISION","(BSC  WITH HONS IN ANIMAL PRODUCTION)"," ANIMAL PRODUCTION","VETERINARY MEDICINE","COLLEGE OF AGRICULTURE, ANIMAL SCIENCES AND VETERINARY MEDICINE"]
[76,216133165,"TWIZEYIMANA","CLEMENTINE","F",72.625219298245611,"SECOND CLASS HONOURS, UPPER DIVISION","(BSC  WITH HONS IN ANIMAL PRODUCTION)"," ANIMAL PRODUCTION","VETERINARY MEDICINE","COLLEGE OF AGRICULTURE, ANIMAL SCIENCES AND VETERINARY MEDICINE"]
[77,216081378,"UMUKUNZI SADAKO","SANDRINE","F",72.341872143594273,"SECOND CLASS HONOURS, LOWER DIVISION","(BSC  WITH HONS IN ANIMAL PRODUCTION)"," ANIMAL PRODUCTION","VETERINARY MEDICINE","COLLEGE OF AGRICULTURE, ANIMAL SCIENCES AND VETERINARY MEDICINE"]
[78,216115752,"UWASE ","GERMAINE","F",67.975262605042033,"SECOND CLASS HONOURS, LOWER DIVISION","(BSC  WITH HONS IN ANIMAL PRODUCTION)"," ANIMAL PRODUCTION","VETERINARY MEDICINE","COLLEGE OF AGRICULTURE, ANIMAL SCIENCES AND VETERINARY MEDICINE"]
[79,216203767,"UWAYEZU ","JEAN PAUL","M",69.022471620227037,"SECOND CLASS HONOURS, LOWER DIVISION","(BSC  WITH HONS IN ANIMAL PRODUCTION)"," ANIMAL PRODUCTION","VETERINARY MEDICINE","COLLEGE OF AGRICULTURE, ANIMAL SCIENCES AND VETERINARY MEDICINE"]
[80,216209188,"UWIMANISHAKA ","JEAN DE LA CROIX","M",70.377365656789038,"SECOND CLASS HONOURS, LOWER DIVISION","(BSC  WITH HONS IN ANIMAL PRODUCTION)"," ANIMAL PRODUCTION","VETERINARY MEDICINE","COLLEGE OF AGRICULTURE, ANIMAL SCIENCES AND VETERINARY MEDICINE"]
[81,216149789,"UWIMBABAZI ","ALPHONSINE","F",75.914305985552119,"SECOND CLASS HONOURS, UPPER DIVISION","(BSC  WITH HONS IN ANIMAL PRODUCTION)"," ANIMAL PRODUCTION","VETERINARY MEDICINE","COLLEGE OF AGRICULTURE, ANIMAL SCIENCES AND VETERINARY MEDICINE"]
[82,216140560,"UWINEZA ","JANVIERE","F",66.523822423706321,"SECOND CLASS HONOURS, LOWER DIVISION","(BSC  WITH HONS IN ANIMAL PRODUCTION)"," ANIMAL PRODUCTION","VETERINARY MEDICINE","COLLEGE OF AGRICULTURE, ANIMAL SCIENCES AND VETERINARY MEDICINE"]
[83,215005129,"UWIRINGIYIMANA ","SERAPHINE","F",71.769532286598846,"SECOND CLASS HONOURS, UPPER DIVISION","(BSC  WITH HONS IN ANIMAL PRODUCTION)"," ANIMAL PRODUCTION","VETERINARY MEDICINE","COLLEGE OF AGRICULTURE, ANIMAL SCIENCES AND VETERINARY MEDICINE"]
[84,216122023,"YARANTABAYE ","JOELLA","F",70.036309523809521,"SECOND CLASS HONOURS, LOWER DIVISION","(BSC  WITH HONS IN ANIMAL PRODUCTION)"," ANIMAL PRODUCTION","VETERINARY MEDICINE","COLLEGE OF AGRICULTURE, ANIMAL SCIENCES AND VETERINARY MEDICINE"]
[85,216266939,"ABIZERIMANA","DELPHINE","F",70.4779178765002,"SECOND CLASS HONOURS, LOWER DIVISION","(BSC WITH HONS IN AGRIBUSINESS)","Rural Development and Agricultural Economics","Agriculture and Food Science","COLLEGE OF AGRICULTURE, ANIMAL SCIENCES AND VETERINARY MEDICINE"]
[86,216086485,"AHISHAKIYE","INNOCENT","M",68.606619967092513,"SECOND CLASS HONOURS, LOWER DIVISION","(BSC WITH HONS IN AGRIBUSINESS)","Rural Development and Agricultural Economics","Agriculture and Food Science","COLLEGE OF AGRICULTURE, ANIMAL SCIENCES AND VETERINARY MEDICINE"]
[87,216275679,"AKARIZA","TEDDY","M",65.700735336817658,"SECOND CLASS HONOURS, LOWER DIVISION","(BSC WITH HONS IN AGRIBUSINESS)","Rural Development and Agricultural Economics","Agriculture and Food Science","COLLEGE OF AGRICULTURE, ANIMAL SCIENCES AND VETERINARY MEDICINE"]
[88,215010882,"AKAYEZU HIRWA","PACIFIQUE","F",70.51348335269067,"SECOND CLASS HONOURS, LOWER DIVISION","(BSC WITH HONS IN AGRIBUSINESS)","Rural Development and Agricultural Economics","Agriculture and Food Science","COLLEGE OF AGRICULTURE, ANIMAL SCIENCES AND VETERINARY MEDICINE"]
[89,216102871,"AKIMANIZANYE","SOLINE","F",67.142005178087487,"SECOND CLASS HONOURS, LOWER DIVISION","(BSC WITH HONS IN AGRIBUSINESS)","Rural Development and Agricultural Economics","Agriculture and Food Science","COLLEGE OF AGRICULTURE, ANIMAL SCIENCES AND VETERINARY MEDICINE"]
[90,215044940,"BAVUGAYABO","SAID","M",68.25868771777003,"SECOND CLASS HONOURS, LOWER DIVISION","(BSC WITH HONS IN AGRIBUSINESS)","Rural Development and Agricultural Economics","Agriculture and Food Science","COLLEGE OF AGRICULTURE, ANIMAL SCIENCES AND VETERINARY MEDICINE"]
[91,216227526,"BIKORIMANA","EMMANUEL","M",66.913630952380942,"SECOND CLASS HONOURS, LOWER DIVISION","(BSC WITH HONS IN AGRIBUSINESS)","Rural Development and Agricultural Economics","Agriculture and Food Science","COLLEGE OF AGRICULTURE, ANIMAL SCIENCES AND VETERINARY MEDICINE"]
[92,216114241,"BIKORIMANA","EMMANUEL","M",72.913384146341457,"SECOND CLASS HONOURS, LOWER DIVISION","(BSC WITH HONS IN AGRIBUSINESS)","Rural Development and Agricultural Economics","Agriculture and Food Science","COLLEGE OF AGRICULTURE, ANIMAL SCIENCES AND VETERINARY MEDICINE"]
[93,216262836,"BIZIMANA","SILAS","M",62.591367111885411,"SECOND CLASS HONOURS, LOWER DIVISION","(BSC WITH HONS IN AGRIBUSINESS)","Rural Development and Agricultural Economics","Agriculture and Food Science","COLLEGE OF AGRICULTURE, ANIMAL SCIENCES AND VETERINARY MEDICINE"]
[94,216179718,"BIZIMANA","CALLIXTE","M",69.165156794425087,"SECOND CLASS HONOURS, LOWER DIVISION","(BSC WITH HONS IN AGRIBUSINESS)","Rural Development and Agricultural Economics","Agriculture and Food Science","COLLEGE OF AGRICULTURE, ANIMAL SCIENCES AND VETERINARY MEDICINE"]
[95,216075394,"DUSENGIMANA","JEAN CLAUDE","M",68.0889067944251,"SECOND CLASS HONOURS, LOWER DIVISION","(BSC WITH HONS IN AGRIBUSINESS)","Rural Development and Agricultural Economics","Agriculture and Food Science","COLLEGE OF AGRICULTURE, ANIMAL SCIENCES AND VETERINARY MEDICINE"]
[96,216094704,"GAJU","YVONNE","F",69.095523857917158,"SECOND CLASS HONOURS, LOWER DIVISION","(BSC WITH HONS IN AGRIBUSINESS)","Rural Development and Agricultural Economics","Agriculture and Food Science","COLLEGE OF AGRICULTURE, ANIMAL SCIENCES AND VETERINARY MEDICINE"]
[97,216142687,"HABANABAKIZE","THOMAS","M",64.784388888888884,"SECOND CLASS HONOURS, LOWER DIVISION","(BSC WITH HONS IN AGRIBUSINESS)","Rural Development and Agricultural Economics","Agriculture and Food Science","COLLEGE OF AGRICULTURE, ANIMAL SCIENCES AND VETERINARY MEDICINE"]
[98,216093597,"HABARUREMA","JEAN PAUL","M",69.021396873790167,"SECOND CLASS HONOURS, LOWER DIVISION","(BSC WITH HONS IN AGRIBUSINESS)","Rural Development and Agricultural Economics","Agriculture and Food Science","COLLEGE OF AGRICULTURE, ANIMAL SCIENCES AND VETERINARY MEDICINE"]
[99,216089026,"HABAYINTWARI","ILDEPHONSE","M",72.152769066976376,"SECOND CLASS HONOURS, LOWER DIVISION","(BSC WITH HONS IN AGRIBUSINESS)","Rural Development and Agricultural Economics","Agriculture and Food Science","COLLEGE OF AGRICULTURE, ANIMAL SCIENCES AND VETERINARY MEDICINE"]
[100,216195063,"HABIMANA TURABANYE","PACIFIC","M",64.722191105303921,"SECOND CLASS HONOURS, LOWER DIVISION","(BSC WITH HONS IN AGRIBUSINESS)","Rural Development and Agricultural Economics","Agriculture and Food Science","COLLEGE OF AGRICULTURE, ANIMAL SCIENCES AND VETERINARY MEDICINE"]
[101,216129958,"HAGENIMANA","GASPARD","M",70.95137761324041,"SECOND CLASS HONOURS, UPPER DIVISION","(BSC WITH HONS IN AGRIBUSINESS)","Rural Development and Agricultural Economics","Agriculture and Food Science","COLLEGE OF AGRICULTURE, ANIMAL SCIENCES AND VETERINARY MEDICINE"]
[102,216132614,"HAHIRWUWIZERA","THEOGENE","M",70.110097028648866,"SECOND CLASS HONOURS, LOWER DIVISION","(BSC WITH HONS IN AGRIBUSINESS)","Rural Development and Agricultural Economics","Agriculture and Food Science","COLLEGE OF AGRICULTURE, ANIMAL SCIENCES AND VETERINARY MEDICINE"]
[103,216152712,"HAKORIMANA","ZEPHANIE","M",65.386403406891219,"SECOND CLASS HONOURS, LOWER DIVISION","(BSC WITH HONS IN AGRIBUSINESS)","Rural Development and Agricultural Economics","Agriculture and Food Science","COLLEGE OF AGRICULTURE, ANIMAL SCIENCES AND VETERINARY MEDICINE"]
[104,216115892,"HAKUZWEYEZU","CELESTIN","M",67.350203010065812,"SECOND CLASS HONOURS, LOWER DIVISION","(BSC WITH HONS IN AGRIBUSINESS)","Rural Development and Agricultural Economics","Agriculture and Food Science","COLLEGE OF AGRICULTURE, ANIMAL SCIENCES AND VETERINARY MEDICINE"]
[105,216304040,"HARELIMANA","ERIC","M",69.252812137049943,"SECOND CLASS HONOURS, LOWER DIVISION","(BSC WITH HONS IN AGRIBUSINESS)","Rural Development and Agricultural Economics","Agriculture and Food Science","COLLEGE OF AGRICULTURE, ANIMAL SCIENCES AND VETERINARY MEDICINE"]
[106,216194571,"HASHIM","ABUDULU","M",65.212081155632987,"SECOND CLASS HONOURS, LOWER DIVISION","(BSC WITH HONS IN AGRIBUSINESS)","Rural Development and Agricultural Economics","Agriculture and Food Science","COLLEGE OF AGRICULTURE, ANIMAL SCIENCES AND VETERINARY MEDICINE"]
[107,216333318,"HAVUGIMANA","JEROME","M",71.674581155632978,"SECOND CLASS HONOURS, UPPER DIVISION","(BSC WITH HONS IN AGRIBUSINESS)","Rural Development and Agricultural Economics","Agriculture and Food Science","COLLEGE OF AGRICULTURE, ANIMAL SCIENCES AND VETERINARY MEDICINE"]
[108,216233585,"HAVUGIMPUNDU","FELIX","M",66.305809620596207,"SECOND CLASS HONOURS, LOWER DIVISION","(BSC WITH HONS IN AGRIBUSINESS)","Rural Development and Agricultural Economics","Agriculture and Food Science","COLLEGE OF AGRICULTURE, ANIMAL SCIENCES AND VETERINARY MEDICINE"]
[109,215004014,"IKIREZI","ERNESTINE","F",65.219291763453342,"SECOND CLASS HONOURS, LOWER DIVISION","(BSC WITH HONS IN AGRIBUSINESS)","Rural Development and Agricultural Economics","Agriculture and Food Science","COLLEGE OF AGRICULTURE, ANIMAL SCIENCES AND VETERINARY MEDICINE"]
[110,216245281,"INGABIRE","JOSIANE","F",67.833408826945416,"SECOND CLASS HONOURS, LOWER DIVISION","(BSC WITH HONS IN AGRIBUSINESS)","Rural Development and Agricultural Economics","Agriculture and Food Science","COLLEGE OF AGRICULTURE, ANIMAL SCIENCES AND VETERINARY MEDICINE"]
[111,216098939,"IRADUKUNDA","SOLANGE","F",67.740126790553617,"SECOND CLASS HONOURS, LOWER DIVISION","(BSC WITH HONS IN AGRIBUSINESS)","Rural Development and Agricultural Economics","Agriculture and Food Science","COLLEGE OF AGRICULTURE, ANIMAL SCIENCES AND VETERINARY MEDICINE"]
[112,216144515,"IRADUKUNDA","BENJAMIN","M",70.475442557104145,"SECOND CLASS HONOURS, UPPER DIVISION","(BSC WITH HONS IN AGRIBUSINESS)","Rural Development and Agricultural Economics","Agriculture and Food Science","COLLEGE OF AGRICULTURE, ANIMAL SCIENCES AND VETERINARY MEDICINE"]
[113,216073103,"IRASUBIZA","SIFA CHRISTINE","F",66.076495838172661,"SECOND CLASS HONOURS, LOWER DIVISION","(BSC WITH HONS IN AGRIBUSINESS)","Rural Development and Agricultural Economics","Agriculture and Food Science","COLLEGE OF AGRICULTURE, ANIMAL SCIENCES AND VETERINARY MEDICINE"]
[114,215001876,"IYAKAREMYE","JEAN DE DIEU","M",67.83569226674409,"SECOND CLASS HONOURS, LOWER DIVISION","(BSC WITH HONS IN AGRIBUSINESS)","Rural Development and Agricultural Economics","Agriculture and Food Science","COLLEGE OF AGRICULTURE, ANIMAL SCIENCES AND VETERINARY MEDICINE"]
[115,216295807,"KARIKUNZIRA","HAMUZA","M",66.657329171505992,"SECOND CLASS HONOURS, LOWER DIVISION","(BSC WITH HONS IN AGRIBUSINESS)","Rural Development and Agricultural Economics","Agriculture and Food Science","COLLEGE OF AGRICULTURE, ANIMAL SCIENCES AND VETERINARY MEDICINE"]
[116,215005514,"KOMEZUSENGE","MANASSE","M",67.547725996902827,"SECOND CLASS HONOURS, LOWER DIVISION","(BSC WITH HONS IN AGRIBUSINESS)","Rural Development and Agricultural Economics","Agriculture and Food Science","COLLEGE OF AGRICULTURE, ANIMAL SCIENCES AND VETERINARY MEDICINE"]
[117,216240794,"KUBWIMANA","JEAN BAPTISTE","M",66.009581155632986,"SECOND CLASS HONOURS, LOWER DIVISION","(BSC WITH HONS IN AGRIBUSINESS)","Rural Development and Agricultural Economics","Agriculture and Food Science","COLLEGE OF AGRICULTURE, ANIMAL SCIENCES AND VETERINARY MEDICINE"]
[118,216136849,"KWIZERA","ELIHUDI","M",65.79730110336817,"SECOND CLASS HONOURS, LOWER DIVISION","(BSC WITH HONS IN AGRIBUSINESS)","Rural Development and Agricultural Economics","Agriculture and Food Science","COLLEGE OF AGRICULTURE, ANIMAL SCIENCES AND VETERINARY MEDICINE"]
[119,216092957,"MANIRABARUTA","DAMIEN","M",66.223698219125055,"SECOND CLASS HONOURS, LOWER DIVISION","(BSC WITH HONS IN AGRIBUSINESS)","Rural Development and Agricultural Economics","Agriculture and Food Science","COLLEGE OF AGRICULTURE, ANIMAL SCIENCES AND VETERINARY MEDICINE"]
[120,216089700,"MANIRAGUHA","ERNESTE","M",73.226073606271783,"SECOND CLASS HONOURS, LOWER DIVISION","(BSC WITH HONS IN AGRIBUSINESS)","Rural Development and Agricultural Economics","Agriculture and Food Science","COLLEGE OF AGRICULTURE, ANIMAL SCIENCES AND VETERINARY MEDICINE"]
[121,216194970,"MARIE BONHEUR","JOSEPH","M",64.757608933410751,"SECOND CLASS HONOURS, LOWER DIVISION","(BSC WITH HONS IN AGRIBUSINESS)","Rural Development and Agricultural Economics","Agriculture and Food Science","COLLEGE OF AGRICULTURE, ANIMAL SCIENCES AND VETERINARY MEDICINE"]
[122,216261430,"MUGABO","ALPHONSE","M",66.51777758420441,"SECOND CLASS HONOURS, LOWER DIVISION","(BSC WITH HONS IN AGRIBUSINESS)","Rural Development and Agricultural Economics","Agriculture and Food Science","COLLEGE OF AGRICULTURE, ANIMAL SCIENCES AND VETERINARY MEDICINE"]
[123,216112044,"MUHIMPUNDU","HONORINE","F",72.077733788230745,"SECOND CLASS HONOURS, LOWER DIVISION","(BSC WITH HONS IN AGRIBUSINESS)","Rural Development and Agricultural Economics","Agriculture and Food Science","COLLEGE OF AGRICULTURE, ANIMAL SCIENCES AND VETERINARY MEDICINE"]
[124,215003446,"MUHIRE","GILBERT","M",65.729993708865663,"SECOND CLASS HONOURS, LOWER DIVISION","(BSC WITH HONS IN AGRIBUSINESS)","Rural Development and Agricultural Economics","Agriculture and Food Science","COLLEGE OF AGRICULTURE, ANIMAL SCIENCES AND VETERINARY MEDICINE"]
[125,216324602,"MUJAWAYEZU","JEANNE D'ARC","F",66.332703300425862,"SECOND CLASS HONOURS, LOWER DIVISION","(BSC WITH HONS IN AGRIBUSINESS)","Rural Development and Agricultural Economics","Agriculture and Food Science","COLLEGE OF AGRICULTURE, ANIMAL SCIENCES AND VETERINARY MEDICINE"]
[126,215021006,"MUKAMURENZI","JOSELYNE","F",65.984255613627553,"SECOND CLASS HONOURS, LOWER DIVISION","(BSC WITH HONS IN AGRIBUSINESS)","Rural Development and Agricultural Economics","Agriculture and Food Science","COLLEGE OF AGRICULTURE, ANIMAL SCIENCES AND VETERINARY MEDICINE"]
[127,216278961,"MUKANDAYISENGA","LEOCADIE","F",64.508128629500575,"SECOND CLASS HONOURS, LOWER DIVISION","(BSC WITH HONS IN AGRIBUSINESS)","Rural Development and Agricultural Economics","Agriculture and Food Science","COLLEGE OF AGRICULTURE, ANIMAL SCIENCES AND VETERINARY MEDICINE"]
[128,216228654,"MUKANDAYISENGA","CHRISTINE","F",69.184011566008522,"SECOND CLASS HONOURS, LOWER DIVISION","(BSC WITH HONS IN AGRIBUSINESS)","Rural Development and Agricultural Economics","Agriculture and Food Science","COLLEGE OF AGRICULTURE, ANIMAL SCIENCES AND VETERINARY MEDICINE"]
[129,216086493,"MUNYANKIKO","SEDESSIAS","M",62.926446525358102,"SECOND CLASS HONOURS, LOWER DIVISION","(BSC WITH HONS IN AGRIBUSINESS)","Rural Development and Agricultural Economics","Agriculture and Food Science","COLLEGE OF AGRICULTURE, ANIMAL SCIENCES AND VETERINARY MEDICINE"]
[130,216078792,"MUNYARUGAMBA","ALEXANDRE","M",68.185190572977149,"SECOND CLASS HONOURS, LOWER DIVISION","(BSC WITH HONS IN AGRIBUSINESS)","Rural Development and Agricultural Economics","Agriculture and Food Science","COLLEGE OF AGRICULTURE, ANIMAL SCIENCES AND VETERINARY MEDICINE"]
[131,216125197,"MUNYENTWARI","MBUTA JOSEPH","M",73.945595334881915,"SECOND CLASS HONOURS, UPPER DIVISION","(BSC WITH HONS IN AGRIBUSINESS)","Rural Development and Agricultural Economics","Agriculture and Food Science","COLLEGE OF AGRICULTURE, ANIMAL SCIENCES AND VETERINARY MEDICINE"]
[132,216088356,"MUREGO","EPIMAQUE","M",64.691692557104147,"SECOND CLASS HONOURS, LOWER DIVISION","(BSC WITH HONS IN AGRIBUSINESS)","Rural Development and Agricultural Economics","Agriculture and Food Science","COLLEGE OF AGRICULTURE, ANIMAL SCIENCES AND VETERINARY MEDICINE"]
[133,216099803,"MURENGERANTWARI","JEAN CLAUDE","M",67.483002080913678,"SECOND CLASS HONOURS, LOWER DIVISION","(BSC WITH HONS IN AGRIBUSINESS)","Rural Development and Agricultural Economics","Agriculture and Food Science","COLLEGE OF AGRICULTURE, ANIMAL SCIENCES AND VETERINARY MEDICINE"]
[134,216239885,"MUSABYIMANA","FRANCOIS","M",66.822804636082068,"SECOND CLASS HONOURS, LOWER DIVISION","(BSC WITH HONS IN AGRIBUSINESS)","Rural Development and Agricultural Economics","Agriculture and Food Science","COLLEGE OF AGRICULTURE, ANIMAL SCIENCES AND VETERINARY MEDICINE"]
[135,215018488,"MUSABYIMANA","JOSEE","F",64.012467334494772,"SECOND CLASS HONOURS, LOWER DIVISION","(BSC WITH HONS IN AGRIBUSINESS)","Rural Development and Agricultural Economics","Agriculture and Food Science","COLLEGE OF AGRICULTURE, ANIMAL SCIENCES AND VETERINARY MEDICINE"]
[136,215001157,"MUSABYIMANA","DORCAS","F",62.336417440960133,"SECOND CLASS HONOURS, LOWER DIVISION","(BSC WITH HONS IN AGRIBUSINESS)","Rural Development and Agricultural Economics","Agriculture and Food Science","COLLEGE OF AGRICULTURE, ANIMAL SCIENCES AND VETERINARY MEDICINE"]
[137,216101301,"MUSABYIMANA","DATIVE","F",66.65415979481223,"SECOND CLASS HONOURS, LOWER DIVISION","(BSC WITH HONS IN AGRIBUSINESS)","Rural Development and Agricultural Economics","Agriculture and Food Science","COLLEGE OF AGRICULTURE, ANIMAL SCIENCES AND VETERINARY MEDICINE"]
[138,216182921,"MUSHIMIYIMANA","JOVIA","F",65.316683604336049,"SECOND CLASS HONOURS, LOWER DIVISION","(BSC WITH HONS IN AGRIBUSINESS)","Rural Development and Agricultural Economics","Agriculture and Food Science","COLLEGE OF AGRICULTURE, ANIMAL SCIENCES AND VETERINARY MEDICINE"]
[139,216093309,"MUTUYIMANA","BENJAMIN","M",67.275632017034454,"SECOND CLASS HONOURS, LOWER DIVISION","(BSC WITH HONS IN AGRIBUSINESS)","Rural Development and Agricultural Economics","Agriculture and Food Science","COLLEGE OF AGRICULTURE, ANIMAL SCIENCES AND VETERINARY MEDICINE"]
[140,216092337,"NDARIHORANYE","OLIVIER","M",64.106055023228805,"SECOND CLASS HONOURS, LOWER DIVISION","(BSC WITH HONS IN AGRIBUSINESS)","Rural Development and Agricultural Economics","Agriculture and Food Science","COLLEGE OF AGRICULTURE, ANIMAL SCIENCES AND VETERINARY MEDICINE"]
[141,216204933,"NDAYAMBAJE","SELEVELIEN","M",68.243136372435146,"SECOND CLASS HONOURS, LOWER DIVISION","(BSC WITH HONS IN AGRIBUSINESS)","Rural Development and Agricultural Economics","Agriculture and Food Science","COLLEGE OF AGRICULTURE, ANIMAL SCIENCES AND VETERINARY MEDICINE"]
[142,215011060,"NDAYISENGA","EMMANUEL","M",70.690743515292283,"SECOND CLASS HONOURS, UPPER DIVISION","(BSC WITH HONS IN AGRIBUSINESS)","Rural Development and Agricultural Economics","Agriculture and Food Science","COLLEGE OF AGRICULTURE, ANIMAL SCIENCES AND VETERINARY MEDICINE"]
[143,216297818,"NDAYISHIMIYE","ERIC","M",65.758920102593891,"SECOND CLASS HONOURS, LOWER DIVISION","(BSC WITH HONS IN AGRIBUSINESS)","Rural Development and Agricultural Economics","Agriculture and Food Science","COLLEGE OF AGRICULTURE, ANIMAL SCIENCES AND VETERINARY MEDICINE"]
[144,216112931,"NDAYISHIMIYE","ERIC","M",63.60126306620208,"SECOND CLASS HONOURS, LOWER DIVISION","(BSC WITH HONS IN AGRIBUSINESS)","Rural Development and Agricultural Economics","Agriculture and Food Science","COLLEGE OF AGRICULTURE, ANIMAL SCIENCES AND VETERINARY MEDICINE"]
[145,216152194,"NGABOYISONGA","ALFRED","M",68.306411633759197,"SECOND CLASS HONOURS, LOWER DIVISION","(BSC WITH HONS IN AGRIBUSINESS)","Rural Development and Agricultural Economics","Agriculture and Food Science","COLLEGE OF AGRICULTURE, ANIMAL SCIENCES AND VETERINARY MEDICINE"]
[146,216292913,"NGENDAHAYO","ALPHONSE","M",69.425786633759202,"SECOND CLASS HONOURS, LOWER DIVISION","(BSC WITH HONS IN AGRIBUSINESS)","Rural Development and Agricultural Economics","Agriculture and Food Science","COLLEGE OF AGRICULTURE, ANIMAL SCIENCES AND VETERINARY MEDICINE"]
[147,215008487,"NGIRUWONSANGA","DAMIEN","M",63.703002322880387,"SECOND CLASS HONOURS, LOWER DIVISION","(BSC WITH HONS IN AGRIBUSINESS)","Rural Development and Agricultural Economics","Agriculture and Food Science","COLLEGE OF AGRICULTURE, ANIMAL SCIENCES AND VETERINARY MEDICINE"]
[148,216090938,"NIKUZWE","ALAIN","M",70.010383855981416,"SECOND CLASS HONOURS, UPPER DIVISION","(BSC WITH HONS IN AGRIBUSINESS)","Rural Development and Agricultural Economics","Agriculture and Food Science","COLLEGE OF AGRICULTURE, ANIMAL SCIENCES AND VETERINARY MEDICINE"]
[149,216075777,"NIRERE","VESTINE","M",63.986284649632218,"SECOND CLASS HONOURS, LOWER DIVISION","(BSC WITH HONS IN AGRIBUSINESS)","Rural Development and Agricultural Economics","Agriculture and Food Science","COLLEGE OF AGRICULTURE, ANIMAL SCIENCES AND VETERINARY MEDICINE"]
[150,216175399,"NIYIBIGIRA","MARCEL","F",70.021303571428575,"SECOND CLASS HONOURS, LOWER DIVISION","(BSC WITH HONS IN AGRIBUSINESS)","Rural Development and Agricultural Economics","Agriculture and Food Science","COLLEGE OF AGRICULTURE, ANIMAL SCIENCES AND VETERINARY MEDICINE"]
[151,216211662,"NIYIBIZI","OLIVE","F",67.514037214479288,"SECOND CLASS HONOURS, LOWER DIVISION","(BSC WITH HONS IN AGRIBUSINESS)","Rural Development and Agricultural Economics","Agriculture and Food Science","COLLEGE OF AGRICULTURE, ANIMAL SCIENCES AND VETERINARY MEDICINE"]
[152,216205638,"NIYIGENA","MARC","F",67.724023325590395,"SECOND CLASS HONOURS, LOWER DIVISION","(BSC WITH HONS IN AGRIBUSINESS)","Rural Development and Agricultural Economics","Agriculture and Food Science","COLLEGE OF AGRICULTURE, ANIMAL SCIENCES AND VETERINARY MEDICINE"]
[153,216083494,"NIYIGENA","LIONEL","M",67.802896341463409,"SECOND CLASS HONOURS, LOWER DIVISION","(BSC WITH HONS IN AGRIBUSINESS)","Rural Development and Agricultural Economics","Agriculture and Food Science","COLLEGE OF AGRICULTURE, ANIMAL SCIENCES AND VETERINARY MEDICINE"]
[154,216097924,"NIYOMUGABO","EMMANUEL","M",65.962184039876107,"SECOND CLASS HONOURS, LOWER DIVISION","(BSC WITH HONS IN AGRIBUSINESS)","Rural Development and Agricultural Economics","Agriculture and Food Science","COLLEGE OF AGRICULTURE, ANIMAL SCIENCES AND VETERINARY MEDICINE"]
[155,216182964,"NIYOMUGABO","JEAN BAPTISTE","M",67.127459833526913,"SECOND CLASS HONOURS, LOWER DIVISION","(BSC WITH HONS IN AGRIBUSINESS)","Rural Development and Agricultural Economics","Agriculture and Food Science","COLLEGE OF AGRICULTURE, ANIMAL SCIENCES AND VETERINARY MEDICINE"]
[156,216199638,"NIYONIZEYE","JOSIANE","F",73.603243563685638,"SECOND CLASS HONOURS, LOWER DIVISION","(BSC WITH HONS IN AGRIBUSINESS)","Rural Development and Agricultural Economics","Agriculture and Food Science","COLLEGE OF AGRICULTURE, ANIMAL SCIENCES AND VETERINARY MEDICINE"]
[157,216293073,"NKOMEZAMIHIGO","JEAN CLAUDE","M",68.484295150987222,"SECOND CLASS HONOURS, LOWER DIVISION","(BSC WITH HONS IN AGRIBUSINESS)","Rural Development and Agricultural Economics","Agriculture and Food Science","COLLEGE OF AGRICULTURE, ANIMAL SCIENCES AND VETERINARY MEDICINE"]
[158,216202035,"NKUNDABASHAKA","DAMASCENE","M",68.521954607046069,"SECOND CLASS HONOURS, LOWER DIVISION","(BSC WITH HONS IN AGRIBUSINESS)","Rural Development and Agricultural Economics","Agriculture and Food Science","COLLEGE OF AGRICULTURE, ANIMAL SCIENCES AND VETERINARY MEDICINE"]
[159,216144000,"NKUNDIMANA","ISAIE","M",68.801371273712718,"SECOND CLASS HONOURS, LOWER DIVISION","(BSC WITH HONS IN AGRIBUSINESS)","Rural Development and Agricultural Economics","Agriculture and Food Science","COLLEGE OF AGRICULTURE, ANIMAL SCIENCES AND VETERINARY MEDICINE"]
[160,216284872,"NSENGIYUMVA","DANIEL","M",65.51626451800233,"SECOND CLASS HONOURS, LOWER DIVISION","(BSC WITH HONS IN AGRIBUSINESS)","Rural Development and Agricultural Economics","Agriculture and Food Science","COLLEGE OF AGRICULTURE, ANIMAL SCIENCES AND VETERINARY MEDICINE"]
[161,216252296,"NSENGIYUMVA","ROSINE","M",64.000337543554011,"SECOND CLASS HONOURS, LOWER DIVISION","(BSC WITH HONS IN AGRIBUSINESS)","Rural Development and Agricultural Economics","Agriculture and Food Science","COLLEGE OF AGRICULTURE, ANIMAL SCIENCES AND VETERINARY MEDICINE"]
[162,216178169,"NSENGIYUMVA"," JEAN PAUL","M",66.568603126209837,"SECOND CLASS HONOURS, LOWER DIVISION","(BSC WITH HONS IN AGRIBUSINESS)","Rural Development and Agricultural Economics","Agriculture and Food Science","COLLEGE OF AGRICULTURE, ANIMAL SCIENCES AND VETERINARY MEDICINE"]
[163,216173795,"NSHIMIYIMANA","JOSEPH","M",67.769608939104103,"SECOND CLASS HONOURS, LOWER DIVISION","(BSC WITH HONS IN AGRIBUSINESS)","Rural Development and Agricultural Economics","Agriculture and Food Science","COLLEGE OF AGRICULTURE, ANIMAL SCIENCES AND VETERINARY MEDICINE"]
[164,216122465,"NSHIMIYIMANA","INNOCENT","M",64.954171264034073,"SECOND CLASS HONOURS, LOWER DIVISION","(BSC WITH HONS IN AGRIBUSINESS)","Rural Development and Agricultural Economics","Agriculture and Food Science","COLLEGE OF AGRICULTURE, ANIMAL SCIENCES AND VETERINARY MEDICINE"]
[165,215006672,"NSHIMIYUMUREMYI","JOSEPH","M",66.561049415294562,"SECOND CLASS HONOURS, LOWER DIVISION","(BSC WITH HONS IN AGRIBUSINESS)","Rural Development and Agricultural Economics","Agriculture and Food Science","COLLEGE OF AGRICULTURE, ANIMAL SCIENCES AND VETERINARY MEDICINE"]
[166,216144647,"NTAMBARA","ALEX","M",60.297287510532662,"SECOND CLASS HONOURS, LOWER DIVISION","(BSC WITH HONS IN AGRIBUSINESS)","Rural Development and Agricultural Economics","Agriculture and Food Science","COLLEGE OF AGRICULTURE, ANIMAL SCIENCES AND VETERINARY MEDICINE"]
[167,216292875,"NYABYENDA","MARIE LOUISE","F",67.485333145453311,"SECOND CLASS HONOURS, LOWER DIVISION","(BSC WITH HONS IN AGRIBUSINESS)","Rural Development and Agricultural Economics","Agriculture and Food Science","COLLEGE OF AGRICULTURE, ANIMAL SCIENCES AND VETERINARY MEDICINE"]
[168,216109302,"NYIRAKAYANGE","LOUISE","F",67.68723915989159,"SECOND CLASS HONOURS, LOWER DIVISION","(BSC WITH HONS IN AGRIBUSINESS)","Rural Development and Agricultural Economics","Agriculture and Food Science","COLLEGE OF AGRICULTURE, ANIMAL SCIENCES AND VETERINARY MEDICINE"]
[169,216111498,"NYIRAMAHIRWE","PHOIBE","F",71.088439556716992,"SECOND CLASS HONOURS, UPPER DIVISION","(BSC WITH HONS IN AGRIBUSINESS)","Rural Development and Agricultural Economics","Agriculture and Food Science","COLLEGE OF AGRICULTURE, ANIMAL SCIENCES AND VETERINARY MEDICINE"]
[170,216135214,"NYIRANDATWA","THERESE","F",67.139391937669373,"SECOND CLASS HONOURS, LOWER DIVISION","(BSC WITH HONS IN AGRIBUSINESS)","Rural Development and Agricultural Economics","Agriculture and Food Science","COLLEGE OF AGRICULTURE, ANIMAL SCIENCES AND VETERINARY MEDICINE"]
[171,215009931,"NYIRANEZA","JACQUELINE","F",70.038588366240816,"SECOND CLASS HONOURS, LOWER DIVISION","(BSC WITH HONS IN AGRIBUSINESS)","Rural Development and Agricultural Economics","Agriculture and Food Science","COLLEGE OF AGRICULTURE, ANIMAL SCIENCES AND VETERINARY MEDICINE"]
[172,216122139,"NYIRANSHUTI","CLAUDETTE","F",69.644461382113818,"SECOND CLASS HONOURS, LOWER DIVISION","(BSC WITH HONS IN AGRIBUSINESS)","Rural Development and Agricultural Economics","Agriculture and Food Science","COLLEGE OF AGRICULTURE, ANIMAL SCIENCES AND VETERINARY MEDICINE"]
[173,216089131,"NYIRANTURANYENINKIKO","ANITHA","F",71.33517324816107,"SECOND CLASS HONOURS, LOWER DIVISION","(BSC WITH HONS IN AGRIBUSINESS)","Rural Development and Agricultural Economics","Agriculture and Food Science","COLLEGE OF AGRICULTURE, ANIMAL SCIENCES AND VETERINARY MEDICINE"]
[174,216105587,"NZABONIMPA","JOSEPH","M",69.352502903600467,"SECOND CLASS HONOURS, LOWER DIVISION","(BSC WITH HONS IN AGRIBUSINESS)","Rural Development and Agricultural Economics","Agriculture and Food Science","COLLEGE OF AGRICULTURE, ANIMAL SCIENCES AND VETERINARY MEDICINE"]
[175,216132649,"NZAYISENGA","ANATHOLE","M",71.446996951219518,"SECOND CLASS HONOURS, UPPER DIVISION","(BSC WITH HONS IN AGRIBUSINESS)","Rural Development and Agricultural Economics","Agriculture and Food Science","COLLEGE OF AGRICULTURE, ANIMAL SCIENCES AND VETERINARY MEDICINE"]
[176,216294398,"RUKUNDO","SCHADRACK","M",66.672794231513748,"SECOND CLASS HONOURS, LOWER DIVISION","(BSC WITH HONS IN AGRIBUSINESS)","Rural Development and Agricultural Economics","Agriculture and Food Science","COLLEGE OF AGRICULTURE, ANIMAL SCIENCES AND VETERINARY MEDICINE"]
[177,216164842,"SAFARI","WILSON","M",66.438893728223007,"SECOND CLASS HONOURS, LOWER DIVISION","(BSC WITH HONS IN AGRIBUSINESS)","Rural Development and Agricultural Economics","Agriculture and Food Science","COLLEGE OF AGRICULTURE, ANIMAL SCIENCES AND VETERINARY MEDICINE"]
[178,216088453,"SEBANANI","DANIEL","M",66.023879839334114,"SECOND CLASS HONOURS, LOWER DIVISION","(BSC WITH HONS IN AGRIBUSINESS)","Rural Development and Agricultural Economics","Agriculture and Food Science","COLLEGE OF AGRICULTURE, ANIMAL SCIENCES AND VETERINARY MEDICINE"]
[179,216104750,"SINGIZIMANA","JEAN DE LA CROIX","M",69.42878063298491,"SECOND CLASS HONOURS, LOWER DIVISION","(BSC WITH HONS IN AGRIBUSINESS)","Rural Development and Agricultural Economics","Agriculture and Food Science","COLLEGE OF AGRICULTURE, ANIMAL SCIENCES AND VETERINARY MEDICINE"]
[180,216122740,"TEREBUSHI","INNOCENT","M",75.081567944250878,"SECOND CLASS HONOURS, UPPER DIVISION","(BSC WITH HONS IN AGRIBUSINESS)","Rural Development and Agricultural Economics","Agriculture and Food Science","COLLEGE OF AGRICULTURE, ANIMAL SCIENCES AND VETERINARY MEDICINE"]
[181,216287006,"TUGIRIMANA","VALENS","M",67.735486595044506,"SECOND CLASS HONOURS, LOWER DIVISION","(BSC WITH HONS IN AGRIBUSINESS)","Rural Development and Agricultural Economics","Agriculture and Food Science","COLLEGE OF AGRICULTURE, ANIMAL SCIENCES AND VETERINARY MEDICINE"]
[182,215043349,"TUYISABE","ELYSE","M",70.565942944250864,"SECOND CLASS HONOURS, LOWER DIVISION","(BSC WITH HONS IN AGRIBUSINESS)","Rural Development and Agricultural Economics","Agriculture and Food Science","COLLEGE OF AGRICULTURE, ANIMAL SCIENCES AND VETERINARY MEDICINE"]
[183,216258367,"TUYISHIME","TRESOR","M",71.324149487030596,"SECOND CLASS HONOURS, UPPER DIVISION","(BSC WITH HONS IN AGRIBUSINESS)","Rural Development and Agricultural Economics","Agriculture and Food Science","COLLEGE OF AGRICULTURE, ANIMAL SCIENCES AND VETERINARY MEDICINE"]
[184,215015496,"TUYISHIME","EPAPHRODITE","M",66.012936991869921,"SECOND CLASS HONOURS, LOWER DIVISION","(BSC WITH HONS IN AGRIBUSINESS)","Rural Development and Agricultural Economics","Agriculture and Food Science","COLLEGE OF AGRICULTURE, ANIMAL SCIENCES AND VETERINARY MEDICINE"]
[185,216146488,"TUYISINGIZE","VENUSTE","M",71.823197106078212,"SECOND CLASS HONOURS, LOWER DIVISION","(BSC WITH HONS IN AGRIBUSINESS)","Rural Development and Agricultural Economics","Agriculture and Food Science","COLLEGE OF AGRICULTURE, ANIMAL SCIENCES AND VETERINARY MEDICINE"]
[186,216214386,"TUYIZERE","JACQUELINE","F",69.897502661633766,"SECOND CLASS HONOURS, LOWER DIVISION","(BSC WITH HONS IN AGRIBUSINESS)","Rural Development and Agricultural Economics","Agriculture and Food Science","COLLEGE OF AGRICULTURE, ANIMAL SCIENCES AND VETERINARY MEDICINE"]
[187,216088852,"TUYIZERE","JOSIANE","F",67.846074090205178,"SECOND CLASS HONOURS, LOWER DIVISION","(BSC WITH HONS IN AGRIBUSINESS)","Rural Development and Agricultural Economics","Agriculture and Food Science","COLLEGE OF AGRICULTURE, ANIMAL SCIENCES AND VETERINARY MEDICINE"]
[188,216109051,"TUYIZERE","ERIC","M",66.266451074332167,"SECOND CLASS HONOURS, LOWER DIVISION","(BSC WITH HONS IN AGRIBUSINESS)","Rural Development and Agricultural Economics","Agriculture and Food Science","COLLEGE OF AGRICULTURE, ANIMAL SCIENCES AND VETERINARY MEDICINE"]
[189,216130964,"TWAGIRAMUNGU","INNOCENT","M",64.499827477739061,"SECOND CLASS HONOURS, LOWER DIVISION","(BSC WITH HONS IN AGRIBUSINESS)","Rural Development and Agricultural Economics","Agriculture and Food Science","COLLEGE OF AGRICULTURE, ANIMAL SCIENCES AND VETERINARY MEDICINE"]
[190,216087589,"TWAHIRWA","JEAN DE DIEU","M",68.73673083623693,"SECOND CLASS HONOURS, LOWER DIVISION","(BSC WITH HONS IN AGRIBUSINESS)","Rural Development and Agricultural Economics","Agriculture and Food Science","COLLEGE OF AGRICULTURE, ANIMAL SCIENCES AND VETERINARY MEDICINE"]
[191,216191459,"TWITEZIMANA","JEAN BOSCO","M",64.535597899728998,"SECOND CLASS HONOURS, LOWER DIVISION","(BSC WITH HONS IN AGRIBUSINESS)","Rural Development and Agricultural Economics","Agriculture and Food Science","COLLEGE OF AGRICULTURE, ANIMAL SCIENCES AND VETERINARY MEDICINE"]
[192,216153441,"UHAWENAYO","JULIETTE","F",66.567423296554395,"SECOND CLASS HONOURS, LOWER DIVISION","(BSC WITH HONS IN AGRIBUSINESS)","Rural Development and Agricultural Economics","Agriculture and Food Science","COLLEGE OF AGRICULTURE, ANIMAL SCIENCES AND VETERINARY MEDICINE"]
[193,216112427,"UMUBYEYI","INES","F",69.477448461091754,"SECOND CLASS HONOURS, LOWER DIVISION","(BSC WITH HONS IN AGRIBUSINESS)","Rural Development and Agricultural Economics","Agriculture and Food Science","COLLEGE OF AGRICULTURE, ANIMAL SCIENCES AND VETERINARY MEDICINE"]
[194,216142423,"UMUHOZA","VANESSA","F",68.897498064266358,"SECOND CLASS HONOURS, LOWER DIVISION","(BSC WITH HONS IN AGRIBUSINESS)","Rural Development and Agricultural Economics","Agriculture and Food Science","COLLEGE OF AGRICULTURE, ANIMAL SCIENCES AND VETERINARY MEDICINE"]
[195,216125189,"UMUHOZA","DIANE","F",69.348460365853654,"SECOND CLASS HONOURS, LOWER DIVISION","(BSC WITH HONS IN AGRIBUSINESS)","Rural Development and Agricultural Economics","Agriculture and Food Science","COLLEGE OF AGRICULTURE, ANIMAL SCIENCES AND VETERINARY MEDICINE"]
[196,216261112,"UMUTONIWASE","JOSELYNE","F",68.219888937282235,"SECOND CLASS HONOURS, LOWER DIVISION","(BSC WITH HONS IN AGRIBUSINESS)","Rural Development and Agricultural Economics","Agriculture and Food Science","COLLEGE OF AGRICULTURE, ANIMAL SCIENCES AND VETERINARY MEDICINE"]
[197,216212685,"UTEGEREJEYESU","HONOREE","F",70.019106900890435,"SECOND CLASS HONOURS, LOWER DIVISION","(BSC WITH HONS IN AGRIBUSINESS)","Rural Development and Agricultural Economics","Agriculture and Food Science","COLLEGE OF AGRICULTURE, ANIMAL SCIENCES AND VETERINARY MEDICINE"]
[198,216156688,"UWAMAHIRWE","MARIE ROSE","F",70.587658246225331,"SECOND CLASS HONOURS, LOWER DIVISION","(BSC WITH HONS IN AGRIBUSINESS)","Rural Development and Agricultural Economics","Agriculture and Food Science","COLLEGE OF AGRICULTURE, ANIMAL SCIENCES AND VETERINARY MEDICINE"]
[199,216170680,"UWAMAHORO","JEANINNE","F",70.348771341463419,"SECOND CLASS HONOURS, UPPER DIVISION","(BSC WITH HONS IN AGRIBUSINESS)","Rural Development and Agricultural Economics","Agriculture and Food Science","COLLEGE OF AGRICULTURE, ANIMAL SCIENCES AND VETERINARY MEDICINE"]
[200,215016233,"UWAMARIYA","ENATHA","F",67.281993563685631,"SECOND CLASS HONOURS, LOWER DIVISION","(BSC WITH HONS IN AGRIBUSINESS)","Rural Development and Agricultural Economics","Agriculture and Food Science","COLLEGE OF AGRICULTURE, ANIMAL SCIENCES AND VETERINARY MEDICINE"]
[201,216130948,"UWANYIRIGIRA","FRERE","M",61.912108643050708,"SECOND CLASS HONOURS, LOWER DIVISION","(BSC WITH HONS IN AGRIBUSINESS)","Rural Development and Agricultural Economics","Agriculture and Food Science","COLLEGE OF AGRICULTURE, ANIMAL SCIENCES AND VETERINARY MEDICINE"]
[202,216170915,"UWIDUHAYE IKUZWE","JOSELYNE","F",68.672699912891986,"SECOND CLASS HONOURS, LOWER DIVISION","(BSC WITH HONS IN AGRIBUSINESS)","Rural Development and Agricultural Economics","Agriculture and Food Science","COLLEGE OF AGRICULTURE, ANIMAL SCIENCES AND VETERINARY MEDICINE"]
[203,216298938,"UWIMANA","WIVINE","F",69.684098722415797,"SECOND CLASS HONOURS, LOWER DIVISION","(BSC WITH HONS IN AGRIBUSINESS)","Rural Development and Agricultural Economics","Agriculture and Food Science","COLLEGE OF AGRICULTURE, ANIMAL SCIENCES AND VETERINARY MEDICINE"]
[204,216172136,"UWIRAGIYE","JACQUELINE","F",71.974860627177705,"SECOND CLASS HONOURS, UPPER DIVISION","(BSC WITH HONS IN AGRIBUSINESS)","Rural Development and Agricultural Economics","Agriculture and Food Science","COLLEGE OF AGRICULTURE, ANIMAL SCIENCES AND VETERINARY MEDICINE"]
[205,216103266,"UWISUNZEMARIYA","CHANTAL","F",67.940039924506394,"SECOND CLASS HONOURS, LOWER DIVISION","(BSC WITH HONS IN AGRIBUSINESS)","Rural Development and Agricultural Economics","Agriculture and Food Science","COLLEGE OF AGRICULTURE, ANIMAL SCIENCES AND VETERINARY MEDICINE"]
[206,216175801,"Mukantambiye","Jeannette","F",67.73508299457994,"SECOND CLASS HONOURS, LOWER DIVISION","(BSC WITH HONS IN AGRIBUSINESS)","Rural Development and Agricultural Economics","Agriculture and Food Science","COLLEGE OF AGRICULTURE, ANIMAL SCIENCES AND VETERINARY MEDICINE"]
[207,216082854,"Mutuyimana","Jeannine","F",68.043810975609745,"SECOND CLASS HONOURS, LOWER DIVISION","(BSC WITH HONS IN AGRIBUSINESS)","Rural Development and Agricultural Economics","Agriculture and Food Science","COLLEGE OF AGRICULTURE, ANIMAL SCIENCES AND VETERINARY MEDICINE"]
[208,12214812,"UMUGWANEZA","LILIANE","F",63.574020467836263,"SECOND CLASS HONOURS, LOWER DIVISION","(BSC WITH HONS IN AGRIBUSINESS)","Rural Development and Agricultural Economics","Agriculture and Food Science","COLLEGE OF AGRICULTURE, ANIMAL SCIENCES AND VETERINARY MEDICINE"]
[209,219015717,"HABINEZA","JEAN PIERRE","M",66.624154929577458,"SECOND CLASS HONOURS, LOWER DIVISION","(BSC WITH HONS IN AGRIBUSINESS)","VETERINARY MEDICINE","VETERINARY MEDICINE","COLLEGE OF AGRICULTURE, ANIMAL SCIENCES AND VETERINARY MEDICINE"]
[210,215009080,"BIZIMUNGU","THACIEN","M",{"$f":"'[1]Agricultural Economics'!AJ23","v":70.250792737785673},"SECOND CLASS HONOURS, LOWER DIVISION","(BSC WITH HONS IN AGRICULTURAL ECONOMICS)","Rural Development and Agricultural Economics","Agriculture and Food Science","COLLEGE OF AGRICULTURE, ANIMAL SCIENCES AND VETERINARY MEDICINE"]
[211,216083087,"DUFITEYEZU","MOISE","M",{"$f":"'[1]Agricultural Economics'!AJ24","v":71.694075463831567},"SECOND CLASS HONOURS, LOWER DIVISION","(BSC WITH HONS IN AGRICULTURAL ECONOMICS)","Rural Development and Agricultural Economics","Agriculture and Food Science","COLLEGE OF AGRICULTURE, ANIMAL SCIENCES AND VETERINARY MEDICINE"]
[212,216216788,"HAHIRWA","ISAIE","M",{"$f":"'[1]Agricultural Economics'!AJ26","v":64.295322460309634},"SECOND CLASS HONOURS, LOWER DIVISION","(BSC WITH HONS IN AGRICULTURAL ECONOMICS)","Rural Development and Agricultural Economics","Agriculture and Food Science","COLLEGE OF AGRICULTURE, ANIMAL SCIENCES AND VETERINARY MEDICINE"]
[213,215013494,"HAKIZIMANA","FELICIEN","M",{"$f":"'[1]Agricultural Economics'!AJ27","v":65.187579545329868},"SECOND CLASS HONOURS, LOWER DIVISION","(BSC WITH HONS IN AGRICULTURAL ECONOMICS)","Rural Development and Agricultural Economics","Agriculture and Food Science","COLLEGE OF AGRICULTURE, ANIMAL SCIENCES AND VETERINARY MEDICINE"]
[214,216122694,"HATANGIMANA","VINCENT","M",{"$f":"'[1]Agricultural Economics'!AJ28","v":67.758080735766868},"SECOND CLASS HONOURS, LOWER DIVISION","(BSC WITH HONS IN AGRICULTURAL ECONOMICS)","Rural Development and Agricultural Economics","Agriculture and Food Science","COLLEGE OF AGRICULTURE, ANIMAL SCIENCES AND VETERINARY MEDICINE"]
[215,216077079,"HATEGEKIMANA","FIDELE","M",{"$f":"'[1]Agricultural Economics'!AJ29","v":65.084403272878873},"SECOND CLASS HONOURS, LOWER DIVISION","(BSC WITH HONS IN AGRICULTURAL ECONOMICS)","Rural Development and Agricultural Economics","Agriculture and Food Science","COLLEGE OF AGRICULTURE, ANIMAL SCIENCES AND VETERINARY MEDICINE"]
[216,216097649,"IRADUKUNDA","MARIAM","F",{"$f":"'[1]Agricultural Economics'!AJ30","v":63.607877648310897},"SECOND CLASS HONOURS, LOWER DIVISION","(BSC WITH HONS IN AGRICULTURAL ECONOMICS)","Rural Development and Agricultural Economics","Agriculture and Food Science","COLLEGE OF AGRICULTURE, ANIMAL SCIENCES AND VETERINARY MEDICINE"]
[217,216171148,"IRAKOZE","ROSINE","F",{"$f":"'[1]Agricultural Economics'!AJ31","v":65.211379206302183},"SECOND CLASS HONOURS, LOWER DIVISION","(BSC WITH HONS IN AGRICULTURAL ECONOMICS)","Rural Development and Agricultural Economics","Agriculture and Food Science","COLLEGE OF AGRICULTURE, ANIMAL SCIENCES AND VETERINARY MEDICINE"]
[218,216137861,"KARASIRA","DANIEL","M",{"$f":"'[1]Agricultural Economics'!AJ32","v":73.716069939545548},"SECOND CLASS HONOURS, UPPER DIVISION","(BSC WITH HONS IN AGRICULTURAL ECONOMICS)","Rural Development and Agricultural Economics","Agriculture and Food Science","COLLEGE OF AGRICULTURE, ANIMAL SCIENCES AND VETERINARY MEDICINE"]
[219,216097452,"KWIZERA TUMUSHIME","ISAAC","M",{"$f":"'[1]Agricultural Economics'!AJ33","v":70.112679251286437},"SECOND CLASS HONOURS, LOWER DIVISION","(BSC WITH HONS IN AGRICULTURAL ECONOMICS)","Rural Development and Agricultural Economics","Agriculture and Food Science","COLLEGE OF AGRICULTURE, ANIMAL SCIENCES AND VETERINARY MEDICINE"]
[220,216136369,"MANAYUBAHWE KAZANA","LEONIDAS","M",{"$f":"'[1]Agricultural Economics'!AJ34","v":67.972484228081143},"SECOND CLASS HONOURS, LOWER DIVISION","(BSC WITH HONS IN AGRICULTURAL ECONOMICS)","Rural Development and Agricultural Economics","Agriculture and Food Science","COLLEGE OF AGRICULTURE, ANIMAL SCIENCES AND VETERINARY MEDICINE"]
[221,216289084,"MASENGESHO","ISAIE","M",{"$f":"'[1]Agricultural Economics'!AJ35","v":71.180518882415541},"SECOND CLASS HONOURS, LOWER DIVISION","(BSC WITH HONS IN AGRICULTURAL ECONOMICS)","Rural Development and Agricultural Economics","Agriculture and Food Science","COLLEGE OF AGRICULTURE, ANIMAL SCIENCES AND VETERINARY MEDICINE"]
[222,216168945,"MBONAMPEKA","OLIVIER","M",{"$f":"'[1]Agricultural Economics'!AJ36","v":67.706153160418239},"SECOND CLASS HONOURS, LOWER DIVISION","(BSC WITH HONS IN AGRICULTURAL ECONOMICS)","Rural Development and Agricultural Economics","Agriculture and Food Science","COLLEGE OF AGRICULTURE, ANIMAL SCIENCES AND VETERINARY MEDICINE"]
[223,215010223,"MINANI","ERIC","M",{"$f":"'[1]Agricultural Economics'!AJ37","v":68.572610650296781},"SECOND CLASS HONOURS, LOWER DIVISION","(BSC WITH HONS IN AGRICULTURAL ECONOMICS)","Rural Development and Agricultural Economics","Agriculture and Food Science","COLLEGE OF AGRICULTURE, ANIMAL SCIENCES AND VETERINARY MEDICINE"]
[224,216131979,"MUGABEKAZI","ESTHER","F",{"$f":"'[1]Agricultural Economics'!AJ38","v":66.490410920202308},"SECOND CLASS HONOURS, LOWER DIVISION","(BSC WITH HONS IN AGRICULTURAL ECONOMICS)","Rural Development and Agricultural Economics","Agriculture and Food Science","COLLEGE OF AGRICULTURE, ANIMAL SCIENCES AND VETERINARY MEDICINE"]
[225,216146798,"MUGISHA"," GODFREY","M",{"$f":"'[1]Agricultural Economics'!AJ39","v":69.532772593616627},"SECOND CLASS HONOURS, LOWER DIVISION","(BSC WITH HONS IN AGRICULTURAL ECONOMICS)","Rural Development and Agricultural Economics","Agriculture and Food Science","COLLEGE OF AGRICULTURE, ANIMAL SCIENCES AND VETERINARY MEDICINE"]
[226,216075157,"MUHAWENIMANA","MARIE ANGELIQUE","F",{"$f":"'[1]Agricultural Economics'!AJ40","v":73.184618401852035},"SECOND CLASS HONOURS, UPPER DIVISION","(BSC WITH HONS IN AGRICULTURAL ECONOMICS)","Rural Development and Agricultural Economics","Agriculture and Food Science","COLLEGE OF AGRICULTURE, ANIMAL SCIENCES AND VETERINARY MEDICINE"]
[227,216147255,"MUHINGABIRE","NSABINEMA PACIFIQUE","M",{"$f":"'[1]Agricultural Economics'!AJ41","v":68.49313504602658},"SECOND CLASS HONOURS, LOWER DIVISION","(BSC WITH HONS IN AGRICULTURAL ECONOMICS)","Rural Development and Agricultural Economics","Agriculture and Food Science","COLLEGE OF AGRICULTURE, ANIMAL SCIENCES AND VETERINARY MEDICINE"]
[228,216091152,"MUSHIMIYIMANA","CHARLES","M",{"$f":"'[1]Agricultural Economics'!AJ42","v":68.741532673929981},"SECOND CLASS HONOURS, LOWER DIVISION","(BSC WITH HONS IN AGRICULTURAL ECONOMICS)","Rural Development and Agricultural Economics","Agriculture and Food Science","COLLEGE OF AGRICULTURE, ANIMAL SCIENCES AND VETERINARY MEDICINE"]
[229,216141419,"NDAGIJIMANA","OLIVIER","M",{"$f":"'[1]Agricultural Economics'!AJ43","v":67.646771337349008},"SECOND CLASS HONOURS, LOWER DIVISION","(BSC WITH HONS IN AGRICULTURAL ECONOMICS)","Rural Development and Agricultural Economics","Agriculture and Food Science","COLLEGE OF AGRICULTURE, ANIMAL SCIENCES AND VETERINARY MEDICINE"]
[230,216075718,"NDAYISABA","EUGENE","M",{"$f":"'[1]Agricultural Economics'!AJ44","v":71.971703860965732},"SECOND CLASS HONOURS, LOWER DIVISION","(BSC WITH HONS IN AGRICULTURAL ECONOMICS)","Rural Development and Agricultural Economics","Agriculture and Food Science","COLLEGE OF AGRICULTURE, ANIMAL SCIENCES AND VETERINARY MEDICINE"]
[231,216215064,"NDAYISABA","EGIDE","M",{"$f":"'[1]Agricultural Economics'!AJ45","v":70.619925858266683},"SECOND CLASS HONOURS, LOWER DIVISION","(BSC WITH HONS IN AGRICULTURAL ECONOMICS)","Rural Development and Agricultural Economics","Agriculture and Food Science","COLLEGE OF AGRICULTURE, ANIMAL SCIENCES AND VETERINARY MEDICINE"]
[232,216119588,"NDAYISENGA","SALOMON","M",{"$f":"'[1]Agricultural Economics'!AJ46","v":71.190593874461015},"SECOND CLASS HONOURS, LOWER DIVISION","(BSC WITH HONS IN AGRICULTURAL ECONOMICS)","Rural Development and Agricultural Economics","Agriculture and Food Science","COLLEGE OF AGRICULTURE, ANIMAL SCIENCES AND VETERINARY MEDICINE"]
[233,216161290,"NTAMUHANGA","JOHN","M",{"$f":"'[1]Agricultural Economics'!AJ47","v":71.256673377194588},"SECOND CLASS HONOURS, LOWER DIVISION","(BSC WITH HONS IN AGRICULTURAL ECONOMICS)","Rural Development and Agricultural Economics","Agriculture and Food Science","COLLEGE OF AGRICULTURE, ANIMAL SCIENCES AND VETERINARY MEDICINE"]
[234,216115604,"NTIGURIRWA","HASSAN","M",{"$f":"'[1]Agricultural Economics'!AJ48","v":73.155750075350241},"SECOND CLASS HONOURS, UPPER DIVISION","(BSC WITH HONS IN AGRICULTURAL ECONOMICS)","Rural Development and Agricultural Economics","Agriculture and Food Science","COLLEGE OF AGRICULTURE, ANIMAL SCIENCES AND VETERINARY MEDICINE"]
[235,216168708,"NYIRAGIKWIYE","FORTUNE","F",{"$f":"'[1]Agricultural Economics'!AJ49","v":66.998604857202423},"SECOND CLASS HONOURS, LOWER DIVISION","(BSC WITH HONS IN AGRICULTURAL ECONOMICS)","Rural Development and Agricultural Economics","Agriculture and Food Science","COLLEGE OF AGRICULTURE, ANIMAL SCIENCES AND VETERINARY MEDICINE"]
[236,216197562,"NZABAMWITA","MOISE","M",{"$f":"'[1]Agricultural Economics'!AJ50","v":70.592842044918427},"SECOND CLASS HONOURS, LOWER DIVISION","(BSC WITH HONS IN AGRICULTURAL ECONOMICS)","Rural Development and Agricultural Economics","Agriculture and Food Science","COLLEGE OF AGRICULTURE, ANIMAL SCIENCES AND VETERINARY MEDICINE"]
[237,216161967,"NZEYIMANA","FELIX","M",{"$f":"'[1]Agricultural Economics'!AJ51","v":72.483347953216381},"SECOND CLASS HONOURS, LOWER DIVISION","(BSC WITH HONS IN AGRICULTURAL ECONOMICS)","Rural Development and Agricultural Economics","Agriculture and Food Science","COLLEGE OF AGRICULTURE, ANIMAL SCIENCES AND VETERINARY MEDICINE"]
[238,216119820,"RWAMUGEMA","JEAN PIERRE","M",{"$f":"'[1]Agricultural Economics'!AJ52","v":64.552722946359012},"SECOND CLASS HONOURS, LOWER DIVISION","(BSC WITH HONS IN AGRICULTURAL ECONOMICS)","Rural Development and Agricultural Economics","Agriculture and Food Science","COLLEGE OF AGRICULTURE, ANIMAL SCIENCES AND VETERINARY MEDICINE"]
[239,216171423,"SABAYESU","JEAN NEPOMUSCENE","M",{"$f":"'[1]Agricultural Economics'!AJ53","v":72.195483745323287},"SECOND CLASS HONOURS, UPPER DIVISION","(BSC WITH HONS IN AGRICULTURAL ECONOMICS)","Rural Development and Agricultural Economics","Agriculture and Food Science","COLLEGE OF AGRICULTURE, ANIMAL SCIENCES AND VETERINARY MEDICINE"]
[240,216097096,"SIBOMANA","SIMEON","M",{"$f":"'[1]Agricultural Economics'!AJ54","v":76.062427833185225},"SECOND CLASS HONOURS, LOWER DIVISION","(BSC WITH HONS IN AGRICULTURAL ECONOMICS)","Rural Development and Agricultural Economics","Agriculture and Food Science","COLLEGE OF AGRICULTURE, ANIMAL SCIENCES AND VETERINARY MEDICINE"]
[241,216225213,"SINDAYIGAYA","ALPHONSE","M",{"$f":"'[1]Agricultural Economics'!AJ55","v":62.591191232458883},"SECOND CLASS HONOURS, LOWER DIVISION","(BSC WITH HONS IN AGRICULTURAL ECONOMICS)","Rural Development and Agricultural Economics","Agriculture and Food Science","COLLEGE OF AGRICULTURE, ANIMAL SCIENCES AND VETERINARY MEDICINE"]
[242,216176247,"TUREBIMBERE","ENOCK","M",{"$f":"'[1]Agricultural Economics'!AJ56","v":69.422768808356096},"SECOND CLASS HONOURS, LOWER DIVISION","(BSC WITH HONS IN AGRICULTURAL ECONOMICS)","Rural Development and Agricultural Economics","Agriculture and Food Science","COLLEGE OF AGRICULTURE, ANIMAL SCIENCES AND VETERINARY MEDICINE"]
[243,216090881,"TUYISHIME","VALENS","M",{"$f":"'[1]Agricultural Economics'!AJ57","v":70.87003039180189},"SECOND CLASS HONOURS, LOWER DIVISION","(BSC WITH HONS IN AGRICULTURAL ECONOMICS)","Rural Development and Agricultural Economics","Agriculture and Food Science","COLLEGE OF AGRICULTURE, ANIMAL SCIENCES AND VETERINARY MEDICINE"]
[244,216208904,"USENGIMANA","PIERRE","M",{"$f":"'[1]Agricultural Economics'!AJ58","v":67.259435337875658},"SECOND CLASS HONOURS, LOWER DIVISION","(BSC WITH HONS IN AGRICULTURAL ECONOMICS)","Rural Development and Agricultural Economics","Agriculture and Food Science","COLLEGE OF AGRICULTURE, ANIMAL SCIENCES AND VETERINARY MEDICINE"]
[245,216103118,"UWABAKURIKIZA","ROBERTO AIMABLE","M",{"$f":"'[1]Agricultural Economics'!AJ59","v":69.597245811526946},"SECOND CLASS HONOURS, LOWER DIVISION","(BSC WITH HONS IN AGRICULTURAL ECONOMICS)","Rural Development and Agricultural Economics","Agriculture and Food Science","COLLEGE OF AGRICULTURE, ANIMAL SCIENCES AND VETERINARY MEDICINE"]
[246,216174619,"UWINEZA","ANGE PARFAITE","F",{"$f":"'[1]Agricultural Economics'!AJ60","v":65.807593314900757},"SECOND CLASS HONOURS, LOWER DIVISION","(BSC WITH HONS IN AGRICULTURAL ECONOMICS)","Rural Development and Agricultural Economics","Agriculture and Food Science","COLLEGE OF AGRICULTURE, ANIMAL SCIENCES AND VETERINARY MEDICINE"]
[247,216101859,"UWIZEYIMANA","CHARLES","M",{"$f":"'[1]Agricultural Economics'!AJ61","v":71.21592736139911},"SECOND CLASS HONOURS, LOWER DIVISION","(BSC WITH HONS IN AGRICULTURAL ECONOMICS)","Rural Development and Agricultural Economics","Agriculture and Food Science","COLLEGE OF AGRICULTURE, ANIMAL SCIENCES AND VETERINARY MEDICINE"]
[248,216142636,"UZAYISENGA","THEOGENE","M",{"$f":"'[1]Agricultural Economics'!AJ62","v":68.512216023172371},"SECOND CLASS HONOURS, LOWER DIVISION","(BSC WITH HONS IN AGRICULTURAL ECONOMICS)","Rural Development and Agricultural Economics","Agriculture and Food Science","COLLEGE OF AGRICULTURE, ANIMAL SCIENCES AND VETERINARY MEDICINE"]
[249,216162475," BARURA","JEAN DE DIEU","M",0.69773421052631579,"Second Class Honours, Lower Division","(BSC WITH HONS IN AGRICULTURAL MECHANISATION)","AGRICULTURAL MECHANIZATION","AGRICULTURAL ENGINEERING","COLLEGE OF AGRICULTURE, ANIMAL SCIENCES AND VETERINARY MEDICINE"]
[250,216096987,"  BASEKURU","MONIQUE","F",0.6587078947368421,"Second Class Honours, Lower Division","(BSC WITH HONS IN AGRICULTURAL MECHANISATION)","AGRICULTURAL MECHANIZATION","AGRICULTURAL ENGINEERING","COLLEGE OF AGRICULTURE, ANIMAL SCIENCES AND VETERINARY MEDICINE"]
[251,216094380,"BAZIKI","INNOCENT","M",0.68279999999999996,"Second Class Honours, Lower Division","(BSC WITH HONS IN AGRICULTURAL MECHANISATION)","AGRICULTURAL MECHANIZATION","AGRICULTURAL ENGINEERING","COLLEGE OF AGRICULTURE, ANIMAL SCIENCES AND VETERINARY MEDICINE"]
[252,216178126,"  BICAMUMAKUBA","EMMANUEL","M",0.7866552631578948,"Second Class Honours, Upper Division","(BSC WITH HONS IN AGRICULTURAL MECHANISATION)","AGRICULTURAL MECHANIZATION","AGRICULTURAL ENGINEERING","COLLEGE OF AGRICULTURE, ANIMAL SCIENCES AND VETERINARY MEDICINE"]
[253,215005720," BIGIRIMANA"," JEAN DE LA PAIX","M",0.67982894736842103,"Second Class Honours, Lower Division","(BSC WITH HONS IN AGRICULTURAL MECHANISATION)","AGRICULTURAL MECHANIZATION","AGRICULTURAL ENGINEERING","COLLEGE OF AGRICULTURE, ANIMAL SCIENCES AND VETERINARY MEDICINE"]
[254,216077605," BUCYANAYANDI","MARCEL","M",0.70669999999999999,"Second Class Honours, Lower Division","(BSC WITH HONS IN AGRICULTURAL MECHANISATION)","AGRICULTURAL MECHANIZATION","AGRICULTURAL ENGINEERING","COLLEGE OF AGRICULTURE, ANIMAL SCIENCES AND VETERINARY MEDICINE"]
[255,216295998," BYIRINGIRO","EZECHIEL","M",0.61670263157894734,"Second Class Honours, Lower Division","(BSC WITH HONS IN AGRICULTURAL MECHANISATION)","AGRICULTURAL MECHANIZATION","AGRICULTURAL ENGINEERING","COLLEGE OF AGRICULTURE, ANIMAL SCIENCES AND VETERINARY MEDICINE"]
[256,216169224," DUKUNDIMANA","CHANTAL","F",0.71680526315789483,"Second Class Honours, Lower Division","(BSC WITH HONS IN AGRICULTURAL MECHANISATION)","AGRICULTURAL MECHANIZATION","AGRICULTURAL ENGINEERING","COLLEGE OF AGRICULTURE, ANIMAL SCIENCES AND VETERINARY MEDICINE"]
[257,216106990," GIRITUZE","CHRISTELLA","F",0.63957368421052629,"Second Class Honours, Lower Division","(BSC WITH HONS IN AGRICULTURAL MECHANISATION)","AGRICULTURAL MECHANIZATION","AGRICULTURAL ENGINEERING","COLLEGE OF AGRICULTURE, ANIMAL SCIENCES AND VETERINARY MEDICINE"]
[258,215010651," HARAGIRIMANA","VINCENT","M",0.64336842105263159,"Second Class Honours, Lower Division","(BSC WITH HONS IN AGRICULTURAL MECHANISATION)","AGRICULTURAL MECHANIZATION","AGRICULTURAL ENGINEERING","COLLEGE OF AGRICULTURE, ANIMAL SCIENCES AND VETERINARY MEDICINE"]
[259,216356083," IRAKOZE"," ALAIN CHRISTIAN","M",0.63694473684210517,"Second Class Honours, Lower Division","(BSC WITH HONS IN AGRICULTURAL MECHANISATION)","AGRICULTURAL MECHANIZATION","AGRICULTURAL ENGINEERING","COLLEGE OF AGRICULTURE, ANIMAL SCIENCES AND VETERINARY MEDICINE"]
[260,216131677," ISHIMWE","DESIRE","M",0.62467631578947369,"Second Class Honours, Lower Division","(BSC WITH HONS IN AGRICULTURAL MECHANISATION)","AGRICULTURAL MECHANIZATION","AGRICULTURAL ENGINEERING","COLLEGE OF AGRICULTURE, ANIMAL SCIENCES AND VETERINARY MEDICINE"]
[261,216088232," ISHIMWE","ILDEPHONSE","M",0.60221578947368415,"Second Class Honours, Lower Division","(BSC WITH HONS IN AGRICULTURAL MECHANISATION)","AGRICULTURAL MECHANIZATION","AGRICULTURAL ENGINEERING","COLLEGE OF AGRICULTURE, ANIMAL SCIENCES AND VETERINARY MEDICINE"]
[262,216123445," ISHIMWE","JEAN LOUIS CHRISTIAN","M",0.76958947368421049,"Second Class Honours, Lower Division","(BSC WITH HONS IN AGRICULTURAL MECHANISATION)","AGRICULTURAL MECHANIZATION","AGRICULTURAL ENGINEERING","COLLEGE OF AGRICULTURE, ANIMAL SCIENCES AND VETERINARY MEDICINE"]
[263,216196027," ISHIMWE","SANDRINE","F",0.6779421052631579,"Second Class Honours, Lower Division","(BSC WITH HONS IN AGRICULTURAL MECHANISATION)","AGRICULTURAL MECHANIZATION","AGRICULTURAL ENGINEERING","COLLEGE OF AGRICULTURE, ANIMAL SCIENCES AND VETERINARY MEDICINE"]
[264,216085594," BAMPORIKI"," JEAN D'AMOUR","M",0.68889473684210534,"Second Class Honours, Lower Division","(BSC WITH HONS IN AGRICULTURAL MECHANISATION)","AGRICULTURAL MECHANIZATION","AGRICULTURAL ENGINEERING","COLLEGE OF AGRICULTURE, ANIMAL SCIENCES AND VETERINARY MEDICINE"]
[265,216085594," HABIMANA","MATHIEU","M",0.66680526315789468,"Second Class Honours, Lower Division","(BSC WITH HONS IN AGRICULTURAL MECHANISATION)","AGRICULTURAL MECHANIZATION","AGRICULTURAL ENGINEERING","COLLEGE OF AGRICULTURE, ANIMAL SCIENCES AND VETERINARY MEDICINE"]
[266,215011651," NIYOYITA"," JEAN DE DIEU","M",0.670721052631579,"Second Class Honours, Lower Division","(BSC WITH HONS IN AGRICULTURAL MECHANISATION)","AGRICULTURAL MECHANIZATION","AGRICULTURAL ENGINEERING","COLLEGE OF AGRICULTURE, ANIMAL SCIENCES AND VETERINARY MEDICINE"]
[267,215011651," NYIRAHABIMANA","CECILE","F",0.63397631578947378,"Second Class Honours, Lower Division","(BSC WITH HONS IN AGRICULTURAL MECHANISATION)","AGRICULTURAL MECHANIZATION","AGRICULTURAL ENGINEERING","COLLEGE OF AGRICULTURE, ANIMAL SCIENCES AND VETERINARY MEDICINE"]
[268,216198321," KOMEZUSENGE","Aaron","M",0.68782894736842115,"Second Class Honours, Lower Division","(BSC WITH HONS IN AGRICULTURAL MECHANISATION)","AGRICULTURAL MECHANIZATION","AGRICULTURAL ENGINEERING","COLLEGE OF AGRICULTURE, ANIMAL SCIENCES AND VETERINARY MEDICINE"]
[269,216216346," MANIRAKIZA","MARIE GORETH","F",0.73112631578947374,"Second Class Honours, Lower Division","(BSC WITH HONS IN AGRICULTURAL MECHANISATION)","AGRICULTURAL MECHANIZATION","AGRICULTURAL ENGINEERING","COLLEGE OF AGRICULTURE, ANIMAL SCIENCES AND VETERINARY MEDICINE"]
[270,216078237," MANISHIMWE","JANVIER","M",0.78117368421052635,"Second Class Honours, Upper Division","(BSC WITH HONS IN AGRICULTURAL MECHANISATION)","AGRICULTURAL MECHANIZATION","AGRICULTURAL ENGINEERING","COLLEGE OF AGRICULTURE, ANIMAL SCIENCES AND VETERINARY MEDICINE"]
[271,215008433," MBATUYIMANA "," HONOREE","F",0.6310842105263158,"Second Class Honours, Lower Division","(BSC WITH HONS IN AGRICULTURAL MECHANISATION)","AGRICULTURAL MECHANIZATION","AGRICULTURAL ENGINEERING","COLLEGE OF AGRICULTURE, ANIMAL SCIENCES AND VETERINARY MEDICINE"]
[272,216127254," MBONYI","FIDELE","M",0.66098947368421068,"Second Class Honours, Lower Division","(BSC WITH HONS IN AGRICULTURAL MECHANISATION)","AGRICULTURAL MECHANIZATION","AGRICULTURAL ENGINEERING","COLLEGE OF AGRICULTURE, ANIMAL SCIENCES AND VETERINARY MEDICINE"]
[273,215043389," MPUNGA SIMBI","WILFRIDE","M",0.68273157894736836,"Second Class Honours, Lower Division","(BSC WITH HONS IN AGRICULTURAL MECHANISATION)","AGRICULTURAL MECHANIZATION","AGRICULTURAL ENGINEERING","COLLEGE OF AGRICULTURE, ANIMAL SCIENCES AND VETERINARY MEDICINE"]
[274,216183421," MUGIRANEZA","YVES","M",0.71255526315789486,"Second Class Honours, Lower Division","(BSC WITH HONS IN AGRICULTURAL MECHANISATION)","AGRICULTURAL MECHANIZATION","AGRICULTURAL ENGINEERING","COLLEGE OF AGRICULTURE, ANIMAL SCIENCES AND VETERINARY MEDICINE"]
[275,216107172," MUJYAMBERE","DEOGRATIAS","M",0.70768947368421053,"Second Class Honours, Lower Division","(BSC WITH HONS IN AGRICULTURAL MECHANISATION)","AGRICULTURAL MECHANIZATION","AGRICULTURAL ENGINEERING","COLLEGE OF AGRICULTURE, ANIMAL SCIENCES AND VETERINARY MEDICINE"]
[276,215016667," MUKAMAZIMPAKA","ROSE","F",0.68737894736842098,"Second Class Honours, Lower Division","(BSC WITH HONS IN AGRICULTURAL MECHANISATION)","AGRICULTURAL MECHANIZATION","AGRICULTURAL ENGINEERING","COLLEGE OF AGRICULTURE, ANIMAL SCIENCES AND VETERINARY MEDICINE"]
[277,215022214," MUKANDAHIRO","YOLANDA","F",0.65356315789473685,"Second Class Honours, Lower Division","(BSC WITH HONS IN AGRICULTURAL MECHANISATION)","AGRICULTURAL MECHANIZATION","AGRICULTURAL ENGINEERING","COLLEGE OF AGRICULTURE, ANIMAL SCIENCES AND VETERINARY MEDICINE"]
[278,216116023," MUNYANKUSI","ERIC","M",0.61488684210526312,"Second Class Honours, Lower Division","(BSC WITH HONS IN AGRICULTURAL MECHANISATION)","AGRICULTURAL MECHANIZATION","AGRICULTURAL ENGINEERING","COLLEGE OF AGRICULTURE, ANIMAL SCIENCES AND VETERINARY MEDICINE"]
[279,216130808," MUVARA","OLIVIER","M",0.59791315789473687,"Pass","(BSC WITH HONS IN AGRICULTURAL MECHANISATION)","AGRICULTURAL MECHANIZATION","AGRICULTURAL ENGINEERING","COLLEGE OF AGRICULTURE, ANIMAL SCIENCES AND VETERINARY MEDICINE"]
[280,216158303," NDATIMANA","LEONCE","M",0.7211894736842106,"Second Class Honours, Lower Division","(BSC WITH HONS IN AGRICULTURAL MECHANISATION)","AGRICULTURAL MECHANIZATION","AGRICULTURAL ENGINEERING","COLLEGE OF AGRICULTURE, ANIMAL SCIENCES AND VETERINARY MEDICINE"]
[281,216139309,"NIGENA MAHIRWE"," EMMA REDEMPTA","F",0.62085000000000001,"Second Class Honours, Lower Division","(BSC WITH HONS IN AGRICULTURAL MECHANISATION)","AGRICULTURAL MECHANIZATION","AGRICULTURAL ENGINEERING","COLLEGE OF AGRICULTURE, ANIMAL SCIENCES AND VETERINARY MEDICINE"]
[282,215014259,"  NIYOMUGABO","THEOGENE","M",0.69630526315789465,"Second Class Honours, Lower Division","(BSC WITH HONS IN AGRICULTURAL MECHANISATION)","AGRICULTURAL MECHANIZATION","AGRICULTURAL ENGINEERING","COLLEGE OF AGRICULTURE, ANIMAL SCIENCES AND VETERINARY MEDICINE"]
[283,216132932,"  NIYONGIRA","YVONNE","F",0.73419210526315781,"Second Class Honours, Lower Division","(BSC WITH HONS IN AGRICULTURAL MECHANISATION)","AGRICULTURAL MECHANIZATION","AGRICULTURAL ENGINEERIN+J383:K384G","COLLEGE OF AGRICULTURE, ANIMAL SCIENCES AND VETERINARY MEDICINE"]
[284,216149916," NIYONKURU","JEAN MARIE VIANNEY","M",0.71384210526315783,"Second Class Honours, Lower Division","(BSC WITH HONS IN AGRICULTURAL MECHANISATION)","AGRICULTURAL MECHANIZATION","AGRICULTURAL ENGINEERING","COLLEGE OF AGRICULTURE, ANIMAL SCIENCES AND VETERINARY MEDICINE"]
[285,216218950," NIYONSENGA","OLIVE","F",0.69293605263157898,"Second Class Honours, Lower Division","(BSC WITH HONS IN AGRICULTURAL MECHANISATION)","AGRICULTURAL MECHANIZATION","AGRICULTURAL ENGINEERING","COLLEGE OF AGRICULTURE, ANIMAL SCIENCES AND VETERINARY MEDICINE"]
[286,216229383," NIYONSHUTI","FLORENT","M",0.71548157894736841,"Second Class Honours, Upper Division","(BSC WITH HONS IN AGRICULTURAL MECHANISATION)","AGRICULTURAL MECHANIZATION","AGRICULTURAL ENGINEERING","COLLEGE OF AGRICULTURE, ANIMAL SCIENCES AND VETERINARY MEDICINE"]
[287,216142865," NIYONZIMA","CEDRIC","M",0.68299210526315779,"Second Class Honours, Lower Division","(BSC WITH HONS IN AGRICULTURAL MECHANISATION)","AGRICULTURAL MECHANIZATION","AGRICULTURAL ENGINEERING","COLLEGE OF AGRICULTURE, ANIMAL SCIENCES AND VETERINARY MEDICINE"]
[288,216112850," NIZEYIMANA","FISTON CHARLES","M",0.64668947368421059,"Second Class Honours, Lower Division","(BSC WITH HONS IN AGRICULTURAL MECHANISATION)","AGRICULTURAL MECHANIZATION","AGRICULTURAL ENGINEERING","COLLEGE OF AGRICULTURE, ANIMAL SCIENCES AND VETERINARY MEDICINE"]
[289,216151341," NKURUNZIZA","YVAN","M",0.61186052631578958,"Second Class Honours, Lower Division","(BSC WITH HONS IN AGRICULTURAL MECHANISATION)","AGRICULTURAL MECHANIZATION","AGRICULTURAL ENGINEERING","COLLEGE OF AGRICULTURE, ANIMAL SCIENCES AND VETERINARY MEDICINE"]
[290,216248515,"NSHIMIYIMANA","ERIC ","M",0.73341842105263155,"Second Class Honours, Lower Division","(BSC WITH HONS IN AGRICULTURAL MECHANISATION)","AGRICULTURAL MECHANIZATION","AGRICULTURAL ENGINEERING","COLLEGE OF AGRICULTURE, ANIMAL SCIENCES AND VETERINARY MEDICINE"]
[291,216197961,"NTAKIRUTIMANA ","JACQUELINE","F",0.69074210526315782,"Second Class Honours, Lower Division","(BSC WITH HONS IN AGRICULTURAL MECHANISATION)","AGRICULTURAL MECHANIZATION","AGRICULTURAL ENGINEERING","COLLEGE OF AGRICULTURE, ANIMAL SCIENCES AND VETERINARY MEDICINE"]
[292,216161622," NTAKIRUTIMANA"," NORBERT","M",0.67967894736842094,"Second Class Honours, Lower Division","(BSC WITH HONS IN AGRICULTURAL MECHANISATION)","AGRICULTURAL MECHANIZATION","AGRICULTURAL ENGINEERING","COLLEGE OF AGRICULTURE, ANIMAL SCIENCES AND VETERINARY MEDICINE"]
[293,216186226," NZACAHINYERETSE","ATHANASE","M",0.67908157894736831,"Second Class Honours, Lower Division","(BSC WITH HONS IN AGRICULTURAL MECHANISATION)","AGRICULTURAL MECHANIZATION","AGRICULTURAL ENGINEERING","COLLEGE OF AGRICULTURE, ANIMAL SCIENCES AND VETERINARY MEDICINE"]
[294,216317886," SAMVURA"," JEAN","M",0.6589605263157895,"Second Class Honours, Lower Division","(BSC WITH HONS IN AGRICULTURAL MECHANISATION)","AGRICULTURAL MECHANIZATION","AGRICULTURAL ENGINEERING","COLLEGE OF AGRICULTURE, ANIMAL SCIENCES AND VETERINARY MEDICINE"]
[295,216104351," SHEMA","CHRISTIAN","M",0.62849473684210522,"Second Class Honours, Lower Division","(BSC WITH HONS IN AGRICULTURAL MECHANISATION)","AGRICULTURAL MECHANIZATION","AGRICULTURAL ENGINEERING","COLLEGE OF AGRICULTURE, ANIMAL SCIENCES AND VETERINARY MEDICINE"]
[296,216119677," SINGIZWA RWIZA","CLARISSE","F",0.67535526315789485,"Second Class Honours, Lower Division","(BSC WITH HONS IN AGRICULTURAL MECHANISATION)","AGRICULTURAL MECHANIZATION","AGRICULTURAL ENGINEERING","COLLEGE OF AGRICULTURE, ANIMAL SCIENCES AND VETERINARY MEDICINE"]
[297,216128293," TUYAMBAZE","DIEUDONNE","M",0.7100394736842105,"Second Class Honours, Lower Division","(BSC WITH HONS IN AGRICULTURAL MECHANISATION)","AGRICULTURAL MECHANIZATION","AGRICULTURAL ENGINEERING","COLLEGE OF AGRICULTURE, ANIMAL SCIENCES AND VETERINARY MEDICINE"]
[298,216187397," TUYISENGE","REVERIEN","M",0.61830526315789469,"Second Class Honours, Lower Division","(BSC WITH HONS IN AGRICULTURAL MECHANISATION)","AGRICULTURAL MECHANIZATION","AGRICULTURAL ENGINEERING","COLLEGE OF AGRICULTURE, ANIMAL SCIENCES AND VETERINARY MEDICINE"]
[299,215015175," TUYIZERE","LIBEREE","F",0.59698157894736836,"Pass","(BSC WITH HONS IN AGRICULTURAL MECHANISATION)","AGRICULTURAL MECHANIZATION","AGRICULTURAL ENGINEERING","COLLEGE OF AGRICULTURE, ANIMAL SCIENCES AND VETERINARY MEDICINE"]
[300,216091519," TWIRINGIYIMANA","EMILE","M",0.75487894736842109,"Second Class Honours, Lower Division","(BSC WITH HONS IN AGRICULTURAL MECHANISATION)","AGRICULTURAL MECHANIZATION","AGRICULTURAL ENGINEERING","COLLEGE OF AGRICULTURE, ANIMAL SCIENCES AND VETERINARY MEDICINE"]
[301,216145252,"UHORUYISENGA","EMMANUEL","M",0.68555526315789461,"Second Class Honours, Lower Division","(BSC WITH HONS IN AGRICULTURAL MECHANISATION)","AGRICULTURAL MECHANIZATION","AGRICULTURAL ENGINEERING","COLLEGE OF AGRICULTURE, ANIMAL SCIENCES AND VETERINARY MEDICINE"]
[302,216074223," UMUHOZA","ALINE","F",0.77456842105263146,"Second Class Honours, Upper Division","(BSC WITH HONS IN AGRICULTURAL MECHANISATION)","AGRICULTURAL MECHANIZATION","AGRICULTURAL ENGINEERING","COLLEGE OF AGRICULTURE, ANIMAL SCIENCES AND VETERINARY MEDICINE"]
[303,216125448," UMURERWA NIYOGUSA","BETTER","F",0.65096842105263153,"Second Class Honours, Lower Division","(BSC WITH HONS IN AGRICULTURAL MECHANISATION)","AGRICULTURAL MECHANIZATION","AGRICULTURAL ENGINEERING","COLLEGE OF AGRICULTURE, ANIMAL SCIENCES AND VETERINARY MEDICINE"]
[304,215013870," UWAMARIYA ","VIOLETTE","F",0.71796578947368417,"Second Class Honours, Lower Division","(BSC WITH HONS IN AGRICULTURAL MECHANISATION)","AGRICULTURAL MECHANIZATION","AGRICULTURAL ENGINEERING","COLLEGE OF AGRICULTURE, ANIMAL SCIENCES AND VETERINARY MEDICINE"]
[305,216135478,"  UWIMANA","DENYS","M",0.66196842105263154,"Second Class Honours, Lower Division","(BSC WITH HONS IN AGRICULTURAL MECHANISATION)","AGRICULTURAL MECHANIZATION","AGRICULTURAL ENGINEERING","COLLEGE OF AGRICULTURE, ANIMAL SCIENCES AND VETERINARY MEDICINE"]
[306,215012138," UWAYO","BENITHA","F",0.74308157894736837,"Second Class Honours, Upper Division","(BSC WITH HONS IN AGRICULTURAL MECHANISATION)","AGRICULTURAL MECHANIZATION","AGRICULTURAL ENGINEERING","COLLEGE OF AGRICULTURE, ANIMAL SCIENCES AND VETERINARY MEDICINE"]
[307,215002922,"  VUNINGOMA","LEONARD","M",0.63462368421052628,"Second Class Honours, Lower Division","(BSC WITH HONS IN AGRICULTURAL MECHANISATION)","AGRICULTURAL MECHANIZATION","AGRICULTURAL ENGINEERING","COLLEGE OF AGRICULTURE, ANIMAL SCIENCES AND VETERINARY MEDICINE"]
[308,216080304,"NYIRAMVUYEKURE","VERENE","F",0.76805789371447264,"Second Class Honours, Upper Division","(BSC WITH HONS IN AGRO-FORESTRY)","FORESTRY AND NATURE CONSERVATION","SCHOOL OF FORESTRY, CONSERVATION AND BIODIVERSITY ","COLLEGE OF AGRICULTURE, ANIMAL SCIENCES AND VETERINARY MEDICINE"]
[309,216227607,"ISHIMWE","GISELE","F",0.75162161672391936,"Second Class Honours, Upper Division","(BSC WITH HONS IN AGRO-FORESTRY)","FORESTRY AND NATURE CONSERVATION","SCHOOL OF FORESTRY, CONSERVATION AND BIODIVERSITY ","COLLEGE OF AGRICULTURE, ANIMAL SCIENCES AND VETERINARY MEDICINE"]
[310,216113512,"NIYONSHUTI","ANSELME","M",0.74528832978059956,"Second Class Honours, Lower Division","(BSC WITH HONS IN AGRO-FORESTRY)","FORESTRY AND NATURE CONSERVATION","SCHOOL OF FORESTRY, CONSERVATION AND BIODIVERSITY ","COLLEGE OF AGRICULTURE, ANIMAL SCIENCES AND VETERINARY MEDICINE"]
[311,215004214,"NIYOMUGABO"," SAFARI PHILEMON","M",0.7271954738426778,"Second Class Honours, Lower Division","(BSC WITH HONS IN AGRO-FORESTRY)","FORESTRY AND NATURE CONSERVATION","SCHOOL OF FORESTRY, CONSERVATION AND BIODIVERSITY ","COLLEGE OF AGRICULTURE, ANIMAL SCIENCES AND VETERINARY MEDICINE"]
[312,216073863,"TUYISHIME","AGNES","F",0.72496832865599314,"Second Class Honours, Lower Division","(BSC WITH HONS IN AGRO-FORESTRY)","FORESTRY AND NATURE CONSERVATION","SCHOOL OF FORESTRY, CONSERVATION AND BIODIVERSITY ","COLLEGE OF AGRICULTURE, ANIMAL SCIENCES AND VETERINARY MEDICINE"]
[313,216099927,"IRADUKUNDA","GLORIOSE","F",0.71996214050934437,"Second Class Honours, Lower Division","(BSC WITH HONS IN AGRO-FORESTRY)","FORESTRY AND NATURE CONSERVATION","SCHOOL OF FORESTRY, CONSERVATION AND BIODIVERSITY ","COLLEGE OF AGRICULTURE, ANIMAL SCIENCES AND VETERINARY MEDICINE"]
[314,216316723,"MUSHIMIYIMANA","DYNAMIC","F",0.71375070818253372,"Second Class Honours, Lower Division","(BSC WITH HONS IN AGRO-FORESTRY)","FORESTRY AND NATURE CONSERVATION","SCHOOL OF FORESTRY, CONSERVATION AND BIODIVERSITY ","COLLEGE OF AGRICULTURE, ANIMAL SCIENCES AND VETERINARY MEDICINE"]
[315,216253721,"MANISHIMWE","VALENTINE","M",0.71368041466026666,"Second Class Honours, Lower Division","(BSC WITH HONS IN AGRO-FORESTRY)","FORESTRY AND NATURE CONSERVATION","SCHOOL OF FORESTRY, CONSERVATION AND BIODIVERSITY ","COLLEGE OF AGRICULTURE, ANIMAL SCIENCES AND VETERINARY MEDICINE"]
[316,216141885,"NIYONKURU","CONFIANCE","M",0.71134201146076137,"Second Class Honours, Upper Division","(BSC WITH HONS IN AGRO-FORESTRY)","FORESTRY AND NATURE CONSERVATION","SCHOOL OF FORESTRY, CONSERVATION AND BIODIVERSITY ","COLLEGE OF AGRICULTURE, ANIMAL SCIENCES AND VETERINARY MEDICINE"]
[317,216120292,"MBONYUBUHAMYA","ESTHER","F",0.71069762254375746,"Second Class Honours, Upper Division","(BSC WITH HONS IN AGRO-FORESTRY)","FORESTRY AND NATURE CONSERVATION","SCHOOL OF FORESTRY, CONSERVATION AND BIODIVERSITY ","COLLEGE OF AGRICULTURE, ANIMAL SCIENCES AND VETERINARY MEDICINE"]
[318,216124271,"UWAYEZU","LUCIE","F",0.70800458174866066,"Second Class Honours, Upper Division","(BSC WITH HONS IN AGRO-FORESTRY)","FORESTRY AND NATURE CONSERVATION","SCHOOL OF FORESTRY, CONSERVATION AND BIODIVERSITY ","COLLEGE OF AGRICULTURE, ANIMAL SCIENCES AND VETERINARY MEDICINE"]
[319,216120802,"NYIRANSABIMANA","JOSELYNE","F",0.70571790060268669,"Second Class Honours, Lower Division","(BSC WITH HONS IN AGRO-FORESTRY)","FORESTRY AND NATURE CONSERVATION","SCHOOL OF FORESTRY, CONSERVATION AND BIODIVERSITY ","COLLEGE OF AGRICULTURE, ANIMAL SCIENCES AND VETERINARY MEDICINE"]
[320,216199689,"TWIZEYIMANA","PATRICK","M",0.70046989959054107,"Second Class Honours, Lower Division","(BSC WITH HONS IN AGRO-FORESTRY)","FORESTRY AND NATURE CONSERVATION","SCHOOL OF FORESTRY, CONSERVATION AND BIODIVERSITY ","COLLEGE OF AGRICULTURE, ANIMAL SCIENCES AND VETERINARY MEDICINE"]
[321,215043133,"MUSHIMIYEMARIYA","ANGELIQUE","F",0.70072458076463007,"Second Class Honours, Lower Division","(BSC WITH HONS IN AGRO-FORESTRY)","FORESTRY AND NATURE CONSERVATION","SCHOOL OF FORESTRY, CONSERVATION AND BIODIVERSITY ","COLLEGE OF AGRICULTURE, ANIMAL SCIENCES AND VETERINARY MEDICINE"]
[322,216131227,"TUMUKUNDE","RUTH","F",0.70312518327250229,"Second Class Honours, Lower Division","(BSC WITH HONS IN AGRO-FORESTRY)","FORESTRY AND NATURE CONSERVATION","SCHOOL OF FORESTRY, CONSERVATION AND BIODIVERSITY ","COLLEGE OF AGRICULTURE, ANIMAL SCIENCES AND VETERINARY MEDICINE"]
[323,216253896,"AHISHAKIYE","EGIDE","M",0.69394798382355949,"Second Class Honours, Lower Division","(BSC WITH HONS IN AGRO-FORESTRY)","FORESTRY AND NATURE CONSERVATION","SCHOOL OF FORESTRY, CONSERVATION AND BIODIVERSITY ","COLLEGE OF AGRICULTURE, ANIMAL SCIENCES AND VETERINARY MEDICINE"]
[324,216229278,"HITIMANA","ELYSE","M",0.69091556563867418,"Second Class Honours, Lower Division","(BSC WITH HONS IN AGRO-FORESTRY)","FORESTRY AND NATURE CONSERVATION","SCHOOL OF FORESTRY, CONSERVATION AND BIODIVERSITY ","COLLEGE OF AGRICULTURE, ANIMAL SCIENCES AND VETERINARY MEDICINE"]
[325,216228425,"HAKORIMANA","CLEMENT","M",0.68826874194884069,"Second Class Honours, Lower Division","(BSC WITH HONS IN AGRO-FORESTRY)","FORESTRY AND NATURE CONSERVATION","SCHOOL OF FORESTRY, CONSERVATION AND BIODIVERSITY ","COLLEGE OF AGRICULTURE, ANIMAL SCIENCES AND VETERINARY MEDICINE"]
[326,216252342,"UFITAMAHORO","REGIS","M",0.68659814126845375,"Second Class Honours, Lower Division","(BSC WITH HONS IN AGRO-FORESTRY)","FORESTRY AND NATURE CONSERVATION","SCHOOL OF FORESTRY, CONSERVATION AND BIODIVERSITY ","COLLEGE OF AGRICULTURE, ANIMAL SCIENCES AND VETERINARY MEDICINE"]
[327,216230462,"NIYIGENA","EMMANUEL","M",0.68827851618410829,"Second Class Honours, Lower Division","(BSC WITH HONS IN AGRO-FORESTRY)","FORESTRY AND NATURE CONSERVATION","SCHOOL OF FORESTRY, CONSERVATION AND BIODIVERSITY ","COLLEGE OF AGRICULTURE, ANIMAL SCIENCES AND VETERINARY MEDICINE"]
[328,216140269,"MASENGESHO","PENINE","F",0.68650386762360438,"Second Class Honours, Lower Division","(BSC WITH HONS IN AGRO-FORESTRY)","FORESTRY AND NATURE CONSERVATION","SCHOOL OF FORESTRY, CONSERVATION AND BIODIVERSITY ","COLLEGE OF AGRICULTURE, ANIMAL SCIENCES AND VETERINARY MEDICINE"]
[329,215043313,"BIZIMUNGU","HONORE","M",0.6822214761481209,"Second Class Honours, Lower Division","(BSC WITH HONS IN AGRO-FORESTRY)","FORESTRY AND NATURE CONSERVATION","SCHOOL OF FORESTRY, CONSERVATION AND BIODIVERSITY ","COLLEGE OF AGRICULTURE, ANIMAL SCIENCES AND VETERINARY MEDICINE"]
[330,216261813,"BENEGUSENGA","CLAUDINE","M",0.6811807021377746,"Second Class Honours, Lower Division","(BSC WITH HONS IN AGRO-FORESTRY)","FORESTRY AND NATURE CONSERVATION","SCHOOL OF FORESTRY, CONSERVATION AND BIODIVERSITY ","COLLEGE OF AGRICULTURE, ANIMAL SCIENCES AND VETERINARY MEDICINE"]
[331,216115663,"NIYODUSENGA","FELIX","M",0.67319551179814341,"Second Class Honours, Lower Division","(BSC WITH HONS IN AGRO-FORESTRY)","FORESTRY AND NATURE CONSERVATION","SCHOOL OF FORESTRY, CONSERVATION AND BIODIVERSITY ","COLLEGE OF AGRICULTURE, ANIMAL SCIENCES AND VETERINARY MEDICINE"]
[332,216224357,"UWABABYEYI","MARIE CHANTAL","F",0.67017181353003707,"Second Class Honours, Lower Division","(BSC WITH HONS IN AGRO-FORESTRY)","FORESTRY AND NATURE CONSERVATION","SCHOOL OF FORESTRY, CONSERVATION AND BIODIVERSITY ","COLLEGE OF AGRICULTURE, ANIMAL SCIENCES AND VETERINARY MEDICINE"]
[333,216151317,"NSHIMIYIMANA","IRENE","M",0.65698222176215593,"Second Class Honours, Lower Division","(BSC WITH HONS IN AGRO-FORESTRY)","FORESTRY AND NATURE CONSERVATION","SCHOOL OF FORESTRY, CONSERVATION AND BIODIVERSITY ","COLLEGE OF AGRICULTURE, ANIMAL SCIENCES AND VETERINARY MEDICINE"]
[334,215018500,"NYIRANEZA","CHRISTINE","F",0.65494099369198056,"Second Class Honours, Lower Division","(BSC WITH HONS IN AGRO-FORESTRY)","FORESTRY AND NATURE CONSERVATION","SCHOOL OF FORESTRY, CONSERVATION AND BIODIVERSITY ","COLLEGE OF AGRICULTURE, ANIMAL SCIENCES AND VETERINARY MEDICINE"]
[335,215016724,"NIYOMUREZI","PRUCILLE","F",0.64999685289126097,"Second Class Honours, Lower Division","(BSC WITH HONS IN AGRO-FORESTRY)","FORESTRY AND NATURE CONSERVATION","SCHOOL OF FORESTRY, CONSERVATION AND BIODIVERSITY ","COLLEGE OF AGRICULTURE, ANIMAL SCIENCES AND VETERINARY MEDICINE"]
[336,216240735,"DUSENGUMUREMYI","EMMANUEL","M",0.65012443962652855,"Second Class Honours, Lower Division","(BSC WITH HONS IN AGRO-FORESTRY)","FORESTRY AND NATURE CONSERVATION","SCHOOL OF FORESTRY, CONSERVATION AND BIODIVERSITY ","COLLEGE OF AGRICULTURE, ANIMAL SCIENCES AND VETERINARY MEDICINE"]
[337,216184169,"NKURUNZIZA","HOZANA MAXIMILLIEN COLBE","M",0.65232326778667238,"Second Class Honours, Lower Division","(BSC WITH HONS IN AGRO-FORESTRY)","FORESTRY AND NATURE CONSERVATION","SCHOOL OF FORESTRY, CONSERVATION AND BIODIVERSITY ","COLLEGE OF AGRICULTURE, ANIMAL SCIENCES AND VETERINARY MEDICINE"]
[338,216148618,"MUNYARUKIKO","NOEL","M",0.65359486374371245,"Second Class Honours, Lower Division","(BSC WITH HONS IN AGRO-FORESTRY)","FORESTRY AND NATURE CONSERVATION","SCHOOL OF FORESTRY, CONSERVATION AND BIODIVERSITY ","COLLEGE OF AGRICULTURE, ANIMAL SCIENCES AND VETERINARY MEDICINE"]
[339,215018122,"UWIYOBOYE","MEDIATRICE","F",0.64869000909908803,"Second Class Honours, Lower Division","(BSC WITH HONS IN AGRO-FORESTRY)","FORESTRY AND NATURE CONSERVATION","SCHOOL OF FORESTRY, CONSERVATION AND BIODIVERSITY ","COLLEGE OF AGRICULTURE, ANIMAL SCIENCES AND VETERINARY MEDICINE"]
[340,215017614,"TETERO BIENVENUE","HONORE","M",0.64604120419419753,"Second Class Honours, Lower Division","(BSC WITH HONS IN AGRO-FORESTRY)","FORESTRY AND NATURE CONSERVATION","SCHOOL OF FORESTRY, CONSERVATION AND BIODIVERSITY ","COLLEGE OF AGRICULTURE, ANIMAL SCIENCES AND VETERINARY MEDICINE"]
[341,216137713,"NSENGIYUMVA","DAVID","M",0.64102833413844929,"Second Class Honours, Lower Division","(BSC WITH HONS IN AGRO-FORESTRY)","FORESTRY AND NATURE CONSERVATION","SCHOOL OF FORESTRY, CONSERVATION AND BIODIVERSITY ","COLLEGE OF AGRICULTURE, ANIMAL SCIENCES AND VETERINARY MEDICINE"]
[342,216115280,"BENIMANA","GILBERT","M",0.7121474884119956,"Second Class Honours, Upper Division","(BSC WITH HONS IN CROP PRODUCTION)","CROP SCIENCES","Agriculture and Food Science","COLLEGE OF AGRICULTURE, ANIMAL SCIENCES AND VETERINARY MEDICINE"]
[343,216141664,"BYIRINGIRO","SAMUEL","M",0.61674405449451397,"Second Class Honours, Lower Division","(BSC WITH HONS IN CROP PRODUCTION)","CROP SCIENCES","Agriculture and Food Science","COLLEGE OF AGRICULTURE, ANIMAL SCIENCES AND VETERINARY MEDICINE"]
[344,216142571,"BYIRINGIRO","DAVID","M",0.755115738390709,"Second Class Honours, Lower Division","(BSC WITH HONS IN CROP PRODUCTION)","CROP SCIENCES","Agriculture and Food Science","COLLEGE OF AGRICULTURE, ANIMAL SCIENCES AND VETERINARY MEDICINE"]
[345,216086078,"BYIRINGIRO","MOISE","M",0.74577862549559515,"Second Class Honours, Upper Division","(BSC WITH HONS IN CROP PRODUCTION)","CROP SCIENCES","Agriculture and Food Science","COLLEGE OF AGRICULTURE, ANIMAL SCIENCES AND VETERINARY MEDICINE"]
[346,216164354,"BYUMVUHORE","SIXBERT","M",0.68336711459989086,"Second Class Honours, Lower Division","(BSC WITH HONS IN CROP PRODUCTION)","CROP SCIENCES","Agriculture and Food Science","COLLEGE OF AGRICULTURE, ANIMAL SCIENCES AND VETERINARY MEDICINE"]
[347,216246350,"DUSENGIMANA","JEAN CLAUDE","M",0.70371703720421452,"Second Class Honours, Lower Division","(BSC WITH HONS IN CROP PRODUCTION)","CROP SCIENCES","Agriculture and Food Science","COLLEGE OF AGRICULTURE, ANIMAL SCIENCES AND VETERINARY MEDICINE"]
[348,216175852,"DUSHIMIRIMANA","ERIC","M",0.74212155904514399,"Second Class Honours, Upper Division","(BSC WITH HONS IN CROP PRODUCTION)","CROP SCIENCES","Agriculture and Food Science","COLLEGE OF AGRICULTURE, ANIMAL SCIENCES AND VETERINARY MEDICINE"]
[349,216085306,"GAHONZIRE","NIYONKURU BRUCE","M",0.6777760303843352,"Second Class Honours, Lower Division","(BSC WITH HONS IN CROP PRODUCTION)","CROP SCIENCES","Agriculture and Food Science","COLLEGE OF AGRICULTURE, ANIMAL SCIENCES AND VETERINARY MEDICINE"]
[350,216123437,"GATO","RONALD","M",0.67462286199425248,"Second Class Honours, Lower Division","(BSC WITH HONS IN CROP PRODUCTION)","CROP SCIENCES","Agriculture and Food Science","COLLEGE OF AGRICULTURE, ANIMAL SCIENCES AND VETERINARY MEDICINE"]
[351,215010044,"HABIMANA","ELISSA","M",0.601673615695417,"Second Class Honours, Lower Division","(BSC WITH HONS IN CROP PRODUCTION)","CROP SCIENCES","Agriculture and Food Science","COLLEGE OF AGRICULTURE, ANIMAL SCIENCES AND VETERINARY MEDICINE"]
[352,216072727,"HAKIZIMANA","INNOCENT","M",0.66617203136725378,"Second Class Honours, Lower Division","(BSC WITH HONS IN CROP PRODUCTION)","CROP SCIENCES","Agriculture and Food Science","COLLEGE OF AGRICULTURE, ANIMAL SCIENCES AND VETERINARY MEDICINE"]
[353,216316774,"IBIRIMIMANA","JANVIER","M",0.65611728918240397,"Second Class Honours, Lower Division","(BSC WITH HONS IN CROP PRODUCTION)","CROP SCIENCES","Agriculture and Food Science","COLLEGE OF AGRICULTURE, ANIMAL SCIENCES AND VETERINARY MEDICINE"]
[354,216121019,"IMFURAYACU","CHARLOTTE","F",0.66603957685668147,"Second Class Honours, Lower Division","(BSC WITH HONS IN CROP PRODUCTION)","CROP SCIENCES","Agriculture and Food Science","COLLEGE OF AGRICULTURE, ANIMAL SCIENCES AND VETERINARY MEDICINE"]
[355,216093090,"IRADUKUNDA","CHARLINE","F",0.63245636167341435,"Second Class Honours, Lower Division","(BSC WITH HONS IN CROP PRODUCTION)","CROP SCIENCES","Agriculture and Food Science","COLLEGE OF AGRICULTURE, ANIMAL SCIENCES AND VETERINARY MEDICINE"]
[356,215043561,"IRAGIRE","OLIVIER","M",0.69677929330664723,"Second Class Honours, Lower Division","(BSC WITH HONS IN CROP PRODUCTION)","CROP SCIENCES","Agriculture and Food Science","COLLEGE OF AGRICULTURE, ANIMAL SCIENCES AND VETERINARY MEDICINE"]
[357,216186005,"IRAGUHA","JANVIER","M",0.63708737418411809,"Second Class Honours, Lower Division","(BSC WITH HONS IN CROP PRODUCTION)","CROP SCIENCES","Agriculture and Food Science","COLLEGE OF AGRICULTURE, ANIMAL SCIENCES AND VETERINARY MEDICINE"]
[358,216074797,"IRAKIZA","ATHANASE","M",0.64423936857612252,"Second Class Honours, Lower Division","(BSC WITH HONS IN CROP PRODUCTION)","CROP SCIENCES","Agriculture and Food Science","COLLEGE OF AGRICULTURE, ANIMAL SCIENCES AND VETERINARY MEDICINE"]
[359,216219841,"IRIBAGIZA","GRACE","F",0.63195416140267047,"Second Class Honours, Lower Division","(BSC WITH HONS IN CROP PRODUCTION)","CROP SCIENCES","Agriculture and Food Science","COLLEGE OF AGRICULTURE, ANIMAL SCIENCES AND VETERINARY MEDICINE"]
[360,216152453,"ISHIMWE","JOSIANE","F",0.65209965187050101,"Second Class Honours, Lower Division","(BSC WITH HONS IN CROP PRODUCTION)","CROP SCIENCES","Agriculture and Food Science","COLLEGE OF AGRICULTURE, ANIMAL SCIENCES AND VETERINARY MEDICINE"]
[361,216208084,"ISHIMWE","PROVIDENCE","M",0.67014911177609582,"Second Class Honours, Lower Division","(BSC WITH HONS IN CROP PRODUCTION)","CROP SCIENCES","Agriculture and Food Science","COLLEGE OF AGRICULTURE, ANIMAL SCIENCES AND VETERINARY MEDICINE"]
[362,216251036,"ISHIMWE","AGASARO DARLENE","F",0.70084628668242499,"Second Class Honours, Lower Division","(BSC WITH HONS IN CROP PRODUCTION)","CROP SCIENCES","Agriculture and Food Science","COLLEGE OF AGRICULTURE, ANIMAL SCIENCES AND VETERINARY MEDICINE"]
[363,216095115,"IZERE","NADIA NANCY","F",0.66313278171467205,"Second Class Honours, Lower Division","(BSC WITH HONS IN CROP PRODUCTION)","CROP SCIENCES","Agriculture and Food Science","COLLEGE OF AGRICULTURE, ANIMAL SCIENCES AND VETERINARY MEDICINE"]
[364,216082080,"KAMPILE","NEVADIE","F",0.61292142864179455,"Second Class Honours, Lower Division","(BSC WITH HONS IN CROP PRODUCTION)","CROP SCIENCES","Agriculture and Food Science","COLLEGE OF AGRICULTURE, ANIMAL SCIENCES AND VETERINARY MEDICINE"]
[365,216113067,"KARENZI RUKUNDO","MODESTE","M",0.69617003082638373,"Second Class Honours, Lower Division","(BSC WITH HONS IN CROP PRODUCTION)","CROP SCIENCES","Agriculture and Food Science","COLLEGE OF AGRICULTURE, ANIMAL SCIENCES AND VETERINARY MEDICINE"]
[366,216123003,"KAYISIRE","JEANINE","F",0.67797383322017424,"Second Class Honours, Lower Division","(BSC WITH HONS IN CROP PRODUCTION)","CROP SCIENCES","Agriculture and Food Science","COLLEGE OF AGRICULTURE, ANIMAL SCIENCES AND VETERINARY MEDICINE"]
[367,216231248,"KAYITESI","MARY","F",0.6448036917198382,"Second Class Honours, Lower Division","(BSC WITH HONS IN CROP PRODUCTION)","CROP SCIENCES","Agriculture and Food Science","COLLEGE OF AGRICULTURE, ANIMAL SCIENCES AND VETERINARY MEDICINE"]
[368,216114365,"MAHIRWE","APHRODIS","M",0.7431015767867567,"Second Class Honours, Upper Division","(BSC WITH HONS IN CROP PRODUCTION)","CROP SCIENCES","Agriculture and Food Science","COLLEGE OF AGRICULTURE, ANIMAL SCIENCES AND VETERINARY MEDICINE"]
[369,216106559,"MANISHIMWE","PROTAIS","M",0.63042117239168161,"Second Class Honours, Lower Division","(BSC WITH HONS IN CROP PRODUCTION)","CROP SCIENCES","Agriculture and Food Science","COLLEGE OF AGRICULTURE, ANIMAL SCIENCES AND VETERINARY MEDICINE"]
[370,216108721,"MBONIGABA","EMMANUEL","M",0.69220378250402903,"Second Class Honours, Lower Division","(BSC WITH HONS IN CROP PRODUCTION)","CROP SCIENCES","Agriculture and Food Science","COLLEGE OF AGRICULTURE, ANIMAL SCIENCES AND VETERINARY MEDICINE"]
[371,216149142,"MBONIMPAYE","THEOGENE","M",0.70383365657278207,"Second Class Honours, Lower Division","(BSC WITH HONS IN CROP PRODUCTION)","CROP SCIENCES","Agriculture and Food Science","COLLEGE OF AGRICULTURE, ANIMAL SCIENCES AND VETERINARY MEDICINE"]
[372,216319056,"MUHORAKEYE","ZAINAB","F",0.62649712652031408,"Second Class Honours, Lower Division","(BSC WITH HONS IN CROP PRODUCTION)","CROP SCIENCES","Agriculture and Food Science","COLLEGE OF AGRICULTURE, ANIMAL SCIENCES AND VETERINARY MEDICINE"]
[373,216193451,"MUKABIBUTSUHOZE","ALOYSIE","F",0.68968848550856987,"Second Class Honours, Lower Division","(BSC WITH HONS IN CROP PRODUCTION)","CROP SCIENCES","Agriculture and Food Science","COLLEGE OF AGRICULTURE, ANIMAL SCIENCES AND VETERINARY MEDICINE"]
[374,216076633,"MUKAHIRWA","VERENE","F",0.66077231918491008,"Second Class Honours, Lower Division","(BSC WITH HONS IN CROP PRODUCTION)","CROP SCIENCES","Agriculture and Food Science","COLLEGE OF AGRICULTURE, ANIMAL SCIENCES AND VETERINARY MEDICINE"]
[375,215046331,"MUSABIMANA","SANDRINE","F",0.64590276810877312,"Second Class Honours, Lower Division","(BSC WITH HONS IN CROP PRODUCTION)","CROP SCIENCES","Agriculture and Food Science","COLLEGE OF AGRICULTURE, ANIMAL SCIENCES AND VETERINARY MEDICINE"]
[376,216253195,"MUSABYIMANA","DELPHINE","F",0.62469448492678181,"Second Class Honours, Lower Division","(BSC WITH HONS IN CROP PRODUCTION)","CROP SCIENCES","Agriculture and Food Science","COLLEGE OF AGRICULTURE, ANIMAL SCIENCES AND VETERINARY MEDICINE"]
[377,216077265,"MUYOBOKE","AIMABLE","M",0.63988674115461597,"Second Class Honours, Lower Division","(BSC WITH HONS IN CROP PRODUCTION)","CROP SCIENCES","Agriculture and Food Science","COLLEGE OF AGRICULTURE, ANIMAL SCIENCES AND VETERINARY MEDICINE"]
[378,216142253,"NABARAMIJE","SANDRINE","M",0.65130145460387889,"Second Class Honours, Lower Division","(BSC WITH HONS IN CROP PRODUCTION)","CROP SCIENCES","Agriculture and Food Science","COLLEGE OF AGRICULTURE, ANIMAL SCIENCES AND VETERINARY MEDICINE"]
[379,215002628,"NDAYAMBAJE","DESIRE","M",0.62966716903672226,"Second Class Honours, Lower Division","(BSC WITH HONS IN CROP PRODUCTION)","CROP SCIENCES","Agriculture and Food Science","COLLEGE OF AGRICULTURE, ANIMAL SCIENCES AND VETERINARY MEDICINE"]
[380,216127955,"NDIBAREMA","EPHRAIM","M",0.66846038784251605,"Second Class Honours, Lower Division","(BSC WITH HONS IN CROP PRODUCTION)","CROP SCIENCES","Agriculture and Food Science","COLLEGE OF AGRICULTURE, ANIMAL SCIENCES AND VETERINARY MEDICINE"]
[381,216088747,"NDUTIYE","PROVIDENCE","F",0.64459899137475785,"Second Class Honours, Lower Division","(BSC WITH HONS IN CROP PRODUCTION)","CROP SCIENCES","Agriculture and Food Science","COLLEGE OF AGRICULTURE, ANIMAL SCIENCES AND VETERINARY MEDICINE"]
[382,216101697,"NGABONZIMA","METHODE","M",0.6704106945125311,"Second Class Honours, Lower Division","(BSC WITH HONS IN CROP PRODUCTION)","CROP SCIENCES","Agriculture and Food Science","COLLEGE OF AGRICULTURE, ANIMAL SCIENCES AND VETERINARY MEDICINE"]
[383,216073979,"NGABONZIZA","EUGEN","M",0.67065062418378718,"Second Class Honours, Lower Division","(BSC WITH HONS IN CROP PRODUCTION)","CROP SCIENCES","Agriculture and Food Science","COLLEGE OF AGRICULTURE, ANIMAL SCIENCES AND VETERINARY MEDICINE"]
[384,216165792,"NIWEMFURA","ALICE","F",0.67150741556650817,"Second Class Honours, Lower Division","(BSC WITH HONS IN CROP PRODUCTION)","CROP SCIENCES","Agriculture and Food Science","COLLEGE OF AGRICULTURE, ANIMAL SCIENCES AND VETERINARY MEDICINE"]
[385,216249163,"NIYIGENA","VESTINE","F",0.61152624348937823,"Second Class Honours, Lower Division","(BSC WITH HONS IN CROP PRODUCTION)","CROP SCIENCES","Agriculture and Food Science","COLLEGE OF AGRICULTURE, ANIMAL SCIENCES AND VETERINARY MEDICINE"]
[386,216313805,"NIYIGENA","SYDONIA","F",0.65738768961073246,"Second Class Honours, Lower Division","(BSC WITH HONS IN CROP PRODUCTION)","CROP SCIENCES","Agriculture and Food Science","COLLEGE OF AGRICULTURE, ANIMAL SCIENCES AND VETERINARY MEDICINE"]
[387,216093821,"NIYIGENA","JEANNE D'ARC","F",0.63268931738208389,"Second Class Honours, Lower Division","(BSC WITH HONS IN CROP PRODUCTION)","CROP SCIENCES","Agriculture and Food Science","COLLEGE OF AGRICULTURE, ANIMAL SCIENCES AND VETERINARY MEDICINE"]
[388,215006195,"NIYITEGEKA","JEAN PAUL","M",0.6358797894192002,"Second Class Honours, Lower Division","(BSC WITH HONS IN CROP PRODUCTION)","CROP SCIENCES","Agriculture and Food Science","COLLEGE OF AGRICULTURE, ANIMAL SCIENCES AND VETERINARY MEDICINE"]
[389,215043011,"NIYITEGEKA","DROCELLA","F",0.64470470923436041,"Second Class Honours, Lower Division","(BSC WITH HONS IN CROP PRODUCTION)","CROP SCIENCES","Agriculture and Food Science","COLLEGE OF AGRICULTURE, ANIMAL SCIENCES AND VETERINARY MEDICINE"]
[390,215045971,"NIYOBUHUNGIRO","EZECHIEL","M",0.63609956289343761,"Second Class Honours, Lower Division","(BSC WITH HONS IN CROP PRODUCTION)","CROP SCIENCES","Agriculture and Food Science","COLLEGE OF AGRICULTURE, ANIMAL SCIENCES AND VETERINARY MEDICINE"]
[391,216194148,"NIYOMUFASHA","CLAUDINE","F",0.66404642702359651,"Second Class Honours, Lower Division","(BSC WITH HONS IN CROP PRODUCTION)","CROP SCIENCES","Agriculture and Food Science","COLLEGE OF AGRICULTURE, ANIMAL SCIENCES AND VETERINARY MEDICINE"]
[392,216153514,"NIYOMUHOZA","MARIE ROSE","F",0.7035937817070621,"Second Class Honours, Lower Division","(BSC WITH HONS IN CROP PRODUCTION)","CROP SCIENCES","Agriculture and Food Science","COLLEGE OF AGRICULTURE, ANIMAL SCIENCES AND VETERINARY MEDICINE"]
[393,216108713,"NIYONSENGA","HERITIER","M",0.66522013675305569,"Second Class Honours, Lower Division","(BSC WITH HONS IN CROP PRODUCTION)","CROP SCIENCES","Agriculture and Food Science","COLLEGE OF AGRICULTURE, ANIMAL SCIENCES AND VETERINARY MEDICINE"]
[394,216188393,"NIYONSENGA","THEOGENE","M",0.71898722018256356,"Second Class Honours, Lower Division","(BSC WITH HONS IN CROP PRODUCTION)","CROP SCIENCES","Agriculture and Food Science","COLLEGE OF AGRICULTURE, ANIMAL SCIENCES AND VETERINARY MEDICINE"]
[395,216103975,"NIYOYITA","ANNE MARIE","F",0.68839708145084,"Second Class Honours, Lower Division","(BSC WITH HONS IN CROP PRODUCTION)","CROP SCIENCES","Agriculture and Food Science","COLLEGE OF AGRICULTURE, ANIMAL SCIENCES AND VETERINARY MEDICINE"]
[396,216119219,"NIZEYIMANA","INNOCENT","M",0.70955344611528814,"Second Class Honours, Upper Division","(BSC WITH HONS IN CROP PRODUCTION)","CROP SCIENCES","Agriculture and Food Science","COLLEGE OF AGRICULTURE, ANIMAL SCIENCES AND VETERINARY MEDICINE"]
[397,215003449,"NKURUNZIZA","ALOYS","M",0.61523432284328139,"Second Class Honours, Lower Division","(BSC WITH HONS IN CROP PRODUCTION)","CROP SCIENCES","Agriculture and Food Science","COLLEGE OF AGRICULTURE, ANIMAL SCIENCES AND VETERINARY MEDICINE"]
[398,216141400,"NSANZIMANA","EDOUARD","M",0.65059921895931949,"Second Class Honours, Lower Division","(BSC WITH HONS IN CROP PRODUCTION)","CROP SCIENCES","Agriculture and Food Science","COLLEGE OF AGRICULTURE, ANIMAL SCIENCES AND VETERINARY MEDICINE"]
[399,216111331,"NSHIMIYIMANA","CLEMENT","M",0.63756720957681567,"Second Class Honours, Lower Division","(BSC WITH HONS IN CROP PRODUCTION)","CROP SCIENCES","Agriculture and Food Science","COLLEGE OF AGRICULTURE, ANIMAL SCIENCES AND VETERINARY MEDICINE"]
[400,216119235,"NYIRANSENGIYUMVA","DATIVE","F",0.61733211551663436,"Second Class Honours, Lower Division","(BSC WITH HONS IN CROP PRODUCTION)","CROP SCIENCES","Agriculture and Food Science","COLLEGE OF AGRICULTURE, ANIMAL SCIENCES AND VETERINARY MEDICINE"]
[401,216264545,"NZABO-MUNEZERO","FABRICE","M",0.69209049674353096,"Second Class Honours, Lower Division","(BSC WITH HONS IN CROP PRODUCTION)","CROP SCIENCES","Agriculture and Food Science","COLLEGE OF AGRICULTURE, ANIMAL SCIENCES AND VETERINARY MEDICINE"]
[402,216197538,"RUKUNDO","JACQUES ROGER","M",0.6686862649146188,"Second Class Honours, Lower Division","(BSC WITH HONS IN CROP PRODUCTION)","CROP SCIENCES","Agriculture and Food Science","COLLEGE OF AGRICULTURE, ANIMAL SCIENCES AND VETERINARY MEDICINE"]
[403,215007140,"SEBABUMBYI","JEAN PAUL","M",0.61420538337692054,"Second Class Honours, Lower Division","(BSC WITH HONS IN CROP PRODUCTION)","CROP SCIENCES","Agriculture and Food Science","COLLEGE OF AGRICULTURE, ANIMAL SCIENCES AND VETERINARY MEDICINE"]
[404,216163595,"SIBOMANA","PHILOS","M",0.67966501408710112,"Second Class Honours, Lower Division","(BSC WITH HONS IN CROP PRODUCTION)","CROP SCIENCES","Agriculture and Food Science","COLLEGE OF AGRICULTURE, ANIMAL SCIENCES AND VETERINARY MEDICINE"]
[405,216294606,"SIBOMANA","PHILBERT","M",0.63589286210244855,"Second Class Honours, Lower Division","(BSC WITH HONS IN CROP PRODUCTION)","CROP SCIENCES","Agriculture and Food Science","COLLEGE OF AGRICULTURE, ANIMAL SCIENCES AND VETERINARY MEDICINE"]
[406,216150205,"TUYISHIME","CLAUDETTE","F",0.63246875032017646,"Second Class Honours, Lower Division","(BSC WITH HONS IN CROP PRODUCTION)","CROP SCIENCES","Agriculture and Food Science","COLLEGE OF AGRICULTURE, ANIMAL SCIENCES AND VETERINARY MEDICINE"]
[407,216198100,"TUYISHIME","VALENS","M",0.65498346956680553,"Second Class Honours, Lower Division","(BSC WITH HONS IN CROP PRODUCTION)","CROP SCIENCES","Agriculture and Food Science","COLLEGE OF AGRICULTURE, ANIMAL SCIENCES AND VETERINARY MEDICINE"]
[408,216247845,"TUYISHIME","PACIFIQUE","M",0.65672469286929702,"Second Class Honours, Lower Division","(BSC WITH HONS IN CROP PRODUCTION)","CROP SCIENCES","Agriculture and Food Science","COLLEGE OF AGRICULTURE, ANIMAL SCIENCES AND VETERINARY MEDICINE"]
[409,216123127,"TUYISHIMIRE","CATHERINE","F",0.66490780143712114,"Second Class Honours, Lower Division","(BSC WITH HONS IN CROP PRODUCTION)","CROP SCIENCES","Agriculture and Food Science","COLLEGE OF AGRICULTURE, ANIMAL SCIENCES AND VETERINARY MEDICINE"]
[410,215043545,"TWAMBAZIMANA","THEODORE","M",0.63829208054626529,"Second Class Honours, Lower Division","(BSC WITH HONS IN CROP PRODUCTION)","CROP SCIENCES","Agriculture and Food Science","COLLEGE OF AGRICULTURE, ANIMAL SCIENCES AND VETERINARY MEDICINE"]
[411,216104181,"TWIZERE","PATIENCE","F",0.65084125568861861,"Second Class Honours, Lower Division","(BSC WITH HONS IN CROP PRODUCTION)","CROP SCIENCES","Agriculture and Food Science","COLLEGE OF AGRICULTURE, ANIMAL SCIENCES AND VETERINARY MEDICINE"]
[412,216206014,"TWIZEYIMANA","ANGE JUDITH","F",0.67847749781258726,"Second Class Honours, Lower Division","(BSC WITH HONS IN CROP PRODUCTION)","CROP SCIENCES","Agriculture and Food Science","COLLEGE OF AGRICULTURE, ANIMAL SCIENCES AND VETERINARY MEDICINE"]
[413,216172969,"UMUBYEYI"," BENIE RAISSA","F",0.70870668435456707,"Second Class Honours, Lower Division","(BSC WITH HONS IN CROP PRODUCTION)","CROP SCIENCES","Agriculture and Food Science","COLLEGE OF AGRICULTURE, ANIMAL SCIENCES AND VETERINARY MEDICINE"]
[414,216197082,"UMUTONI","ADELINE","F",0.71795897776797657,"Second Class Honours, Lower Division","(BSC WITH HONS IN CROP PRODUCTION)","CROP SCIENCES","Agriculture and Food Science","COLLEGE OF AGRICULTURE, ANIMAL SCIENCES AND VETERINARY MEDICINE"]
[415,216136482,"UMUTONI INGABIRE","NANCY","F",0.6780891469811654,"Second Class Honours, Lower Division","(BSC WITH HONS IN CROP PRODUCTION)","CROP SCIENCES","Agriculture and Food Science","COLLEGE OF AGRICULTURE, ANIMAL SCIENCES AND VETERINARY MEDICINE"]
[416,216208769,"USANASE","ABDU","M",0.78573672064159694,"Second Class Honours, Lower Division","(BSC WITH HONS IN CROP PRODUCTION)","CROP SCIENCES","Agriculture and Food Science","COLLEGE OF AGRICULTURE, ANIMAL SCIENCES AND VETERINARY MEDICINE"]
[417,216150841,"UWAJENEZA","ALICE","F",0.73361113201934158,"Second Class Honours, Upper Division","(BSC WITH HONS IN CROP PRODUCTION)","CROP SCIENCES","Agriculture and Food Science","COLLEGE OF AGRICULTURE, ANIMAL SCIENCES AND VETERINARY MEDICINE"]
[418,216333954,"UWIMBABAZI","LAURENCE","F",0.61853361634018145,"Second Class Honours, Lower Division","(BSC WITH HONS IN CROP PRODUCTION)","CROP SCIENCES","Agriculture and Food Science","COLLEGE OF AGRICULTURE, ANIMAL SCIENCES AND VETERINARY MEDICINE"]
[419,216211220,"UWINEMA","MARIE JEANNE","F",0.59408069949539399,"Pass","(BSC WITH HONS IN CROP PRODUCTION)","CROP SCIENCES","Agriculture and Food Science","COLLEGE OF AGRICULTURE, ANIMAL SCIENCES AND VETERINARY MEDICINE"]
[420,216189837,"UWITONZE","SONIA","F",0.70032679145540311,"Second Class Honours, Lower Division","(BSC WITH HONS IN CROP PRODUCTION)","CROP SCIENCES","Agriculture and Food Science","COLLEGE OF AGRICULTURE, ANIMAL SCIENCES AND VETERINARY MEDICINE"]
[421,216165296,"UWIZEYIMANA","MARIE GRACE","F",0.70224448410488904,"Second Class Honours, Lower Division","(BSC WITH HONS IN CROP PRODUCTION)","CROP SCIENCES","Agriculture and Food Science","COLLEGE OF AGRICULTURE, ANIMAL SCIENCES AND VETERINARY MEDICINE"]
[422,216172578,"BIMENYIMANA NDEMEZO","ERIC","M",0.69850524766347311,"Second Class Honours, Lower Division","(BSC WITH HONS IN CROP PRODUCTION)","CROP SCIENCES","Agriculture and Food Science","COLLEGE OF AGRICULTURE, ANIMAL SCIENCES AND VETERINARY MEDICINE"]
[423,216293251,"HABIYAREMYE","FANUEL","M",61.652871811845678,"SECOND CLASS HONOURS, LOWER DIVISION","(BSC WITH HONS IN CROP PRODUCTION)","CROP SCIENCES","Agriculture and Food Science","COLLEGE OF AGRICULTURE, ANIMAL SCIENCES AND VETERINARY MEDICINE"]
[424,216175437,"NIRAGIRE"," FABIOLA","F",59.418170614035077,"PASS","(BSC WITH HONS IN CROP PRODUCTION)","CROP SCIENCES","Agriculture and Food Science","COLLEGE OF AGRICULTURE, ANIMAL SCIENCES AND VETERINARY MEDICINE"]
[425,216331285,"NSHIMIYIMANA","EVARISTE","M",62.860174079848456,"SECOND CLASS HONOURS, LOWER DIVISION","(BSC WITH HONS IN CROP PRODUCTION)","CROP SCIENCES","Agriculture and Food Science","COLLEGE OF AGRICULTURE, ANIMAL SCIENCES AND VETERINARY MEDICINE"]
[426,215005901,"NYIRAMINANI","BERTHILDE","F",60.70069886610338,"SECOND CLASS HONOURS, LOWER DIVISION","(BSC WITH HONS IN CROP PRODUCTION)","CROP SCIENCES","Agriculture and Food Science","COLLEGE OF AGRICULTURE, ANIMAL SCIENCES AND VETERINARY MEDICINE"]
[427,216276365,"TWAGIRIMANA","CLOTILDE","F",59.309848661126502,"PASS","(BSC WITH HONS IN CROP PRODUCTION)","CROP SCIENCES","Agriculture and Food Science","COLLEGE OF AGRICULTURE, ANIMAL SCIENCES AND VETERINARY MEDICINE"]
[428,216198844,"AKIMPAYE","CLAUDETTE","F",0.65230268486780685,"Second Class Honours, Lower Division","(BSC WITH HONS IN FOOD SCIENCE AND TECHNOLOGY)","FOOD SCIENCE AND TECHNOLOGY","Agriculture and Food Science","COLLEGE OF AGRICULTURE, ANIMAL SCIENCES AND VETERINARY MEDICINE"]
[429,216105420,"AMEN","SOUVEDE","F",0.77111280268686433,"Second Class Honours, Upper Division","(BSC WITH HONS IN FOOD SCIENCE AND TECHNOLOGY)","FOOD SCIENCE AND TECHNOLOGY","Agriculture and Food Science","COLLEGE OF AGRICULTURE, ANIMAL SCIENCES AND VETERINARY MEDICINE"]
[430,216108543,"AMIZERO IGIHOZO","LISE JANVIERE","F",0.67123456696274997,"Second Class Honours, Lower Division","(BSC WITH HONS IN FOOD SCIENCE AND TECHNOLOGY)","FOOD SCIENCE AND TECHNOLOGY","Agriculture and Food Science","COLLEGE OF AGRICULTURE, ANIMAL SCIENCES AND VETERINARY MEDICINE"]
[431,216175593,"BENIMANA","EUGENIE","F",0.70693038109980832,"Second Class Honours, Lower Division","(BSC WITH HONS IN FOOD SCIENCE AND TECHNOLOGY)","FOOD SCIENCE AND TECHNOLOGY","Agriculture and Food Science","COLLEGE OF AGRICULTURE, ANIMAL SCIENCES AND VETERINARY MEDICINE"]
[432,216079667,"BUGINGO","JACQUES","M",0.65535806427834287,"Second Class Honours, Lower Division","(BSC WITH HONS IN FOOD SCIENCE AND TECHNOLOGY)","FOOD SCIENCE AND TECHNOLOGY","Agriculture and Food Science","COLLEGE OF AGRICULTURE, ANIMAL SCIENCES AND VETERINARY MEDICINE"]
[433,216077974,"CYUZUZO","CELINE","F",0.66816576336675026,"Second Class Honours, Lower Division","(BSC WITH HONS IN FOOD SCIENCE AND TECHNOLOGY)","FOOD SCIENCE AND TECHNOLOGY","Agriculture and Food Science","COLLEGE OF AGRICULTURE, ANIMAL SCIENCES AND VETERINARY MEDICINE"]
[434,216123623,"DUKUZUMUREMYI","YVONNE","F",0.69804407618310482,"Second Class Honours, Lower Division","(BSC WITH HONS IN FOOD SCIENCE AND TECHNOLOGY)","FOOD SCIENCE AND TECHNOLOGY","Agriculture and Food Science","COLLEGE OF AGRICULTURE, ANIMAL SCIENCES AND VETERINARY MEDICINE"]
[435,216097886,"DUSABE","SETH","M",0.6644455902317068,"Second Class Honours, Lower Division","(BSC WITH HONS IN FOOD SCIENCE AND TECHNOLOGY)","FOOD SCIENCE AND TECHNOLOGY","Agriculture and Food Science","COLLEGE OF AGRICULTURE, ANIMAL SCIENCES AND VETERINARY MEDICINE"]
[436,216076862,"DUSHIMIRIMANA","JACKSON","M",0.70976479863875364,"Second Class Honours, Upper Division","(BSC WITH HONS IN FOOD SCIENCE AND TECHNOLOGY)","FOOD SCIENCE AND TECHNOLOGY","Agriculture and Food Science","COLLEGE OF AGRICULTURE, ANIMAL SCIENCES AND VETERINARY MEDICINE"]
[437,216131243,"GUVERINOMA","ADRIEN","M",0.66252896042188814,"Second Class Honours, Lower Division","(BSC WITH HONS IN FOOD SCIENCE AND TECHNOLOGY)","FOOD SCIENCE AND TECHNOLOGY","Agriculture and Food Science","COLLEGE OF AGRICULTURE, ANIMAL SCIENCES AND VETERINARY MEDICINE"]
[438,215001931,"HABAGUHIRWA","EGIDE","M",0.6657222847252936,"Second Class Honours, Lower Division","(BSC WITH HONS IN FOOD SCIENCE AND TECHNOLOGY)","FOOD SCIENCE AND TECHNOLOGY","Agriculture and Food Science","COLLEGE OF AGRICULTURE, ANIMAL SCIENCES AND VETERINARY MEDICINE"]
[439,216085713,"HABIMANA","REMY","M",0.62446059127598408,"Second Class Honours, Lower Division","(BSC WITH HONS IN FOOD SCIENCE AND TECHNOLOGY)","FOOD SCIENCE AND TECHNOLOGY","Agriculture and Food Science","COLLEGE OF AGRICULTURE, ANIMAL SCIENCES AND VETERINARY MEDICINE"]
[440,216220785,"HABINEZA","JACQUES","M",0.65902011401051652,"Second Class Honours, Lower Division","(BSC WITH HONS IN FOOD SCIENCE AND TECHNOLOGY)","FOOD SCIENCE AND TECHNOLOGY","Agriculture and Food Science","COLLEGE OF AGRICULTURE, ANIMAL SCIENCES AND VETERINARY MEDICINE"]
[441,215042970,"HATEGEKIMANA","FELIX","M",0.67093498298442189,"Second Class Honours, Lower Division","(BSC WITH HONS IN FOOD SCIENCE AND TECHNOLOGY)","FOOD SCIENCE AND TECHNOLOGY","Agriculture and Food Science","COLLEGE OF AGRICULTURE, ANIMAL SCIENCES AND VETERINARY MEDICINE"]
[442,216208262,"IMANIRIHO","BERTHE","M",0.6846807131185807,"Second Class Honours, Lower Division","(BSC WITH HONS IN FOOD SCIENCE AND TECHNOLOGY)","FOOD SCIENCE AND TECHNOLOGY","Agriculture and Food Science","COLLEGE OF AGRICULTURE, ANIMAL SCIENCES AND VETERINARY MEDICINE"]
[443,216201225,"IMANIZABAYO","ROBEN","M",0.67871790597818071,"Second Class Honours, Lower Division","(BSC WITH HONS IN FOOD SCIENCE AND TECHNOLOGY)","FOOD SCIENCE AND TECHNOLOGY","Agriculture and Food Science","COLLEGE OF AGRICULTURE, ANIMAL SCIENCES AND VETERINARY MEDICINE"]
[444,216081084,"IRADUKUNDA","DIEUDONNE","M",0.78042589316428335,"Second Class Honours, Upper Division","(BSC WITH HONS IN FOOD SCIENCE AND TECHNOLOGY)","FOOD SCIENCE AND TECHNOLOGY","Agriculture and Food Science","COLLEGE OF AGRICULTURE, ANIMAL SCIENCES AND VETERINARY MEDICINE"]
[445,215042901,"IRADUKUNDA","GRACE","F",0.71186204021082122,"Second Class Honours, Lower Division","(BSC WITH HONS IN FOOD SCIENCE AND TECHNOLOGY)","FOOD SCIENCE AND TECHNOLOGY","Agriculture and Food Science","COLLEGE OF AGRICULTURE, ANIMAL SCIENCES AND VETERINARY MEDICINE"]
[446,216129613,"IRADUKUNDA","GUSTAVE","M",0.62723906426605724,"Second Class Honours, Lower Division","(BSC WITH HONS IN FOOD SCIENCE AND TECHNOLOGY)","FOOD SCIENCE AND TECHNOLOGY","Agriculture and Food Science","COLLEGE OF AGRICULTURE, ANIMAL SCIENCES AND VETERINARY MEDICINE"]
[447,216071917,"IRADUKUNDA","JEAN CLAUDE","M",0.66541028121775014,"Second Class Honours, Lower Division","(BSC WITH HONS IN FOOD SCIENCE AND TECHNOLOGY)","FOOD SCIENCE AND TECHNOLOGY","Agriculture and Food Science","COLLEGE OF AGRICULTURE, ANIMAL SCIENCES AND VETERINARY MEDICINE"]
[448,216082293,"IRARORA","JOSEPH","M",0.68399843174111752,"Second Class Honours, Lower Division","(BSC WITH HONS IN FOOD SCIENCE AND TECHNOLOGY)","FOOD SCIENCE AND TECHNOLOGY","Agriculture and Food Science","COLLEGE OF AGRICULTURE, ANIMAL SCIENCES AND VETERINARY MEDICINE"]
[449,216238226,"ISHIMWE","MARIE JOSEE","F",0.64561848985208115,"Second Class Honours, Lower Division","(BSC WITH HONS IN FOOD SCIENCE AND TECHNOLOGY)","FOOD SCIENCE AND TECHNOLOGY","Agriculture and Food Science","COLLEGE OF AGRICULTURE, ANIMAL SCIENCES AND VETERINARY MEDICINE"]
[450,216251109,"ISHIMWE","RAISSA","F",0.67510077245810607,"Second Class Honours, Lower Division","(BSC WITH HONS IN FOOD SCIENCE AND TECHNOLOGY)","FOOD SCIENCE AND TECHNOLOGY","Agriculture and Food Science","COLLEGE OF AGRICULTURE, ANIMAL SCIENCES AND VETERINARY MEDICINE"]
[451,216277043,"ISHIMWEYIZERWE","VALENTIN","M",0.71347168196225863,"Second Class Honours, Upper Division","(BSC WITH HONS IN FOOD SCIENCE AND TECHNOLOGY)","FOOD SCIENCE AND TECHNOLOGY","Agriculture and Food Science","COLLEGE OF AGRICULTURE, ANIMAL SCIENCES AND VETERINARY MEDICINE"]
[452,216206324,"IZADUFASHA","FLAVIEN","M",0.61333444177232299,"Second Class Honours, Lower Division","(BSC WITH HONS IN FOOD SCIENCE AND TECHNOLOGY)","FOOD SCIENCE AND TECHNOLOGY","Agriculture and Food Science","COLLEGE OF AGRICULTURE, ANIMAL SCIENCES AND VETERINARY MEDICINE"]
[453,216189756,"IZERIMANA"," JEAN BAPTISTE","M",0.70902063952774086,"Second Class Honours, Lower Division","(BSC WITH HONS IN FOOD SCIENCE AND TECHNOLOGY)","FOOD SCIENCE AND TECHNOLOGY","Agriculture and Food Science","COLLEGE OF AGRICULTURE, ANIMAL SCIENCES AND VETERINARY MEDICINE"]
[454,216087341,"KANAKUZE","OLIVIER","M",0.60618038171408917,"Second Class Honours, Lower Division","(BSC WITH HONS IN FOOD SCIENCE AND TECHNOLOGY)","FOOD SCIENCE AND TECHNOLOGY","Agriculture and Food Science","COLLEGE OF AGRICULTURE, ANIMAL SCIENCES AND VETERINARY MEDICINE"]
[455,216146593,"KIGABO","VERIDIQUE","M",0.70755053995282324,"Second Class Honours, Lower Division","(BSC WITH HONS IN FOOD SCIENCE AND TECHNOLOGY)","FOOD SCIENCE AND TECHNOLOGY","Agriculture and Food Science","COLLEGE OF AGRICULTURE, ANIMAL SCIENCES AND VETERINARY MEDICINE"]
[456,216081254,"MUGENZI","DAVID","M",0.65569691462725443,"Second Class Honours, Lower Division","(BSC WITH HONS IN FOOD SCIENCE AND TECHNOLOGY)","FOOD SCIENCE AND TECHNOLOGY","Agriculture and Food Science","COLLEGE OF AGRICULTURE, ANIMAL SCIENCES AND VETERINARY MEDICINE"]
[457,216070708,"MUGESERA","JUSTIN","M",0.6643835054855276,"Second Class Honours, Lower Division","(BSC WITH HONS IN FOOD SCIENCE AND TECHNOLOGY)","FOOD SCIENCE AND TECHNOLOGY","Agriculture and Food Science","COLLEGE OF AGRICULTURE, ANIMAL SCIENCES AND VETERINARY MEDICINE"]
[458,216140110,"MUGISHA","EVA","F",0.70422434302668435,"Second Class Honours, Lower Division","(BSC WITH HONS IN FOOD SCIENCE AND TECHNOLOGY)","FOOD SCIENCE AND TECHNOLOGY","Agriculture and Food Science","COLLEGE OF AGRICULTURE, ANIMAL SCIENCES AND VETERINARY MEDICINE"]
[459,216250595,"MUGORENEJO","CLAUDINE","F",0.62017669188289348,"Second Class Honours, Lower Division","(BSC WITH HONS IN FOOD SCIENCE AND TECHNOLOGY)","FOOD SCIENCE AND TECHNOLOGY","Agriculture and Food Science","COLLEGE OF AGRICULTURE, ANIMAL SCIENCES AND VETERINARY MEDICINE"]
[460,216150868,"MUHAYIMPUNDU NIYIGENA","JOIE GRACE","F",0.68958722203793799,"Second Class Honours, Lower Division","(BSC WITH HONS IN FOOD SCIENCE AND TECHNOLOGY)","FOOD SCIENCE AND TECHNOLOGY","Agriculture and Food Science","COLLEGE OF AGRICULTURE, ANIMAL SCIENCES AND VETERINARY MEDICINE"]
[461,216088488,"MUHIRE","CALVIN","M",0.69515404887832299,"Second Class Honours, Lower Division","(BSC WITH HONS IN FOOD SCIENCE AND TECHNOLOGY)","FOOD SCIENCE AND TECHNOLOGY","Agriculture and Food Science","COLLEGE OF AGRICULTURE, ANIMAL SCIENCES AND VETERINARY MEDICINE"]
[462,216285607,"MUHORACYEYE","ADELINE","F",0.66384187030075192,"Second Class Honours, Lower Division","(BSC WITH HONS IN FOOD SCIENCE AND TECHNOLOGY)","FOOD SCIENCE AND TECHNOLOGY","Agriculture and Food Science","COLLEGE OF AGRICULTURE, ANIMAL SCIENCES AND VETERINARY MEDICINE"]
[463,215014717,"MUHOZA","GILBERT","M",0.64651651386431763,"Second Class Honours, Lower Division","(BSC WITH HONS IN FOOD SCIENCE AND TECHNOLOGY)","FOOD SCIENCE AND TECHNOLOGY","Agriculture and Food Science","COLLEGE OF AGRICULTURE, ANIMAL SCIENCES AND VETERINARY MEDICINE"]
[464,216139333,"MUKASHYAKA","VALENTINE","F",0.69462597209936616,"Second Class Honours, Lower Division","(BSC WITH HONS IN FOOD SCIENCE AND TECHNOLOGY)","FOOD SCIENCE AND TECHNOLOGY","Agriculture and Food Science","COLLEGE OF AGRICULTURE, ANIMAL SCIENCES AND VETERINARY MEDICINE"]
[465,216125014,"MUKESHIMANA","JOSELYNE","F",0.71629611528822057,"Second Class Honours, Lower Division","(BSC WITH HONS IN FOOD SCIENCE AND TECHNOLOGY)","FOOD SCIENCE AND TECHNOLOGY","Agriculture and Food Science","COLLEGE OF AGRICULTURE, ANIMAL SCIENCES AND VETERINARY MEDICINE"]
[466,216076196,"MUKESHIMANA","MARTHE","F",0.70699868973905344,"Second Class Honours, Lower Division","(BSC WITH HONS IN FOOD SCIENCE AND TECHNOLOGY)","FOOD SCIENCE AND TECHNOLOGY","Agriculture and Food Science","COLLEGE OF AGRICULTURE, ANIMAL SCIENCES AND VETERINARY MEDICINE"]
[467,216089166,"MUNEZERO"," ISAAC","M",0.63306868887906043,"Second Class Honours, Lower Division","(BSC WITH HONS IN FOOD SCIENCE AND TECHNOLOGY)","FOOD SCIENCE AND TECHNOLOGY","Agriculture and Food Science","COLLEGE OF AGRICULTURE, ANIMAL SCIENCES AND VETERINARY MEDICINE"]
[468,216090393,"MURINZI","GERALD","M",0.62127756016880442,"Second Class Honours, Lower Division","(BSC WITH HONS IN FOOD SCIENCE AND TECHNOLOGY)","FOOD SCIENCE AND TECHNOLOGY","Agriculture and Food Science","COLLEGE OF AGRICULTURE, ANIMAL SCIENCES AND VETERINARY MEDICINE"]
[469,216107369,"MUTONIWASE","YVINE","F",0.72645666617524196,"Second Class Honours, Lower Division","(BSC WITH HONS IN FOOD SCIENCE AND TECHNOLOGY)","FOOD SCIENCE AND TECHNOLOGY","Agriculture and Food Science","COLLEGE OF AGRICULTURE, ANIMAL SCIENCES AND VETERINARY MEDICINE"]
[470,216090539,"MWIRINGIRE","GILBERT","M",0.77080077092240407,"Second Class Honours, Upper Division","(BSC WITH HONS IN FOOD SCIENCE AND TECHNOLOGY)","FOOD SCIENCE AND TECHNOLOGY","Agriculture and Food Science","COLLEGE OF AGRICULTURE, ANIMAL SCIENCES AND VETERINARY MEDICINE"]
[471,216092736,"NAHIMANA","JEAN D'AMOUR","M",0.69855062994496053,"Second Class Honours, Lower Division","(BSC WITH HONS IN FOOD SCIENCE AND TECHNOLOGY)","FOOD SCIENCE AND TECHNOLOGY","Agriculture and Food Science","COLLEGE OF AGRICULTURE, ANIMAL SCIENCES AND VETERINARY MEDICINE"]
[472,216172691,"NAHIMANA","REMY","M",0.63479765283306311,"Second Class Honours, Lower Division","(BSC WITH HONS IN FOOD SCIENCE AND TECHNOLOGY)","FOOD SCIENCE AND TECHNOLOGY","Agriculture and Food Science","COLLEGE OF AGRICULTURE, ANIMAL SCIENCES AND VETERINARY MEDICINE"]
[473,216155932,"NDAMUKUNDA","ESTHER","F",0.62073801799228467,"Second Class Honours, Lower Division","(BSC WITH HONS IN FOOD SCIENCE AND TECHNOLOGY)","FOOD SCIENCE AND TECHNOLOGY","Agriculture and Food Science","COLLEGE OF AGRICULTURE, ANIMAL SCIENCES AND VETERINARY MEDICINE"]
[474,216113776,"NDANGAMIYUMUKIZA","JEAN LUC","M",0.63523622521376977,"Second Class Honours, Lower Division","(BSC WITH HONS IN FOOD SCIENCE AND TECHNOLOGY)","FOOD SCIENCE AND TECHNOLOGY","Agriculture and Food Science","COLLEGE OF AGRICULTURE, ANIMAL SCIENCES AND VETERINARY MEDICINE"]
[475,216085969,"NDAYISABA","VEDASTE","M",0.71539476233475852,"Second Class Honours, Upper Division","(BSC WITH HONS IN FOOD SCIENCE AND TECHNOLOGY)","FOOD SCIENCE AND TECHNOLOGY","Agriculture and Food Science","COLLEGE OF AGRICULTURE, ANIMAL SCIENCES AND VETERINARY MEDICINE"]
[476,216112087,"NDUWAYO","YVES","M",0.6554799924136322,"Second Class Honours, Lower Division","(BSC WITH HONS IN FOOD SCIENCE AND TECHNOLOGY)","FOOD SCIENCE AND TECHNOLOGY","Agriculture and Food Science","COLLEGE OF AGRICULTURE, ANIMAL SCIENCES AND VETERINARY MEDICINE"]
[477,216133548,"NGENDAHIMANA","EZECHIEL","M",0.65812516155585044,"Second Class Honours, Lower Division","(BSC WITH HONS IN FOOD SCIENCE AND TECHNOLOGY)","FOOD SCIENCE AND TECHNOLOGY","Agriculture and Food Science","COLLEGE OF AGRICULTURE, ANIMAL SCIENCES AND VETERINARY MEDICINE"]
[478,216223814,"NIMUHOZE","IMMACULEE","F",0.75462512592756414,"Second Class Honours, Upper Division","(BSC WITH HONS IN FOOD SCIENCE AND TECHNOLOGY)","FOOD SCIENCE AND TECHNOLOGY","Agriculture and Food Science","COLLEGE OF AGRICULTURE, ANIMAL SCIENCES AND VETERINARY MEDICINE"]
[479,216184401,"NIRINGIYIMANA","EVARISTE","M",0.76334552127868693,"Second Class Honours, Upper Division","(BSC WITH HONS IN FOOD SCIENCE AND TECHNOLOGY)","FOOD SCIENCE AND TECHNOLOGY","Agriculture and Food Science","COLLEGE OF AGRICULTURE, ANIMAL SCIENCES AND VETERINARY MEDICINE"]
[480,216165865,"NIYIGENA","FARHATI","M",0.62245792514374165,"Second Class Honours, Lower Division","(BSC WITH HONS IN FOOD SCIENCE AND TECHNOLOGY)","FOOD SCIENCE AND TECHNOLOGY","Agriculture and Food Science","COLLEGE OF AGRICULTURE, ANIMAL SCIENCES AND VETERINARY MEDICINE"]
[481,215043320,"NIYIRERA","RACHEL","F",0.64611418742935767,"Second Class Honours, Lower Division","(BSC WITH HONS IN FOOD SCIENCE AND TECHNOLOGY)","FOOD SCIENCE AND TECHNOLOGY","Agriculture and Food Science","COLLEGE OF AGRICULTURE, ANIMAL SCIENCES AND VETERINARY MEDICINE"]
[482,216107423,"NIYITEGEKA","DAMASCENE","M",0.72223801246375741,"Second Class Honours, Lower Division","(BSC WITH HONS IN FOOD SCIENCE AND TECHNOLOGY)","FOOD SCIENCE AND TECHNOLOGY","Agriculture and Food Science","COLLEGE OF AGRICULTURE, ANIMAL SCIENCES AND VETERINARY MEDICINE"]
[483,216109981,"NIYONGABIRE","OLIVIER","M",0.67985398637525196,"Second Class Honours, Lower Division","(BSC WITH HONS IN FOOD SCIENCE AND TECHNOLOGY)","FOOD SCIENCE AND TECHNOLOGY","Agriculture and Food Science","COLLEGE OF AGRICULTURE, ANIMAL SCIENCES AND VETERINARY MEDICINE"]
[484,216130727,"NIYONKURU","DAVID ISRAEL","M",0.66771988764804169,"Second Class Honours, Lower Division","(BSC WITH HONS IN FOOD SCIENCE AND TECHNOLOGY)","FOOD SCIENCE AND TECHNOLOGY","Agriculture and Food Science","COLLEGE OF AGRICULTURE, ANIMAL SCIENCES AND VETERINARY MEDICINE"]
[485,216178304,"NIYONSENGA"," EMMANUEL","M",0.61632462989581815,"Second Class Honours, Lower Division","(BSC WITH HONS IN FOOD SCIENCE AND TECHNOLOGY)","FOOD SCIENCE AND TECHNOLOGY","Agriculture and Food Science","COLLEGE OF AGRICULTURE, ANIMAL SCIENCES AND VETERINARY MEDICINE"]
[486,216164044,"NIYONSENGA","JOYEUSE","F",0.72018863457663773,"Second Class Honours, Upper Division","(BSC WITH HONS IN FOOD SCIENCE AND TECHNOLOGY)","FOOD SCIENCE AND TECHNOLOGY","Agriculture and Food Science","COLLEGE OF AGRICULTURE, ANIMAL SCIENCES AND VETERINARY MEDICINE"]
[487,216148057,"NSABAGASANI","PATRICK","M",0.68244889844095524,"Second Class Honours, Lower Division","(BSC WITH HONS IN FOOD SCIENCE AND TECHNOLOGY)","FOOD SCIENCE AND TECHNOLOGY","Agriculture and Food Science","COLLEGE OF AGRICULTURE, ANIMAL SCIENCES AND VETERINARY MEDICINE"]
[488,216164680,"NSENGIYAREMYE","DONAT","M",0.73094311068725726,"Second Class Honours, Upper Division","(BSC WITH HONS IN FOOD SCIENCE AND TECHNOLOGY)","FOOD SCIENCE AND TECHNOLOGY","Agriculture and Food Science","COLLEGE OF AGRICULTURE, ANIMAL SCIENCES AND VETERINARY MEDICINE"]
[489,216116031,"NYIRABAMBARI","OLIVE","F",0.70593650670794628,"Second Class Honours, Upper Division","(BSC WITH HONS IN FOOD SCIENCE AND TECHNOLOGY)","FOOD SCIENCE AND TECHNOLOGY","Agriculture and Food Science","COLLEGE OF AGRICULTURE, ANIMAL SCIENCES AND VETERINARY MEDICINE"]
[490,216123704,"NYIRANEZA","LOUISE","F",0.6299301688657919,"Second Class Honours, Lower Division","(BSC WITH HONS IN FOOD SCIENCE AND TECHNOLOGY)","FOOD SCIENCE AND TECHNOLOGY","Agriculture and Food Science","COLLEGE OF AGRICULTURE, ANIMAL SCIENCES AND VETERINARY MEDICINE"]
[491,215011751,"NYIRANSENGIMANA","FRIEDA","F",0.64995464626640131,"Second Class Honours, Lower Division","(BSC WITH HONS IN FOOD SCIENCE AND TECHNOLOGY)","FOOD SCIENCE AND TECHNOLOGY","Agriculture and Food Science","COLLEGE OF AGRICULTURE, ANIMAL SCIENCES AND VETERINARY MEDICINE"]
[492,216144094,"RAFIKI","NORBERT","M",0.62824858438989639,"Second Class Honours, Lower Division","(BSC WITH HONS IN FOOD SCIENCE AND TECHNOLOGY)","FOOD SCIENCE AND TECHNOLOGY","Agriculture and Food Science","COLLEGE OF AGRICULTURE, ANIMAL SCIENCES AND VETERINARY MEDICINE"]
[493,216078547,"RUBAYIZA","JEAN DAMASCENE","M",0.74793057797680473,"Second Class Honours, Upper Division","(BSC WITH HONS IN FOOD SCIENCE AND TECHNOLOGY)","FOOD SCIENCE AND TECHNOLOGY","Agriculture and Food Science","COLLEGE OF AGRICULTURE, ANIMAL SCIENCES AND VETERINARY MEDICINE"]
[494,216137837,"SABANA","ELVIS","M",0.66177072644847412,"Second Class Honours, Lower Division","(BSC WITH HONS IN FOOD SCIENCE AND TECHNOLOGY)","FOOD SCIENCE AND TECHNOLOGY","Agriculture and Food Science","COLLEGE OF AGRICULTURE, ANIMAL SCIENCES AND VETERINARY MEDICINE"]
[495,216261597,"SAFARI","ALADIN TOUSSAINT","M",0.6398601657329599,"Second Class Honours, Lower Division","(BSC WITH HONS IN FOOD SCIENCE AND TECHNOLOGY)","FOOD SCIENCE AND TECHNOLOGY","Agriculture and Food Science","COLLEGE OF AGRICULTURE, ANIMAL SCIENCES AND VETERINARY MEDICINE"]
[496,216189101,"SINZINKAYO","JEAN  BOSCO","M",0.67501903640842298,"Second Class Honours, Lower Division","(BSC WITH HONS IN FOOD SCIENCE AND TECHNOLOGY)","FOOD SCIENCE AND TECHNOLOGY","Agriculture and Food Science","COLLEGE OF AGRICULTURE, ANIMAL SCIENCES AND VETERINARY MEDICINE"]
[497,216258642,"TURATSINZE","THEONESTE","M",0.71842075731608435,"Second Class Honours, Upper Division","(BSC WITH HONS IN FOOD SCIENCE AND TECHNOLOGY)","FOOD SCIENCE AND TECHNOLOGY","Agriculture and Food Science","COLLEGE OF AGRICULTURE, ANIMAL SCIENCES AND VETERINARY MEDICINE"]
[498,216256453,"TURINUMUKIZA","MEDARD BERGE","M",0.64413223146714826,"Second Class Honours, Lower Division","(BSC WITH HONS IN FOOD SCIENCE AND TECHNOLOGY)","FOOD SCIENCE AND TECHNOLOGY","Agriculture and Food Science","COLLEGE OF AGRICULTURE, ANIMAL SCIENCES AND VETERINARY MEDICINE"]
[499,216090180,"TWAGIRAYEZU","EMMY","M",0.66408739756867663,"Second Class Honours, Lower Division","(BSC WITH HONS IN FOOD SCIENCE AND TECHNOLOGY)","FOOD SCIENCE AND TECHNOLOGY","Agriculture and Food Science","COLLEGE OF AGRICULTURE, ANIMAL SCIENCES AND VETERINARY MEDICINE"]
[500,216241405,"UGIRABAKUNZI","VESTINE","F",0.68017511563836053,"Second Class Honours, Lower Division","(BSC WITH HONS IN FOOD SCIENCE AND TECHNOLOGY)","FOOD SCIENCE AND TECHNOLOGY","Agriculture and Food Science","COLLEGE OF AGRICULTURE, ANIMAL SCIENCES AND VETERINARY MEDICINE"]
[501,216143713,"UJENEZA","JOSELINE","F",0.60004643456066642,"Second Class Honours, Lower Division","(BSC WITH HONS IN FOOD SCIENCE AND TECHNOLOGY)","FOOD SCIENCE AND TECHNOLOGY","Agriculture and Food Science","COLLEGE OF AGRICULTURE, ANIMAL SCIENCES AND VETERINARY MEDICINE"]
[502,216138000,"UMUGIRANEZA","MARIE LILIANE FAIDA","F",0.67878028113175093,"Second Class Honours, Lower Division","(BSC WITH HONS IN FOOD SCIENCE AND TECHNOLOGY)","FOOD SCIENCE AND TECHNOLOGY","Agriculture and Food Science","COLLEGE OF AGRICULTURE, ANIMAL SCIENCES AND VETERINARY MEDICINE"]
[503,216327229,"UMUHOZA","SANDRINE","F",0.71351648207528628,"Second Class Honours, Upper Division","(BSC WITH HONS IN FOOD SCIENCE AND TECHNOLOGY)","FOOD SCIENCE AND TECHNOLOGY","Agriculture and Food Science","COLLEGE OF AGRICULTURE, ANIMAL SCIENCES AND VETERINARY MEDICINE"]
[504,216289424,"UMUTONIWASE","YVETTE","F",0.65516010614772224,"Second Class Honours, Lower Division","(BSC WITH HONS IN FOOD SCIENCE AND TECHNOLOGY)","FOOD SCIENCE AND TECHNOLOGY","Agriculture and Food Science","COLLEGE OF AGRICULTURE, ANIMAL SCIENCES AND VETERINARY MEDICINE"]
[505,216106060,"UWAJE JAMBO","THEOPHILLA","F",0.66921404583763333,"Second Class Honours, Lower Division","(BSC WITH HONS IN FOOD SCIENCE AND TECHNOLOGY)","FOOD SCIENCE AND TECHNOLOGY","Agriculture and Food Science","COLLEGE OF AGRICULTURE, ANIMAL SCIENCES AND VETERINARY MEDICINE"]
[506,216135060,"UWANYIRIGIRA","JEANNETTE","F",0.76195442573959415,"Second Class Honours, Upper Division","(BSC WITH HONS IN FOOD SCIENCE AND TECHNOLOGY)","FOOD SCIENCE AND TECHNOLOGY","Agriculture and Food Science","COLLEGE OF AGRICULTURE, ANIMAL SCIENCES AND VETERINARY MEDICINE"]
[507,216257581,"UWASE","GHISLAINE","F",0.66059898705096076,"Second Class Honours, Lower Division","(BSC WITH HONS IN FOOD SCIENCE AND TECHNOLOGY)","FOOD SCIENCE AND TECHNOLOGY","Agriculture and Food Science","COLLEGE OF AGRICULTURE, ANIMAL SCIENCES AND VETERINARY MEDICINE"]
[508,216215137,"UWIKUNDA","GISELE","F",0.60276734206840632,"Second Class Honours, Lower Division","(BSC WITH HONS IN FOOD SCIENCE AND TECHNOLOGY)","FOOD SCIENCE AND TECHNOLOGY","Agriculture and Food Science","COLLEGE OF AGRICULTURE, ANIMAL SCIENCES AND VETERINARY MEDICINE"]
[509,216080355,"UWIMANA","EMMANUEL","M",0.65938103730527298,"Second Class Honours, Lower Division","(BSC WITH HONS IN FOOD SCIENCE AND TECHNOLOGY)","FOOD SCIENCE AND TECHNOLOGY","Agriculture and Food Science","COLLEGE OF AGRICULTURE, ANIMAL SCIENCES AND VETERINARY MEDICINE"]
[510,216137446,"UWIMANA","MARIANNE","F",0.69717509521352394,"Second Class Honours, Lower Division","(BSC WITH HONS IN FOOD SCIENCE AND TECHNOLOGY)","FOOD SCIENCE AND TECHNOLOGY","Agriculture and Food Science","COLLEGE OF AGRICULTURE, ANIMAL SCIENCES AND VETERINARY MEDICINE"]
[511,216219639,"UWIMANA","SANDRINE","F",0.67387338213794279,"Second Class Honours, Lower Division","(BSC WITH HONS IN FOOD SCIENCE AND TECHNOLOGY)","FOOD SCIENCE AND TECHNOLOGY","Agriculture and Food Science","COLLEGE OF AGRICULTURE, ANIMAL SCIENCES AND VETERINARY MEDICINE"]
[512,216122341,"UWINEZA","ESPERANCE","F",0.6263939180057988,"Second Class Honours, Lower Division","(BSC WITH HONS IN FOOD SCIENCE AND TECHNOLOGY)","FOOD SCIENCE AND TECHNOLOGY","Agriculture and Food Science","COLLEGE OF AGRICULTURE, ANIMAL SCIENCES AND VETERINARY MEDICINE"]
[513,216074134,"UWIRINGIYIMANA"," ENATHA","F",0.70274921771340115,"Second Class Honours, Lower Division","(BSC WITH HONS IN FOOD SCIENCE AND TECHNOLOGY)","FOOD SCIENCE AND TECHNOLOGY","Agriculture and Food Science","COLLEGE OF AGRICULTURE, ANIMAL SCIENCES AND VETERINARY MEDICINE"]
[514,216143217,"UWIZEYIMANA","FLORIDA","F",0.66341115365005654,"Second Class Honours, Lower Division","(BSC WITH HONS IN FOOD SCIENCE AND TECHNOLOGY)","FOOD SCIENCE AND TECHNOLOGY","Agriculture and Food Science","COLLEGE OF AGRICULTURE, ANIMAL SCIENCES AND VETERINARY MEDICINE"]
[515,216159067,"UWAJENEZA","BRIGITTE","F",0.77655040945896214,"Second Class Honours, Upper Division","(BSC WITH HONS IN FORESTRY)","FORESTRY AND NATURE CONSERVATION","SCHOOL OF FORESTRY, CONSERVATION AND BIODIVERSITY ","COLLEGE OF AGRICULTURE, ANIMAL SCIENCES AND VETERINARY MEDICINE"]
[516,215042924,"NDANDARI","BLAISE","M",0.75837958456017673,"Second Class Honours, Upper Division","(BSC WITH HONS IN FORESTRY)","FORESTRY AND NATURE CONSERVATION","SCHOOL OF FORESTRY, CONSERVATION AND BIODIVERSITY ","COLLEGE OF AGRICULTURE, ANIMAL SCIENCES AND VETERINARY MEDICINE"]
[517,216186978,"UWIMBABAZI","ALEXIA","F",0.75396134665772818,"Second Class Honours, Upper Division","(BSC WITH HONS IN FORESTRY)","FORESTRY AND NATURE CONSERVATION","SCHOOL OF FORESTRY, CONSERVATION AND BIODIVERSITY ","COLLEGE OF AGRICULTURE, ANIMAL SCIENCES AND VETERINARY MEDICINE"]
[518,216189683,"ISHIMWE","MARIE EUDOXIE","F",0.74838599602152245,"Second Class Honours, Upper Division","(BSC WITH HONS IN FORESTRY)","FORESTRY AND NATURE CONSERVATION","SCHOOL OF FORESTRY, CONSERVATION AND BIODIVERSITY ","COLLEGE OF AGRICULTURE, ANIMAL SCIENCES AND VETERINARY MEDICINE"]
[519,216092396,"SIBOMANA","WELLARS","M",0.74375979711078399,"Second Class Honours, Upper Division","(BSC WITH HONS IN FORESTRY)","FORESTRY AND NATURE CONSERVATION","SCHOOL OF FORESTRY, CONSERVATION AND BIODIVERSITY ","COLLEGE OF AGRICULTURE, ANIMAL SCIENCES AND VETERINARY MEDICINE"]
[520,216106621,"USENGIMANA","CONSOLEE LADOUCE","F",0.74167781330511584,"Second Class Honours, Upper Division","(BSC WITH HONS IN FORESTRY)","FORESTRY AND NATURE CONSERVATION","SCHOOL OF FORESTRY, CONSERVATION AND BIODIVERSITY ","COLLEGE OF AGRICULTURE, ANIMAL SCIENCES AND VETERINARY MEDICINE"]
[521,216147840,"NDIKUBWIMANA","PASCAL","M",0.73842363820390133,"Second Class Honours, Upper Division","(BSC WITH HONS IN FORESTRY)","FORESTRY AND NATURE CONSERVATION","SCHOOL OF FORESTRY, CONSERVATION AND BIODIVERSITY ","COLLEGE OF AGRICULTURE, ANIMAL SCIENCES AND VETERINARY MEDICINE"]
[522,216180325,"UMUBYEYI","MARIE MARGUERITTE","F",0.7333192185007974,"Second Class Honours, Lower Division","(BSC WITH HONS IN FORESTRY)","FORESTRY AND NATURE CONSERVATION","SCHOOL OF FORESTRY, CONSERVATION AND BIODIVERSITY ","COLLEGE OF AGRICULTURE, ANIMAL SCIENCES AND VETERINARY MEDICINE"]
[523,216091616,"IYARWEMA HATEGEKIMANA","ROMEO THIERRY","M",0.73225991519445455,"Second Class Honours, Upper Division","(BSC WITH HONS IN FORESTRY)","FORESTRY AND NATURE CONSERVATION","SCHOOL OF FORESTRY, CONSERVATION AND BIODIVERSITY ","COLLEGE OF AGRICULTURE, ANIMAL SCIENCES AND VETERINARY MEDICINE"]
[524,216143969,"NYIRAMISIGARO","IRENE","F",0.72514814056557464,"Second Class Honours, Upper Division","(BSC WITH HONS IN FORESTRY)","FORESTRY AND NATURE CONSERVATION","SCHOOL OF FORESTRY, CONSERVATION AND BIODIVERSITY ","COLLEGE OF AGRICULTURE, ANIMAL SCIENCES AND VETERINARY MEDICINE"]
[525,216097002,"MANIRAMBONA","FORTUNÉE","F",0.72511928597718067,"Second Class Honours, Upper Division","(BSC WITH HONS IN FORESTRY)","FORESTRY AND NATURE CONSERVATION","SCHOOL OF FORESTRY, CONSERVATION AND BIODIVERSITY ","COLLEGE OF AGRICULTURE, ANIMAL SCIENCES AND VETERINARY MEDICINE"]
[526,216180449,"HABAKWIZERA","ANGE ROBERT","M",0.72511509400687013,"Second Class Honours, Upper Division","(BSC WITH HONS IN FORESTRY)","FORESTRY AND NATURE CONSERVATION","SCHOOL OF FORESTRY, CONSERVATION AND BIODIVERSITY ","COLLEGE OF AGRICULTURE, ANIMAL SCIENCES AND VETERINARY MEDICINE"]
[527,216219973,"ABIMANA CYUZUZO","HENRIETTE","F",0.72211382039013616,"Second Class Honours, Upper Division","(BSC WITH HONS IN FORESTRY)","FORESTRY AND NATURE CONSERVATION","SCHOOL OF FORESTRY, CONSERVATION AND BIODIVERSITY ","COLLEGE OF AGRICULTURE, ANIMAL SCIENCES AND VETERINARY MEDICINE"]
[528,216183774,"UWIRINGIYIMANA","JEANNINE","F",0.72063707949944789,"Second Class Honours, Lower Division","(BSC WITH HONS IN FORESTRY)","FORESTRY AND NATURE CONSERVATION","SCHOOL OF FORESTRY, CONSERVATION AND BIODIVERSITY ","COLLEGE OF AGRICULTURE, ANIMAL SCIENCES AND VETERINARY MEDICINE"]
[529,216190800,"UWIMBABAZI","CONFIANCE","F",0.71621429272481907,"Second Class Honours, Lower Division","(BSC WITH HONS IN FORESTRY)","FORESTRY AND NATURE CONSERVATION","SCHOOL OF FORESTRY, CONSERVATION AND BIODIVERSITY ","COLLEGE OF AGRICULTURE, ANIMAL SCIENCES AND VETERINARY MEDICINE"]
[530,216089573,"TWIRAGIJIMANA","MARIE CLAIRE","F",0.71594113989081098,"Second Class Honours, Upper Division","(BSC WITH HONS IN FORESTRY)","FORESTRY AND NATURE CONSERVATION","SCHOOL OF FORESTRY, CONSERVATION AND BIODIVERSITY ","COLLEGE OF AGRICULTURE, ANIMAL SCIENCES AND VETERINARY MEDICINE"]
[531,215007226,"DUSHIMEYESU","FIDELE","M",0.71268197153723478,"Second Class Honours, Lower Division","(BSC WITH HONS IN FORESTRY)","FORESTRY AND NATURE CONSERVATION","SCHOOL OF FORESTRY, CONSERVATION AND BIODIVERSITY ","COLLEGE OF AGRICULTURE, ANIMAL SCIENCES AND VETERINARY MEDICINE"]
[532,216295432,"NYIRAHUBAKIMANA","MARIE LOUISE","F",0.70592896883817946,"Second Class Honours, Lower Division","(BSC WITH HONS IN FORESTRY)","FORESTRY AND NATURE CONSERVATION","SCHOOL OF FORESTRY, CONSERVATION AND BIODIVERSITY ","COLLEGE OF AGRICULTURE, ANIMAL SCIENCES AND VETERINARY MEDICINE"]
[533,216320771,"NSHIMIYIMANA","REGIS","M",0.70518553091645197,"Second Class Honours, Lower Division","(BSC WITH HONS IN FORESTRY)","FORESTRY AND NATURE CONSERVATION","SCHOOL OF FORESTRY, CONSERVATION AND BIODIVERSITY ","COLLEGE OF AGRICULTURE, ANIMAL SCIENCES AND VETERINARY MEDICINE"]
[534,215001456,"NSENGIYUMVA","THADDEE","M",0.70336657388663981,"Second Class Honours, Lower Division","(BSC WITH HONS IN FORESTRY)","FORESTRY AND NATURE CONSERVATION","SCHOOL OF FORESTRY, CONSERVATION AND BIODIVERSITY ","COLLEGE OF AGRICULTURE, ANIMAL SCIENCES AND VETERINARY MEDICINE"]
[535,216169933,"MUKANDAYISENGA","HONOLATHE","F",0.70270483759661384,"Second Class Honours, Lower Division","(BSC WITH HONS IN FORESTRY)","FORESTRY AND NATURE CONSERVATION","SCHOOL OF FORESTRY, CONSERVATION AND BIODIVERSITY ","COLLEGE OF AGRICULTURE, ANIMAL SCIENCES AND VETERINARY MEDICINE"]
[536,216084474,"BUTOYA","YVES","M",0.70212585649000137,"Second Class Honours, Lower Division","(BSC WITH HONS IN FORESTRY)","FORESTRY AND NATURE CONSERVATION","SCHOOL OF FORESTRY, CONSERVATION AND BIODIVERSITY ","COLLEGE OF AGRICULTURE, ANIMAL SCIENCES AND VETERINARY MEDICINE"]
[537,215014447,"NSABIYUMVA","PASCAL","M",0.69982020534290268,"Second Class Honours, Lower Division","(BSC WITH HONS IN FORESTRY)","FORESTRY AND NATURE CONSERVATION","SCHOOL OF FORESTRY, CONSERVATION AND BIODIVERSITY ","COLLEGE OF AGRICULTURE, ANIMAL SCIENCES AND VETERINARY MEDICINE"]
[538,216093562,"MUGABO","GILBERT","M",0.69907176573426566,"Second Class Honours, Lower Division","(BSC WITH HONS IN FORESTRY)","FORESTRY AND NATURE CONSERVATION","SCHOOL OF FORESTRY, CONSERVATION AND BIODIVERSITY ","COLLEGE OF AGRICULTURE, ANIMAL SCIENCES AND VETERINARY MEDICINE"]
[539,216126991,"SHEMA","YVES","M",0.69760630520794986,"Second Class Honours, Lower Division","(BSC WITH HONS IN FORESTRY)","FORESTRY AND NATURE CONSERVATION","SCHOOL OF FORESTRY, CONSERVATION AND BIODIVERSITY ","COLLEGE OF AGRICULTURE, ANIMAL SCIENCES AND VETERINARY MEDICINE"]
[540,216071429,"AYINKAMIYE","SOLANGE","F",0.69725082275180972,"Second Class Honours, Lower Division","(BSC WITH HONS IN FORESTRY)","FORESTRY AND NATURE CONSERVATION","SCHOOL OF FORESTRY, CONSERVATION AND BIODIVERSITY ","COLLEGE OF AGRICULTURE, ANIMAL SCIENCES AND VETERINARY MEDICINE"]
[541,216262623,"NYANDWI","DAMASCENE","M",0.6964995660041714,"Second Class Honours, Lower Division","(BSC WITH HONS IN FORESTRY)","FORESTRY AND NATURE CONSERVATION","SCHOOL OF FORESTRY, CONSERVATION AND BIODIVERSITY ","COLLEGE OF AGRICULTURE, ANIMAL SCIENCES AND VETERINARY MEDICINE"]
[542,215042904,"NIWENSHUTI","CLARISSE","F",0.69400249279229542,"Second Class Honours, Lower Division","(BSC WITH HONS IN FORESTRY)","FORESTRY AND NATURE CONSERVATION","SCHOOL OF FORESTRY, CONSERVATION AND BIODIVERSITY ","COLLEGE OF AGRICULTURE, ANIMAL SCIENCES AND VETERINARY MEDICINE"]
[543,216262062,"MUBERARUGO","AGNES","M",0.6938737984603115,"Second Class Honours, Lower Division","(BSC WITH HONS IN FORESTRY)","FORESTRY AND NATURE CONSERVATION","SCHOOL OF FORESTRY, CONSERVATION AND BIODIVERSITY ","COLLEGE OF AGRICULTURE, ANIMAL SCIENCES AND VETERINARY MEDICINE"]
[544,216309689,"NIYONIZERA","MARIE AIMEE","F",0.69349234603116205,"Second Class Honours, Lower Division","(BSC WITH HONS IN FORESTRY)","FORESTRY AND NATURE CONSERVATION","SCHOOL OF FORESTRY, CONSERVATION AND BIODIVERSITY ","COLLEGE OF AGRICULTURE, ANIMAL SCIENCES AND VETERINARY MEDICINE"]
[545,216084172,"INEZA","ELYSE","M",0.69055629677340202,"Second Class Honours, Lower Division","(BSC WITH HONS IN FORESTRY)","FORESTRY AND NATURE CONSERVATION","SCHOOL OF FORESTRY, CONSERVATION AND BIODIVERSITY ","COLLEGE OF AGRICULTURE, ANIMAL SCIENCES AND VETERINARY MEDICINE"]
[546,215020312,"NIYIKORA"," EMMANUEL","M",0.69025335311618208,"Second Class Honours, Lower Division","(BSC WITH HONS IN FORESTRY)","FORESTRY AND NATURE CONSERVATION","SCHOOL OF FORESTRY, CONSERVATION AND BIODIVERSITY ","COLLEGE OF AGRICULTURE, ANIMAL SCIENCES AND VETERINARY MEDICINE"]
[547,216155843,"NYIRABAHINDE","JEANNE D'ARC","F",0.68898494893264628,"Second Class Honours, Lower Division","(BSC WITH HONS IN FORESTRY)","FORESTRY AND NATURE CONSERVATION","SCHOOL OF FORESTRY, CONSERVATION AND BIODIVERSITY ","COLLEGE OF AGRICULTURE, ANIMAL SCIENCES AND VETERINARY MEDICINE"]
[548,216125952,"TUYISENGE","EMMANUEL","M",0.68802071985032509,"Second Class Honours, Lower Division","(BSC WITH HONS IN FORESTRY)","FORESTRY AND NATURE CONSERVATION","SCHOOL OF FORESTRY, CONSERVATION AND BIODIVERSITY ","COLLEGE OF AGRICULTURE, ANIMAL SCIENCES AND VETERINARY MEDICINE"]
[549,216121035,"MUTIMUCYEYE","MARIE ROSE","F",0.68740466047110771,"Second Class Honours, Lower Division","(BSC WITH HONS IN FORESTRY)","FORESTRY AND NATURE CONSERVATION","SCHOOL OF FORESTRY, CONSERVATION AND BIODIVERSITY ","COLLEGE OF AGRICULTURE, ANIMAL SCIENCES AND VETERINARY MEDICINE"]
[550,215023489,"NGAYABERURA","JEAN BOSCO","M",0.68733924211753161,"Second Class Honours, Lower Division","(BSC WITH HONS IN FORESTRY)","FORESTRY AND NATURE CONSERVATION","SCHOOL OF FORESTRY, CONSERVATION AND BIODIVERSITY ","COLLEGE OF AGRICULTURE, ANIMAL SCIENCES AND VETERINARY MEDICINE"]
[551,215019499,"MUKASHYAKA","ANNUALITHE","F",0.68707230554533172,"Second Class Honours, Lower Division","(BSC WITH HONS IN FORESTRY)","FORESTRY AND NATURE CONSERVATION","SCHOOL OF FORESTRY, CONSERVATION AND BIODIVERSITY ","COLLEGE OF AGRICULTURE, ANIMAL SCIENCES AND VETERINARY MEDICINE"]
[552,215043392,"SUGIRA","ARSENE","M",0.68555557983682991,"Second Class Honours, Lower Division","(BSC WITH HONS IN FORESTRY)","FORESTRY AND NATURE CONSERVATION","SCHOOL OF FORESTRY, CONSERVATION AND BIODIVERSITY ","COLLEGE OF AGRICULTURE, ANIMAL SCIENCES AND VETERINARY MEDICINE"]
[553,216150485,"UWIMPAYE","OLIVE","F",0.68181687369647903,"Second Class Honours, Lower Division","(BSC WITH HONS IN FORESTRY)","FORESTRY AND NATURE CONSERVATION","SCHOOL OF FORESTRY, CONSERVATION AND BIODIVERSITY ","COLLEGE OF AGRICULTURE, ANIMAL SCIENCES AND VETERINARY MEDICINE"]
[554,216085039,"DUSENGIMANA","FLORENT","M",0.67863608422279487,"Second Class Honours, Lower Division","(BSC WITH HONS IN FORESTRY)","FORESTRY AND NATURE CONSERVATION","SCHOOL OF FORESTRY, CONSERVATION AND BIODIVERSITY ","COLLEGE OF AGRICULTURE, ANIMAL SCIENCES AND VETERINARY MEDICINE"]
[555,216080916,"MUSABIREMA","DONATH","M",0.67484144353453557,"Second Class Honours, Lower Division","(BSC WITH HONS IN FORESTRY)","FORESTRY AND NATURE CONSERVATION","SCHOOL OF FORESTRY, CONSERVATION AND BIODIVERSITY ","COLLEGE OF AGRICULTURE, ANIMAL SCIENCES AND VETERINARY MEDICINE"]
[556,216235049,"MANIRAKIZA","ABDULSALIM","M",0.67224119893264633,"Second Class Honours, Lower Division","(BSC WITH HONS IN FORESTRY)","FORESTRY AND NATURE CONSERVATION","SCHOOL OF FORESTRY, CONSERVATION AND BIODIVERSITY ","COLLEGE OF AGRICULTURE, ANIMAL SCIENCES AND VETERINARY MEDICINE"]
[557,215002476,"HAGENIMANA","ELYSE","M",0.67217325864924549,"Second Class Honours, Lower Division","(BSC WITH HONS IN FORESTRY)","FORESTRY AND NATURE CONSERVATION","SCHOOL OF FORESTRY, CONSERVATION AND BIODIVERSITY ","COLLEGE OF AGRICULTURE, ANIMAL SCIENCES AND VETERINARY MEDICINE"]
[558,215043413,"BYUKUSENGE","ZACHEE","M",0.66433578636276025,"Second Class Honours, Lower Division","(BSC WITH HONS IN FORESTRY)","FORESTRY AND NATURE CONSERVATION","SCHOOL OF FORESTRY, CONSERVATION AND BIODIVERSITY ","COLLEGE OF AGRICULTURE, ANIMAL SCIENCES AND VETERINARY MEDICINE"]
[559,216117410,"MUSHIMIYIMANA","DAMIEN","M",0.65955303260336162,"Second Class Honours, Lower Division","(BSC WITH HONS IN FORESTRY)","FORESTRY AND NATURE CONSERVATION","SCHOOL OF FORESTRY, CONSERVATION AND BIODIVERSITY ","COLLEGE OF AGRICULTURE, ANIMAL SCIENCES AND VETERINARY MEDICINE"]
[560,216173019,"NAHIMANA","SOSTHENE","M",0.65905618712427927,"Second Class Honours, Lower Division","(BSC WITH HONS IN FORESTRY)","FORESTRY AND NATURE CONSERVATION","SCHOOL OF FORESTRY, CONSERVATION AND BIODIVERSITY ","COLLEGE OF AGRICULTURE, ANIMAL SCIENCES AND VETERINARY MEDICINE"]
[561,216114705,"NIYONIRINGIYE","JEAN  D'AMOUR","M",0.65695167464114812,"Second Class Honours, Lower Division","(BSC WITH HONS IN FORESTRY)","FORESTRY AND NATURE CONSERVATION","SCHOOL OF FORESTRY, CONSERVATION AND BIODIVERSITY ","COLLEGE OF AGRICULTURE, ANIMAL SCIENCES AND VETERINARY MEDICINE"]
[562,216200598,"IRAGUHA","ALAIN","M",0.65169588010673551,"Second Class Honours, Lower Division","(BSC WITH HONS IN FORESTRY)","FORESTRY AND NATURE CONSERVATION","SCHOOL OF FORESTRY, CONSERVATION AND BIODIVERSITY ","COLLEGE OF AGRICULTURE, ANIMAL SCIENCES AND VETERINARY MEDICINE"]
[563,216208939,"INGABIRE","DIVINE","F",0.65056649076800388,"Second Class Honours, Lower Division","(BSC WITH HONS IN FORESTRY)","FORESTRY AND NATURE CONSERVATION","SCHOOL OF FORESTRY, CONSERVATION AND BIODIVERSITY ","COLLEGE OF AGRICULTURE, ANIMAL SCIENCES AND VETERINARY MEDICINE"]
[564,216146089,"ABAYISENGA","PACIFIQUE","M",0.65320086169775105,"Second Class Honours, Lower Division","(BSC WITH HONS IN HORTICULTURE)","CROP SCIENCES","Agriculture and Food Science","COLLEGE OF AGRICULTURE, ANIMAL SCIENCES AND VETERINARY MEDICINE"]
[565,216075122,"AKIMANA","IMMACULEE","F",0.69783729969080455,"Second Class Honours, Lower Division","(BSC WITH HONS IN HORTICULTURE)","CROP SCIENCES","Agriculture and Food Science","COLLEGE OF AGRICULTURE, ANIMAL SCIENCES AND VETERINARY MEDICINE"]
[566,216190797,"BIMENYIMANA","ERIC","M",0.70544547835010873,"Second Class Honours, Lower Division","(BSC WITH HONS IN HORTICULTURE)","CROP SCIENCES","Agriculture and Food Science","COLLEGE OF AGRICULTURE, ANIMAL SCIENCES AND VETERINARY MEDICINE"]
[567,216122244,"CYUZUZO","VANINA","F",0.71647336668903383,"Second Class Honours, Lower Division","(BSC WITH HONS IN HORTICULTURE)","CROP SCIENCES","Agriculture and Food Science","COLLEGE OF AGRICULTURE, ANIMAL SCIENCES AND VETERINARY MEDICINE"]
[568,216232252,"HABAKURAMA","JULES CHRISTIAN","M",0.62251972531733457,"Second Class Honours, Lower Division","(BSC WITH HONS IN HORTICULTURE)","CROP SCIENCES","Agriculture and Food Science","COLLEGE OF AGRICULTURE, ANIMAL SCIENCES AND VETERINARY MEDICINE"]
[569,216080428,"HARERIMANA","STRATON","M",0.68096230689713888,"Second Class Honours, Lower Division","(BSC WITH HONS IN HORTICULTURE)","CROP SCIENCES","Agriculture and Food Science","COLLEGE OF AGRICULTURE, ANIMAL SCIENCES AND VETERINARY MEDICINE"]
[570,216200474,"HARERIMANA","ERNESTE","M",0.67390178511930943,"Second Class Honours, Lower Division","(BSC WITH HONS IN HORTICULTURE)","CROP SCIENCES","Agriculture and Food Science","COLLEGE OF AGRICULTURE, ANIMAL SCIENCES AND VETERINARY MEDICINE"]
[571,216087996,"IHIMBAZWE","ANGELIQUE","F",0.67726929705053462,"Second Class Honours, Lower Division","(BSC WITH HONS IN HORTICULTURE)","CROP SCIENCES","Agriculture and Food Science","COLLEGE OF AGRICULTURE, ANIMAL SCIENCES AND VETERINARY MEDICINE"]
[572,216110211,"IHUMURE MUGANGA","MARIE DELPHINE","F",0.66935980007546481,"Second Class Honours, Lower Division","(BSC WITH HONS IN HORTICULTURE)","CROP SCIENCES","Agriculture and Food Science","COLLEGE OF AGRICULTURE, ANIMAL SCIENCES AND VETERINARY MEDICINE"]
[573,215021470,"IKORIBYAYO","ERIC","M",0.65993635684592544,"Second Class Honours, Lower Division","(BSC WITH HONS IN HORTICULTURE)","CROP SCIENCES","Agriculture and Food Science","COLLEGE OF AGRICULTURE, ANIMAL SCIENCES AND VETERINARY MEDICINE"]
[574,216091543,"IMANISHIMWE","YVETTE","F",0.68189114847922894,"Second Class Honours, Lower Division","(BSC WITH HONS IN HORTICULTURE)","CROP SCIENCES","Agriculture and Food Science","COLLEGE OF AGRICULTURE, ANIMAL SCIENCES AND VETERINARY MEDICINE"]
[575,216191467,"INGABIRE","SOLANGE","F",0.70326885494107638,"Second Class Honours, Lower Division","(BSC WITH HONS IN HORTICULTURE)","CROP SCIENCES","Agriculture and Food Science","COLLEGE OF AGRICULTURE, ANIMAL SCIENCES AND VETERINARY MEDICINE"]
[576,216230543,"IRADUKUNDA","BRIGITTE","F",0.71371455569926534,"Second Class Honours, Upper Division","(BSC WITH HONS IN HORTICULTURE)","CROP SCIENCES","Agriculture and Food Science","COLLEGE OF AGRICULTURE, ANIMAL SCIENCES AND VETERINARY MEDICINE"]
[577,216179130,"IRAFASHA","CLAIRE","F",0.7188442363441182,"Second Class Honours, Upper Division","(BSC WITH HONS IN HORTICULTURE)","CROP SCIENCES","Agriculture and Food Science","COLLEGE OF AGRICULTURE, ANIMAL SCIENCES AND VETERINARY MEDICINE"]
[578,216078415,"KOMEZUSENGE","CYPRIEN","M",0.70861853372560502,"Second Class Honours, Lower Division","(BSC WITH HONS IN HORTICULTURE)","CROP SCIENCES","Agriculture and Food Science","COLLEGE OF AGRICULTURE, ANIMAL SCIENCES AND VETERINARY MEDICINE"]
[579,216072891,"KOMEZUSENGE","PACIFIQUE","M",0.68539416485923854,"Second Class Honours, Lower Division","(BSC WITH HONS IN HORTICULTURE)","CROP SCIENCES","Agriculture and Food Science","COLLEGE OF AGRICULTURE, ANIMAL SCIENCES AND VETERINARY MEDICINE"]
[580,215043346,"MANIRIHO","MARIE SOLANGE","F",0.63753209420350343,"Second Class Honours, Lower Division","(BSC WITH HONS IN HORTICULTURE)","CROP SCIENCES","Agriculture and Food Science","COLLEGE OF AGRICULTURE, ANIMAL SCIENCES AND VETERINARY MEDICINE"]
[581,216168465,"MUKAMANA","VALERIE","F",0.67240075065133187,"Second Class Honours, Lower Division","(BSC WITH HONS IN HORTICULTURE)","CROP SCIENCES","Agriculture and Food Science","COLLEGE OF AGRICULTURE, ANIMAL SCIENCES AND VETERINARY MEDICINE"]
[582,216107415,"MUNYANEZA","VALENS","M",0.6678448968557571,"Second Class Honours, Lower Division","(BSC WITH HONS IN HORTICULTURE)","CROP SCIENCES","Agriculture and Food Science","COLLEGE OF AGRICULTURE, ANIMAL SCIENCES AND VETERINARY MEDICINE"]
[583,216297419,"MUTONI","PHIONAH","F",0.72478376347043438,"Second Class Honours, Lower Division","(BSC WITH HONS IN HORTICULTURE)","CROP SCIENCES","Agriculture and Food Science","COLLEGE OF AGRICULTURE, ANIMAL SCIENCES AND VETERINARY MEDICINE"]
[584,216080452,"NDAYISENGA","JEAN DAMASCENE","M",0.69420347360134149,"Second Class Honours, Lower Division","(BSC WITH HONS IN HORTICULTURE)","CROP SCIENCES","Agriculture and Food Science","COLLEGE OF AGRICULTURE, ANIMAL SCIENCES AND VETERINARY MEDICINE"]
[585,216118824,"NIYOBUHUNGIRO","JOVIN","M",0.68929527454195361,"Second Class Honours, Lower Division","(BSC WITH HONS IN HORTICULTURE)","CROP SCIENCES","Agriculture and Food Science","COLLEGE OF AGRICULTURE, ANIMAL SCIENCES AND VETERINARY MEDICINE"]
[586,216221080,"NIYOMUGABO","JEAN CLAUDE","M",0.69368213182637151,"Second Class Honours, Lower Division","(BSC WITH HONS IN HORTICULTURE)","CROP SCIENCES","Agriculture and Food Science","COLLEGE OF AGRICULTURE, ANIMAL SCIENCES AND VETERINARY MEDICINE"]
[587,216123208,"NIYONSENGA","JOSELYNE","F",0.72377101317894377,"Second Class Honours, Upper Division","(BSC WITH HONS IN HORTICULTURE)","CROP SCIENCES","Agriculture and Food Science","COLLEGE OF AGRICULTURE, ANIMAL SCIENCES AND VETERINARY MEDICINE"]
[588,216205611,"NSENGIYUMVA","SAMUEL","M",0.7253484477765868,"Second Class Honours, Upper Division","(BSC WITH HONS IN HORTICULTURE)","CROP SCIENCES","Agriculture and Food Science","COLLEGE OF AGRICULTURE, ANIMAL SCIENCES AND VETERINARY MEDICINE"]
[589,216186153,"NSHUNGUYACU","ARSENE","M",0.74175634487548658,"Second Class Honours, Lower Division","(BSC WITH HONS IN HORTICULTURE)","CROP SCIENCES","Agriculture and Food Science","COLLEGE OF AGRICULTURE, ANIMAL SCIENCES AND VETERINARY MEDICINE"]
[590,216267919,"NYANDWI","NICOLAS","M",0.71622622254479174,"Second Class Honours, Lower Division","(BSC WITH HONS IN HORTICULTURE)","CROP SCIENCES","Agriculture and Food Science","COLLEGE OF AGRICULTURE, ANIMAL SCIENCES AND VETERINARY MEDICINE"]
[591,216239672,"NYIRANSABIMANA","EMMERENCE","F",0.64651049156850005,"Second Class Honours, Lower Division","(BSC WITH HONS IN HORTICULTURE)","CROP SCIENCES","Agriculture and Food Science","COLLEGE OF AGRICULTURE, ANIMAL SCIENCES AND VETERINARY MEDICINE"]
[592,216173043,"NYIRANSENGIYUMVA","EUGENIE","F",0.65825554098553096,"Second Class Honours, Lower Division","(BSC WITH HONS IN HORTICULTURE)","CROP SCIENCES","Agriculture and Food Science","COLLEGE OF AGRICULTURE, ANIMAL SCIENCES AND VETERINARY MEDICINE"]
[593,216129842,"RENZAHO","YAHAYA","M",0.68291305122077262,"Second Class Honours, Lower Division","(BSC WITH HONS IN HORTICULTURE)","CROP SCIENCES","Agriculture and Food Science","COLLEGE OF AGRICULTURE, ANIMAL SCIENCES AND VETERINARY MEDICINE"]
[594,216095085,"TWIZERIMANA","DAVID","M",0.59790944825096082,"Pass","(BSC WITH HONS IN HORTICULTURE)","CROP SCIENCES","Agriculture and Food Science","COLLEGE OF AGRICULTURE, ANIMAL SCIENCES AND VETERINARY MEDICINE"]
[595,216242959,"UMUGWANEZA","OLIVA","F",0.71639899077360214,"Second Class Honours, Upper Division","(BSC WITH HONS IN HORTICULTURE)","CROP SCIENCES","Agriculture and Food Science","COLLEGE OF AGRICULTURE, ANIMAL SCIENCES AND VETERINARY MEDICINE"]
[596,216228883,"UMUGWANEZA","CHRISTINE","F",0.6680512778492802,"Second Class Honours, Lower Division","(BSC WITH HONS IN HORTICULTURE)","CROP SCIENCES","Agriculture and Food Science","COLLEGE OF AGRICULTURE, ANIMAL SCIENCES AND VETERINARY MEDICINE"]
[597,216093872,"UMUTONIWASE","MARIE CLAIRE","F",0.66750749305551471,"Second Class Honours, Lower Division","(BSC WITH HONS IN HORTICULTURE)","CROP SCIENCES","Agriculture and Food Science","COLLEGE OF AGRICULTURE, ANIMAL SCIENCES AND VETERINARY MEDICINE"]
[598,216259266,"UWANYIRIGIRA","DEVOTHA","F",0.70489401331639712,"Second Class Honours, Lower Division","(BSC WITH HONS IN HORTICULTURE)","CROP SCIENCES","Agriculture and Food Science","COLLEGE OF AGRICULTURE, ANIMAL SCIENCES AND VETERINARY MEDICINE"]
[599,216113199,"UWASE","REDEMPTA","F",0.69493069873867019,"Second Class Honours, Lower Division","(BSC WITH HONS IN HORTICULTURE)","CROP SCIENCES","Agriculture and Food Science","COLLEGE OF AGRICULTURE, ANIMAL SCIENCES AND VETERINARY MEDICINE"]
[600,216087368,"UWAYISABA","MARC","M",0.66885361478636707,"Second Class Honours, Lower Division","(BSC WITH HONS IN HORTICULTURE)","CROP SCIENCES","Agriculture and Food Science","COLLEGE OF AGRICULTURE, ANIMAL SCIENCES AND VETERINARY MEDICINE"]
[601,216094275,"UWERA","ROSINE","F",0.67015286890312031,"Second Class Honours, Lower Division","(BSC WITH HONS IN HORTICULTURE)","CROP SCIENCES","Agriculture and Food Science","COLLEGE OF AGRICULTURE, ANIMAL SCIENCES AND VETERINARY MEDICINE"]
[602,216236975,"UWIKUNDA","BENIGNE","F",0.72037683159761801,"Second Class Honours, Lower Division","(BSC WITH HONS IN HORTICULTURE)","CROP SCIENCES","Agriculture and Food Science","COLLEGE OF AGRICULTURE, ANIMAL SCIENCES AND VETERINARY MEDICINE"]
[603,216161509,"UWINGENEYE","DENYSE","F",0.67918894264415852,"Second Class Honours, Lower Division","(BSC WITH HONS IN HORTICULTURE)","CROP SCIENCES","Agriculture and Food Science","COLLEGE OF AGRICULTURE, ANIMAL SCIENCES AND VETERINARY MEDICINE"]
[604,216159180,"UWIRINGIYIMANA","BEATRICE","F",0.71813657490116511,"Second Class Honours, Lower Division","(BSC WITH HONS IN HORTICULTURE)","CROP SCIENCES","Agriculture and Food Science","COLLEGE OF AGRICULTURE, ANIMAL SCIENCES AND VETERINARY MEDICINE"]
[605,216159601,"UWIRINGIYIMANA","AGATHE","F",0.70823909278792119,"Second Class Honours, Lower Division","(BSC WITH HONS IN HORTICULTURE)","CROP SCIENCES","Agriculture and Food Science","COLLEGE OF AGRICULTURE, ANIMAL SCIENCES AND VETERINARY MEDICINE"]
[606,216197414,"UWIRINGIYIMANA","DELPHINE","F",0.69403295367532092,"Second Class Honours, Lower Division","(BSC WITH HONS IN HORTICULTURE)","CROP SCIENCES","Agriculture and Food Science","COLLEGE OF AGRICULTURE, ANIMAL SCIENCES AND VETERINARY MEDICINE"]
[607,216121809,"UWITUZE","DELPHINE","M",0.67060337470200382,"Second Class Honours, Lower Division","(BSC WITH HONS IN HORTICULTURE)","CROP SCIENCES","Agriculture and Food Science","COLLEGE OF AGRICULTURE, ANIMAL SCIENCES AND VETERINARY MEDICINE"]
[608,216185246,"UWIZEYIMANA","PROTOGENE","M",0.70795676832752141,"Second Class Honours, Lower Division","(BSC WITH HONS IN HORTICULTURE)","CROP SCIENCES","Agriculture and Food Science","COLLEGE OF AGRICULTURE, ANIMAL SCIENCES AND VETERINARY MEDICINE"]
[609,215026470,"PEPEKARE","AIME HONORE","M",63.154166666666669,"SECOND CLASS HONOURS, LOWER DIVISION","(BSC WITH HONS IN HORTICULTURE)","CROP SCIENCES","Agriculture and Food Science","COLLEGE OF AGRICULTURE, ANIMAL SCIENCES AND VETERINARY MEDICINE"]
[610,216125006,"ABANANATWE","ALBERT","M",0.69160828880311198,"Second Class Honours, Lower Division","(BSC WITH HONS IN IRRIGATION AND DRAINAGE)","IRRIGATION AND DRAINAGE","AGRICULTURAL ENGINEERIN+J383:K384G","COLLEGE OF AGRICULTURE, ANIMAL SCIENCES AND VETERINARY MEDICINE"]
[611,216110815,"AKIDUHAYE","SOLANGE","F",0.70722522204340299,"Second Class Honours, Lower Division","(BSC WITH HONS IN IRRIGATION AND DRAINAGE)","IRRIGATION AND DRAINAGE","AGRICULTURAL ENGINEERIN+J383:K384G","COLLEGE OF AGRICULTURE, ANIMAL SCIENCES AND VETERINARY MEDICINE"]
[612,216112788,"BYIRINGIRO","BONIFACE","M",0.69086675857704449,"Second Class Honours, Lower Division","(BSC WITH HONS IN IRRIGATION AND DRAINAGE)","IRRIGATION AND DRAINAGE","AGRICULTURAL ENGINEERIN+J383:K384G","COLLEGE OF AGRICULTURE, ANIMAL SCIENCES AND VETERINARY MEDICINE"]
[613,216101735,"BYUKUSENGE","PROTEGENE","M",0.70746068473860246,"Second Class Honours, Lower Division","(BSC WITH HONS IN IRRIGATION AND DRAINAGE)","IRRIGATION AND DRAINAGE","AGRICULTURAL ENGINEERIN+J383:K384G","COLLEGE OF AGRICULTURE, ANIMAL SCIENCES AND VETERINARY MEDICINE"]
[614,216122953,"CYURINYANA","VIOLETTE","F",0.68951257219134787,"Second Class Honours, Lower Division","(BSC WITH HONS IN IRRIGATION AND DRAINAGE)","IRRIGATION AND DRAINAGE","AGRICULTURAL ENGINEERIN+J383:K384G","COLLEGE OF AGRICULTURE, ANIMAL SCIENCES AND VETERINARY MEDICINE"]
[615,216099986,"DUFITIMANA","JANVIERE","F",0.72557668418537991,"Second Class Honours, Upper Division","(BSC WITH HONS IN IRRIGATION AND DRAINAGE)","IRRIGATION AND DRAINAGE","AGRICULTURAL ENGINEERIN+J383:K384G","COLLEGE OF AGRICULTURE, ANIMAL SCIENCES AND VETERINARY MEDICINE"]
[616,216119871,"DUSABE","JOSEE","F",0.70008044567941585,"Second Class Honours, Upper Division","(BSC WITH HONS IN IRRIGATION AND DRAINAGE)","IRRIGATION AND DRAINAGE","AGRICULTURAL ENGINEERIN+J383:K384G","COLLEGE OF AGRICULTURE, ANIMAL SCIENCES AND VETERINARY MEDICINE"]
[617,216085276,"DUSENGIMANA","HYACINTHE","F",0.70930491791770411,"Second Class Honours, Lower Division","(BSC WITH HONS IN IRRIGATION AND DRAINAGE)","IRRIGATION AND DRAINAGE","AGRICULTURAL ENGINEERIN+J383:K384G","COLLEGE OF AGRICULTURE, ANIMAL SCIENCES AND VETERINARY MEDICINE"]
[618,216153999,"DUSENGIMANA","PATRICK","M",0.69119342796791305,"Second Class Honours, Lower Division","(BSC WITH HONS IN IRRIGATION AND DRAINAGE)","IRRIGATION AND DRAINAGE","AGRICULTURAL ENGINEERIN+J383:K384G","COLLEGE OF AGRICULTURE, ANIMAL SCIENCES AND VETERINARY MEDICINE"]
[619,216132037,"DUSINGIZIMANA","MARIE ROSE","F",0.68908873479685795,"Second Class Honours, Lower Division","(BSC WITH HONS IN IRRIGATION AND DRAINAGE)","IRRIGATION AND DRAINAGE","AGRICULTURAL ENGINEERIN+J383:K384G","COLLEGE OF AGRICULTURE, ANIMAL SCIENCES AND VETERINARY MEDICINE"]
[620,216101743,"GAKURU","MODESTE","M",0.76565716664152017,"Second Class Honours, Upper Division","(BSC WITH HONS IN IRRIGATION AND DRAINAGE)","IRRIGATION AND DRAINAGE","AGRICULTURAL ENGINEERIN+J383:K384G","COLLEGE OF AGRICULTURE, ANIMAL SCIENCES AND VETERINARY MEDICINE"]
[621,216313252,"GASARO","CHRISTIAN","M",0.65178476217718218,"Second Class Honours, Lower Division","(BSC WITH HONS IN IRRIGATION AND DRAINAGE)","IRRIGATION AND DRAINAGE","AGRICULTURAL ENGINEERIN+J383:K384G","COLLEGE OF AGRICULTURE, ANIMAL SCIENCES AND VETERINARY MEDICINE"]
[622,215043537,"HABYARIMANA","PATRICK","M",0.67302685360977688,"Second Class Honours, Lower Division","(BSC WITH HONS IN IRRIGATION AND DRAINAGE)","IRRIGATION AND DRAINAGE","AGRICULTURAL ENGINEERIN+J383:K384G","COLLEGE OF AGRICULTURE, ANIMAL SCIENCES AND VETERINARY MEDICINE"]
[623,216125480,"HAFASHIMANA","FIDELE","M",0.69109908427003974,"Second Class Honours, Lower Division","(BSC WITH HONS IN IRRIGATION AND DRAINAGE)","IRRIGATION AND DRAINAGE","AGRICULTURAL ENGINEERIN+J383:K384G","COLLEGE OF AGRICULTURE, ANIMAL SCIENCES AND VETERINARY MEDICINE"]
[624,216188474,"HAFASHIMANA","ANASTASE","M",0.6956792323827965,"Second Class Honours, Lower Division","(BSC WITH HONS IN IRRIGATION AND DRAINAGE)","IRRIGATION AND DRAINAGE","AGRICULTURAL ENGINEERIN+J383:K384G","COLLEGE OF AGRICULTURE, ANIMAL SCIENCES AND VETERINARY MEDICINE"]
[625,216070414,"HAGENIMANA","VESTINE","F",0.71837186834142219,"Second Class Honours, Lower Division","(BSC WITH HONS IN IRRIGATION AND DRAINAGE)","IRRIGATION AND DRAINAGE","AGRICULTURAL ENGINEERIN+J383:K384G","COLLEGE OF AGRICULTURE, ANIMAL SCIENCES AND VETERINARY MEDICINE"]
[626,216129311,"HAKIZIMANA","EMMANUEL","M",0.70699299660103432,"Second Class Honours, Upper Division","(BSC WITH HONS IN IRRIGATION AND DRAINAGE)","IRRIGATION AND DRAINAGE","AGRICULTURAL ENGINEERIN+J383:K384G","COLLEGE OF AGRICULTURE, ANIMAL SCIENCES AND VETERINARY MEDICINE"]
[627,216109973,"IMANIRIHO","DANIEL","M",0.69087527506056101,"Second Class Honours, Lower Division","(BSC WITH HONS IN IRRIGATION AND DRAINAGE)","IRRIGATION AND DRAINAGE","AGRICULTURAL ENGINEERIN+J383:K384G","COLLEGE OF AGRICULTURE, ANIMAL SCIENCES AND VETERINARY MEDICINE"]
[628,216117399,"IRANTABARA","SAMUEL","M",0.66048178766313781,"Second Class Honours, Lower Division","(BSC WITH HONS IN IRRIGATION AND DRAINAGE)","IRRIGATION AND DRAINAGE","AGRICULTURAL ENGINEERIN+J383:K384G","COLLEGE OF AGRICULTURE, ANIMAL SCIENCES AND VETERINARY MEDICINE"]
[629,216117151,"IRANTABARA","JEAN MARIE VIANNEY","M",0.66654199032279704,"Second Class Honours, Lower Division","(BSC WITH HONS IN IRRIGATION AND DRAINAGE)","IRRIGATION AND DRAINAGE","AGRICULTURAL ENGINEERIN+J383:K384G","COLLEGE OF AGRICULTURE, ANIMAL SCIENCES AND VETERINARY MEDICINE"]
[630,216177731,"ISHIMWE","ANASTASIE","F",0.72709362714897607,"Second Class Honours, Upper Division","(BSC WITH HONS IN IRRIGATION AND DRAINAGE)","IRRIGATION AND DRAINAGE","AGRICULTURAL ENGINEERIN+J383:K384G","COLLEGE OF AGRICULTURE, ANIMAL SCIENCES AND VETERINARY MEDICINE"]
[631,216317371,"MASENGESHO","ANGELIQUE","F",0.6673410140107795,"Second Class Honours, Lower Division","(BSC WITH HONS IN IRRIGATION AND DRAINAGE)","IRRIGATION AND DRAINAGE","AGRICULTURAL ENGINEERIN+J383:K384G","COLLEGE OF AGRICULTURE, ANIMAL SCIENCES AND VETERINARY MEDICINE"]
[632,216218632,"MBARUBUKEYE","KALISA","M",0.67229909912741714,"Second Class Honours, Lower Division","(BSC WITH HONS IN IRRIGATION AND DRAINAGE)","IRRIGATION AND DRAINAGE","AGRICULTURAL ENGINEERIN+J383:K384G","COLLEGE OF AGRICULTURE, ANIMAL SCIENCES AND VETERINARY MEDICINE"]
[633,216148162,"MBARUSHIMANA","JEAN CLAUDE","M",0.71099486521487654,"Second Class Honours, Lower Division","(BSC WITH HONS IN IRRIGATION AND DRAINAGE)","IRRIGATION AND DRAINAGE","AGRICULTURAL ENGINEERIN+J383:K384G","COLLEGE OF AGRICULTURE, ANIMAL SCIENCES AND VETERINARY MEDICINE"]
[634,216149746,"MENYUGARUKE","THACIENNE","F",0.72546174049253564,"Second Class Honours, Upper Division","(BSC WITH HONS IN IRRIGATION AND DRAINAGE)","IRRIGATION AND DRAINAGE","AGRICULTURAL ENGINEERIN+J383:K384G","COLLEGE OF AGRICULTURE, ANIMAL SCIENCES AND VETERINARY MEDICINE"]
[635,216089441,"MINANI","JEREMIE","M",0.68429800890185322,"Second Class Honours, Lower Division","(BSC WITH HONS IN IRRIGATION AND DRAINAGE)","IRRIGATION AND DRAINAGE","AGRICULTURAL ENGINEERIN+J383:K384G","COLLEGE OF AGRICULTURE, ANIMAL SCIENCES AND VETERINARY MEDICINE"]
[636,215043374,"MUGISHA","EMMANUEL","M",0.78119891524379492,"Second Class Honours, Upper Division","(BSC WITH HONS IN IRRIGATION AND DRAINAGE)","IRRIGATION AND DRAINAGE","AGRICULTURAL ENGINEERIN+J383:K384G","COLLEGE OF AGRICULTURE, ANIMAL SCIENCES AND VETERINARY MEDICINE"]
[637,216092531,"MUGISHA","NAOME","F",0.72897852138707975,"Second Class Honours, Upper Division","(BSC WITH HONS IN IRRIGATION AND DRAINAGE)","IRRIGATION AND DRAINAGE","AGRICULTURAL ENGINEERIN+J383:K384G","COLLEGE OF AGRICULTURE, ANIMAL SCIENCES AND VETERINARY MEDICINE"]
[638,216100151,"MUGISHA","BOB","M",0.71371500354146233,"Second Class Honours, Lower Division","(BSC WITH HONS IN IRRIGATION AND DRAINAGE)","IRRIGATION AND DRAINAGE","AGRICULTURAL ENGINEERIN+J383:K384G","COLLEGE OF AGRICULTURE, ANIMAL SCIENCES AND VETERINARY MEDICINE"]
[639,216125316,"MUGISHA","POTIEN","M",0.66323611507866653,"Second Class Honours, Lower Division","(BSC WITH HONS IN IRRIGATION AND DRAINAGE)","IRRIGATION AND DRAINAGE","AGRICULTURAL ENGINEERIN+J383:K384G","COLLEGE OF AGRICULTURE, ANIMAL SCIENCES AND VETERINARY MEDICINE"]
[640,216260361,"MUHIRE","SERGE","M",0.68649175247902361,"Second Class Honours, Lower Division","(BSC WITH HONS IN IRRIGATION AND DRAINAGE)","IRRIGATION AND DRAINAGE","AGRICULTURAL ENGINEERIN+J383:K384G","COLLEGE OF AGRICULTURE, ANIMAL SCIENCES AND VETERINARY MEDICINE"]
[641,216285860,"MUHIZI","ALAIN","M",0.68220652362511625,"Second Class Honours, Lower Division","(BSC WITH HONS IN IRRIGATION AND DRAINAGE)","IRRIGATION AND DRAINAGE","AGRICULTURAL ENGINEERIN+J383:K384G","COLLEGE OF AGRICULTURE, ANIMAL SCIENCES AND VETERINARY MEDICINE"]
[642,216246482,"MUJYANAMA","JEAN CLAUDE","M",0.68204497711670486,"Second Class Honours, Lower Division","(BSC WITH HONS IN IRRIGATION AND DRAINAGE)","IRRIGATION AND DRAINAGE","AGRICULTURAL ENGINEERIN+J383:K384G","COLLEGE OF AGRICULTURE, ANIMAL SCIENCES AND VETERINARY MEDICINE"]
[643,216089522,"MUKESHIMANA","SIMEON","M",0.69105580667806621,"Second Class Honours, Lower Division","(BSC WITH HONS IN IRRIGATION AND DRAINAGE)","IRRIGATION AND DRAINAGE","AGRICULTURAL ENGINEERIN+J383:K384G","COLLEGE OF AGRICULTURE, ANIMAL SCIENCES AND VETERINARY MEDICINE"]
[644,216144825,"MUKESHIMANA","AGNES","F",0.72789754603901069,"Second Class Honours, Upper Division","(BSC WITH HONS IN IRRIGATION AND DRAINAGE)","IRRIGATION AND DRAINAGE","AGRICULTURAL ENGINEERIN+J383:K384G","COLLEGE OF AGRICULTURE, ANIMAL SCIENCES AND VETERINARY MEDICINE"]
[645,216152704,"MURAGIJIMANA","OBADIA","M",0.71025207554840275,"Second Class Honours, Lower Division","(BSC WITH HONS IN IRRIGATION AND DRAINAGE)","IRRIGATION AND DRAINAGE","AGRICULTURAL ENGINEERIN+J383:K384G","COLLEGE OF AGRICULTURE, ANIMAL SCIENCES AND VETERINARY MEDICINE"]
[646,216209463,"MUREBWAYIRE","MATHILDE","F",0.69253503113972215,"Second Class Honours, Lower Division","(BSC WITH HONS IN IRRIGATION AND DRAINAGE)","IRRIGATION AND DRAINAGE","AGRICULTURAL ENGINEERIN+J383:K384G","COLLEGE OF AGRICULTURE, ANIMAL SCIENCES AND VETERINARY MEDICINE"]
[647,216105641,"MURWANASHYAKA","EMMANUEL","M",0.71433718022061843,"Second Class Honours, Lower Division","(BSC WITH HONS IN IRRIGATION AND DRAINAGE)","IRRIGATION AND DRAINAGE","AGRICULTURAL ENGINEERIN+J383:K384G","COLLEGE OF AGRICULTURE, ANIMAL SCIENCES AND VETERINARY MEDICINE"]
[648,216199190,"NAYITURIKI","LILIANE","F",0.67312709732106191,"Second Class Honours, Lower Division","(BSC WITH HONS IN IRRIGATION AND DRAINAGE)","IRRIGATION AND DRAINAGE","AGRICULTURAL ENGINEERIN+J383:K384G","COLLEGE OF AGRICULTURE, ANIMAL SCIENCES AND VETERINARY MEDICINE"]
[649,215009308,"NDACYAYISENGA","PROSPER","M",0.6908037129822886,"Second Class Honours, Lower Division","(BSC WITH HONS IN IRRIGATION AND DRAINAGE)","IRRIGATION AND DRAINAGE","AGRICULTURAL ENGINEERIN+J383:K384G","COLLEGE OF AGRICULTURE, ANIMAL SCIENCES AND VETERINARY MEDICINE"]
[650,215043596,"NDAGIJIMANA","OBARD","M",0.76104239509727489,"Second Class Honours, Upper Division","(BSC WITH HONS IN IRRIGATION AND DRAINAGE)","IRRIGATION AND DRAINAGE","AGRICULTURAL ENGINEERIN+J383:K384G","COLLEGE OF AGRICULTURE, ANIMAL SCIENCES AND VETERINARY MEDICINE"]
[651,216125138,"NDAYISABA","AIMABLE","M",0.67887336547891464,"Second Class Honours, Lower Division","(BSC WITH HONS IN IRRIGATION AND DRAINAGE)","IRRIGATION AND DRAINAGE","AGRICULTURAL ENGINEERIN+J383:K384G","COLLEGE OF AGRICULTURE, ANIMAL SCIENCES AND VETERINARY MEDICINE"]
[652,215043298,"NDAYISHIMIYE","PASCAL","M",0.70145570866966755,"Second Class Honours, Lower Division","(BSC WITH HONS IN IRRIGATION AND DRAINAGE)","IRRIGATION AND DRAINAGE","AGRICULTURAL ENGINEERIN+J383:K384G","COLLEGE OF AGRICULTURE, ANIMAL SCIENCES AND VETERINARY MEDICINE"]
[653,215018289,"NDAYISHIMIYE","JEAN YVES","M",0.71309316449568738,"Second Class Honours, Upper Division","(BSC WITH HONS IN IRRIGATION AND DRAINAGE)","IRRIGATION AND DRAINAGE","AGRICULTURAL ENGINEERIN+J383:K384G","COLLEGE OF AGRICULTURE, ANIMAL SCIENCES AND VETERINARY MEDICINE"]
[654,216169879,"NIYODUSENGA","FULGENCE","M",0.67362660088767057,"Second Class Honours, Lower Division","(BSC WITH HONS IN IRRIGATION AND DRAINAGE)","IRRIGATION AND DRAINAGE","AGRICULTURAL ENGINEERIN+J383:K384G","COLLEGE OF AGRICULTURE, ANIMAL SCIENCES AND VETERINARY MEDICINE"]
[655,216260914,"NIYONAGIZE","INNOCENT","M",0.6784018756129454,"Second Class Honours, Lower Division","(BSC WITH HONS IN IRRIGATION AND DRAINAGE)","IRRIGATION AND DRAINAGE","AGRICULTURAL ENGINEERIN+J383:K384G","COLLEGE OF AGRICULTURE, ANIMAL SCIENCES AND VETERINARY MEDICINE"]
[656,216125960,"NIYONGABO","FELICIEN","M",0.71556332627136388,"Second Class Honours, Lower Division","(BSC WITH HONS IN IRRIGATION AND DRAINAGE)","IRRIGATION AND DRAINAGE","AGRICULTURAL ENGINEERIN+J383:K384G","COLLEGE OF AGRICULTURE, ANIMAL SCIENCES AND VETERINARY MEDICINE"]
[657,216070686,"NIYONKURU","CEDRICK","M",0.74717834121256321,"Second Class Honours, Upper Division","(BSC WITH HONS IN IRRIGATION AND DRAINAGE)","IRRIGATION AND DRAINAGE","AGRICULTURAL ENGINEERIN+J383:K384G","COLLEGE OF AGRICULTURE, ANIMAL SCIENCES AND VETERINARY MEDICINE"]
[658,216102111,"NIYONSENGA","GEORGETTE","F",0.70021404265261822,"Second Class Honours, Lower Division","(BSC WITH HONS IN IRRIGATION AND DRAINAGE)","IRRIGATION AND DRAINAGE","AGRICULTURAL ENGINEERIN+J383:K384G","COLLEGE OF AGRICULTURE, ANIMAL SCIENCES AND VETERINARY MEDICINE"]
[659,216289696,"NIYONSHUTI","DATIVE","F",0.67393028004794586,"Second Class Honours, Lower Division","(BSC WITH HONS IN IRRIGATION AND DRAINAGE)","IRRIGATION AND DRAINAGE","AGRICULTURAL ENGINEERIN+J383:K384G","COLLEGE OF AGRICULTURE, ANIMAL SCIENCES AND VETERINARY MEDICINE"]
[660,216163501,"NIZEYUMUREMYI","CLAUDINE","F",0.71547049251473172,"Second Class Honours, Lower Division","(BSC WITH HONS IN IRRIGATION AND DRAINAGE)","IRRIGATION AND DRAINAGE","AGRICULTURAL ENGINEERIN+J383:K384G","COLLEGE OF AGRICULTURE, ANIMAL SCIENCES AND VETERINARY MEDICINE"]
[661,215004996,"NKAMIZIKUNZE"," EMMANUEL","M",0.64261544456877984,"Second Class Honours, Lower Division","(BSC WITH HONS IN IRRIGATION AND DRAINAGE)","IRRIGATION AND DRAINAGE","AGRICULTURAL ENGINEERIN+J383:K384G","COLLEGE OF AGRICULTURE, ANIMAL SCIENCES AND VETERINARY MEDICINE"]
[662,216185602,"NSABIMANA","EMMANUEL.","M",0.66364637440172347,"Second Class Honours, Lower Division","(BSC WITH HONS IN IRRIGATION AND DRAINAGE)","IRRIGATION AND DRAINAGE","AGRICULTURAL ENGINEERIN+J383:K384G","COLLEGE OF AGRICULTURE, ANIMAL SCIENCES AND VETERINARY MEDICINE"]
[663,216205387,"NSENGIYAREMYE","EMMANUEL","M",0.6478132054634913,"Second Class Honours, Lower Division","(BSC WITH HONS IN IRRIGATION AND DRAINAGE)","IRRIGATION AND DRAINAGE","AGRICULTURAL ENGINEERIN+J383:K384G","COLLEGE OF AGRICULTURE, ANIMAL SCIENCES AND VETERINARY MEDICINE"]
[664,216321409," NSENGIYUMVA ","MARCEL","M",0.65647968447456417,"Second Class Honours, Lower Division","(BSC WITH HONS IN IRRIGATION AND DRAINAGE)","IRRIGATION AND DRAINAGE","AGRICULTURAL ENGINEERIN+J383:K384G","COLLEGE OF AGRICULTURE, ANIMAL SCIENCES AND VETERINARY MEDICINE"]
[665,216206901,"NSHIMIYUMUREMYI","FERDINAND","M",0.67133129290617843,"Second Class Honours, Lower Division","(BSC WITH HONS IN IRRIGATION AND DRAINAGE)","IRRIGATION AND DRAINAGE","AGRICULTURAL ENGINEERIN+J383:K384G","COLLEGE OF AGRICULTURE, ANIMAL SCIENCES AND VETERINARY MEDICINE"]
[666,216123356,"NTAKIRUTIMANA","ALEXIS","M",0.70350860493625367,"Second Class Honours, Lower Division","(BSC WITH HONS IN IRRIGATION AND DRAINAGE)","IRRIGATION AND DRAINAGE","AGRICULTURAL ENGINEERIN+J383:K384G","COLLEGE OF AGRICULTURE, ANIMAL SCIENCES AND VETERINARY MEDICINE"]
[667,216187265,"NTIRANDEKURA","THEONESTE","M",0.62012641453131156,"Second Class Honours, Lower Division","(BSC WITH HONS IN IRRIGATION AND DRAINAGE)","IRRIGATION AND DRAINAGE","AGRICULTURAL ENGINEERIN+J383:K384G","COLLEGE OF AGRICULTURE, ANIMAL SCIENCES AND VETERINARY MEDICINE"]
[668,216295572,"NYIRABIZEYIMANA","ANGELIQUE","F",0.70304276598687365,"Second Class Honours, Lower Division","(BSC WITH HONS IN IRRIGATION AND DRAINAGE)","IRRIGATION AND DRAINAGE","AGRICULTURAL ENGINEERIN+J383:K384G","COLLEGE OF AGRICULTURE, ANIMAL SCIENCES AND VETERINARY MEDICINE"]
[669,216144280,"NYIRANSENGIYUMVA","ESTHER","F",0.67770616486869339,"Second Class Honours, Lower Division","(BSC WITH HONS IN IRRIGATION AND DRAINAGE)","IRRIGATION AND DRAINAGE","AGRICULTURAL ENGINEERIN+J383:K384G","COLLEGE OF AGRICULTURE, ANIMAL SCIENCES AND VETERINARY MEDICINE"]
[670,216168864,"NYIRANSENGIYUMVA","ALPHONSINE","F",0.69192015207332713,"Second Class Honours, Lower Division","(BSC WITH HONS IN IRRIGATION AND DRAINAGE)","IRRIGATION AND DRAINAGE","AGRICULTURAL ENGINEERIN+J383:K384G","COLLEGE OF AGRICULTURE, ANIMAL SCIENCES AND VETERINARY MEDICINE"]
[671,216164001,"NYIRANZEYIMANA","EMMA","F",0.68739198751477348,"Second Class Honours, Lower Division","(BSC WITH HONS IN IRRIGATION AND DRAINAGE)","IRRIGATION AND DRAINAGE","AGRICULTURAL ENGINEERIN+J383:K384G","COLLEGE OF AGRICULTURE, ANIMAL SCIENCES AND VETERINARY MEDICINE"]
[672,216207282,"NYIRANZITUKUZE","PASCASIE","F",0.7136383861199822,"Second Class Honours, Upper Division","(BSC WITH HONS IN IRRIGATION AND DRAINAGE)","IRRIGATION AND DRAINAGE","AGRICULTURAL ENGINEERIN+J383:K384G","COLLEGE OF AGRICULTURE, ANIMAL SCIENCES AND VETERINARY MEDICINE"]
[673,216099544,"NZABONIMPA"," JACQUES","M",0.685415962355722,"Second Class Honours, Lower Division","(BSC WITH HONS IN IRRIGATION AND DRAINAGE)","IRRIGATION AND DRAINAGE","AGRICULTURAL ENGINEERIN+J383:K384G","COLLEGE OF AGRICULTURE, ANIMAL SCIENCES AND VETERINARY MEDICINE"]
[674,216212820,"NZITABAKUZE","FRANCOIS XAVIER","M",0.68081018926915959,"Second Class Honours, Lower Division","(BSC WITH HONS IN IRRIGATION AND DRAINAGE)","IRRIGATION AND DRAINAGE","AGRICULTURAL ENGINEERIN+J383:K384G","COLLEGE OF AGRICULTURE, ANIMAL SCIENCES AND VETERINARY MEDICINE"]
[675,215005235,"RIZINJIRABAKE","JEAN D'AMOUR","M",0.69065750226318301,"Second Class Honours, Lower Division","(BSC WITH HONS IN IRRIGATION AND DRAINAGE)","IRRIGATION AND DRAINAGE","AGRICULTURAL ENGINEERIN+J383:K384G","COLLEGE OF AGRICULTURE, ANIMAL SCIENCES AND VETERINARY MEDICINE"]
[676,216280958,"RUSARO","CLAVER","M",0.6739792841216754,"Second Class Honours, Lower Division","(BSC WITH HONS IN IRRIGATION AND DRAINAGE)","IRRIGATION AND DRAINAGE","AGRICULTURAL ENGINEERIN+J383:K384G","COLLEGE OF AGRICULTURE, ANIMAL SCIENCES AND VETERINARY MEDICINE"]
[677,216142644,"RWAKUNDA","JEROME","M",0.72011493952271977,"Second Class Honours, Upper Division","(BSC WITH HONS IN IRRIGATION AND DRAINAGE)","IRRIGATION AND DRAINAGE","AGRICULTURAL ENGINEERIN+J383:K384G","COLLEGE OF AGRICULTURE, ANIMAL SCIENCES AND VETERINARY MEDICINE"]
[678,216145945,"SIBOMANA","ZABULON","M",0.65857272413894263,"Second Class Honours, Lower Division","(BSC WITH HONS IN IRRIGATION AND DRAINAGE)","IRRIGATION AND DRAINAGE","AGRICULTURAL ENGINEERIN+J383:K384G","COLLEGE OF AGRICULTURE, ANIMAL SCIENCES AND VETERINARY MEDICINE"]
[679,216208335,"SIBOMANA","AIMABLE","M",0.66590578538738154,"Second Class Honours, Lower Division","(BSC WITH HONS IN IRRIGATION AND DRAINAGE)","IRRIGATION AND DRAINAGE","AGRICULTURAL ENGINEERIN+J383:K384G","COLLEGE OF AGRICULTURE, ANIMAL SCIENCES AND VETERINARY MEDICINE"]
[680,215002467,"SINDIKUBWABO","PROTAIS","M",0.67727677062639868,"Second Class Honours, Lower Division","(BSC WITH HONS IN IRRIGATION AND DRAINAGE)","IRRIGATION AND DRAINAGE","AGRICULTURAL ENGINEERIN+J383:K384G","COLLEGE OF AGRICULTURE, ANIMAL SCIENCES AND VETERINARY MEDICINE"]
[681,216071941,"TAREMWA","FRED","M",0.74050696831962848,"Second Class Honours, Upper Division","(BSC WITH HONS IN IRRIGATION AND DRAINAGE)","IRRIGATION AND DRAINAGE","AGRICULTURAL ENGINEERIN+J383:K384G","COLLEGE OF AGRICULTURE, ANIMAL SCIENCES AND VETERINARY MEDICINE"]
[682,216097614,"TUMUKUNDE","AIME","M",0.68945644858383415,"Second Class Honours, Lower Division","(BSC WITH HONS IN IRRIGATION AND DRAINAGE)","IRRIGATION AND DRAINAGE","AGRICULTURAL ENGINEERIN+J383:K384G","COLLEGE OF AGRICULTURE, ANIMAL SCIENCES AND VETERINARY MEDICINE"]
[683,216191513,"TUYISENGE","THACIEN","M",0.66344546946379335,"Second Class Honours, Lower Division","(BSC WITH HONS IN IRRIGATION AND DRAINAGE)","IRRIGATION AND DRAINAGE","AGRICULTURAL ENGINEERIN+J383:K384G","COLLEGE OF AGRICULTURE, ANIMAL SCIENCES AND VETERINARY MEDICINE"]
[684,216126711,"TUYISHIME","VENUSTE","M",0.71369394954778254,"Second Class Honours, Upper Division","(BSC WITH HONS IN IRRIGATION AND DRAINAGE)","IRRIGATION AND DRAINAGE","AGRICULTURAL ENGINEERIN+J383:K384G","COLLEGE OF AGRICULTURE, ANIMAL SCIENCES AND VETERINARY MEDICINE"]
[685,216193443,"TUYISHIME","WELLARS","M",0.69175909799582558,"Second Class Honours, Lower Division","(BSC WITH HONS IN IRRIGATION AND DRAINAGE)","IRRIGATION AND DRAINAGE","AGRICULTURAL ENGINEERIN+J383:K384G","COLLEGE OF AGRICULTURE, ANIMAL SCIENCES AND VETERINARY MEDICINE"]
[686,216141370,"TUYISINGIZE","ODETTE","F",0.67255644577581075,"Second Class Honours, Lower Division","(BSC WITH HONS IN IRRIGATION AND DRAINAGE)","IRRIGATION AND DRAINAGE","AGRICULTURAL ENGINEERIN+J383:K384G","COLLEGE OF AGRICULTURE, ANIMAL SCIENCES AND VETERINARY MEDICINE"]
[687,216071690,"TWIZERE","YVES","M",0.74804498964803301,"Second Class Honours, Upper Division","(BSC WITH HONS IN IRRIGATION AND DRAINAGE)","IRRIGATION AND DRAINAGE","AGRICULTURAL ENGINEERIN+J383:K384G","COLLEGE OF AGRICULTURE, ANIMAL SCIENCES AND VETERINARY MEDICINE"]
[688,216098327,"UMUHOZA","SYLVIE","F",0.6938122419133117,"Second Class Honours, Lower Division","(BSC WITH HONS IN IRRIGATION AND DRAINAGE)","IRRIGATION AND DRAINAGE","AGRICULTURAL ENGINEERIN+J383:K384G","COLLEGE OF AGRICULTURE, ANIMAL SCIENCES AND VETERINARY MEDICINE"]
[689,216146631,"UMUTESI","JEANNE FRANCOISE DE CHANTAL","F",0.6645241754050677,"Second Class Honours, Lower Division","(BSC WITH HONS IN IRRIGATION AND DRAINAGE)","IRRIGATION AND DRAINAGE","AGRICULTURAL ENGINEERIN+J383:K384G","COLLEGE OF AGRICULTURE, ANIMAL SCIENCES AND VETERINARY MEDICINE"]
[690,216232813,"UMUTONI","GLORIOSE","F",0.70001623949086778,"Second Class Honours, Lower Division","(BSC WITH HONS IN IRRIGATION AND DRAINAGE)","IRRIGATION AND DRAINAGE","AGRICULTURAL ENGINEERIN+J383:K384G","COLLEGE OF AGRICULTURE, ANIMAL SCIENCES AND VETERINARY MEDICINE"]
[691,216311713,"UTETIWABO","SARAH","F",0.70007878045867189,"Second Class Honours, Lower Division","(BSC WITH HONS IN IRRIGATION AND DRAINAGE)","IRRIGATION AND DRAINAGE","AGRICULTURAL ENGINEERIN+J383:K384G","COLLEGE OF AGRICULTURE, ANIMAL SCIENCES AND VETERINARY MEDICINE"]
[692,215015376,"UWAMAHORO","VALENTINE","F",0.71109709828501011,"Second Class Honours, Lower Division","(BSC WITH HONS IN IRRIGATION AND DRAINAGE)","IRRIGATION AND DRAINAGE","AGRICULTURAL ENGINEERIN+J383:K384G","COLLEGE OF AGRICULTURE, ANIMAL SCIENCES AND VETERINARY MEDICINE"]
[693,216117372,"UWAMAHORO","CLAUDINE","F",0.65099991462770634,"Second Class Honours, Lower Division","(BSC WITH HONS IN IRRIGATION AND DRAINAGE)","IRRIGATION AND DRAINAGE","AGRICULTURAL ENGINEERIN+J383:K384G","COLLEGE OF AGRICULTURE, ANIMAL SCIENCES AND VETERINARY MEDICINE"]
[694,216147557,"UWAMAHORO","ELIANNE","F",0.70744498202026806,"Second Class Honours, Lower Division","(BSC WITH HONS IN IRRIGATION AND DRAINAGE)","IRRIGATION AND DRAINAGE","AGRICULTURAL ENGINEERIN+J383:K384G","COLLEGE OF AGRICULTURE, ANIMAL SCIENCES AND VETERINARY MEDICINE"]
[695,216146100,"UWASE","JUSTINE","F",0.69864551596382252,"Second Class Honours, Lower Division","(BSC WITH HONS IN IRRIGATION AND DRAINAGE)","IRRIGATION AND DRAINAGE","AGRICULTURAL ENGINEERIN+J383:K384G","COLLEGE OF AGRICULTURE, ANIMAL SCIENCES AND VETERINARY MEDICINE"]
[696,216111315,"UWIMANA","DENYSE","F",0.64944279827914253,"Second Class Honours, Lower Division","(BSC WITH HONS IN IRRIGATION AND DRAINAGE)","IRRIGATION AND DRAINAGE","AGRICULTURAL ENGINEERIN+J383:K384G","COLLEGE OF AGRICULTURE, ANIMAL SCIENCES AND VETERINARY MEDICINE"]
[697,216250013,"UWIMANA","MARIE CLARISSE","F",0.72382191465285284,"Second Class Honours, Lower Division","(BSC WITH HONS IN IRRIGATION AND DRAINAGE)","IRRIGATION AND DRAINAGE","AGRICULTURAL ENGINEERIN+J383:K384G","COLLEGE OF AGRICULTURE, ANIMAL SCIENCES AND VETERINARY MEDICINE"]
[698,216154693,"UWIMBABAZI","VIOLLETTE","F",0.68016218095405734,"Second Class Honours, Lower Division","(BSC WITH HONS IN IRRIGATION AND DRAINAGE)","IRRIGATION AND DRAINAGE","AGRICULTURAL ENGINEERIN+J383:K384G","COLLEGE OF AGRICULTURE, ANIMAL SCIENCES AND VETERINARY MEDICINE"]
[699,215001025,"UWIRINGIYIMANA"," JEAN  CLAUDE","M",0.68773767642350025,"Second Class Honours, Lower Division","(BSC WITH HONS IN IRRIGATION AND DRAINAGE)","IRRIGATION AND DRAINAGE","AGRICULTURAL ENGINEERIN+J383:K384G","COLLEGE OF AGRICULTURE, ANIMAL SCIENCES AND VETERINARY MEDICINE"]
[700,216124883,"UWIZEYIMANA","DAVID","M",0.73481702020519524,"Second Class Honours, Upper Division","(BSC WITH HONS IN IRRIGATION AND DRAINAGE)","IRRIGATION AND DRAINAGE","AGRICULTURAL ENGINEERIN+J383:K384G","COLLEGE OF AGRICULTURE, ANIMAL SCIENCES AND VETERINARY MEDICINE"]
[701,216130689,"VUMILIYA","JEANNE CLEMENCE","F",0.69469875483021926,"Second Class Honours, Lower Division","(BSC WITH HONS IN IRRIGATION AND DRAINAGE)","IRRIGATION AND DRAINAGE","AGRICULTURAL ENGINEERIN+J383:K384G","COLLEGE OF AGRICULTURE, ANIMAL SCIENCES AND VETERINARY MEDICINE"]
[702,217297544,"MURINDANGABO","ERIC","M",0.65939999999999999,"Second Class Honours, Lower Division","(BSC WITH HONS IN IRRIGATION AND DRAINAGE)","IRRIGATION AND DRAINAGE","AGRICULTURAL ENGINEERING","COLLEGE OF AGRICULTURE, ANIMAL SCIENCES AND VETERINARY MEDICINE"]
[703,216252121,"BIGIRIMANA","ERIC","M",0.67000747305255004,"Second Class Honours, Lower Division","(BSC WITH HONS IN RURAL DEVELOPMENT)","Rural Development and Agricultural Economics","Agriculture and Food Science","COLLEGE OF AGRICULTURE, ANIMAL SCIENCES AND VETERINARY MEDICINE"]
[704,216109337,"HARERIMANA","JEAN CLAUDE","M",0.67611124722375038,"Second Class Honours, Lower Division","(BSC WITH HONS IN RURAL DEVELOPMENT)","Rural Development and Agricultural Economics","Agriculture and Food Science","COLLEGE OF AGRICULTURE, ANIMAL SCIENCES AND VETERINARY MEDICINE"]
[705,216202426,"HITABATUMA","JEAN MARIE VIANNEY","M",0.67895938907227416,"Second Class Honours, Lower Division","(BSC WITH HONS IN RURAL DEVELOPMENT)","Rural Development and Agricultural Economics","Agriculture and Food Science","COLLEGE OF AGRICULTURE, ANIMAL SCIENCES AND VETERINARY MEDICINE"]
[706,215010585,"IRABISHOHOJE","INNOCENT","M",0.63502961254762935,"Second Class Honours, Lower Division","(BSC WITH HONS IN RURAL DEVELOPMENT)","Rural Development and Agricultural Economics","Agriculture and Food Science","COLLEGE OF AGRICULTURE, ANIMAL SCIENCES AND VETERINARY MEDICINE"]
[707,216211867,"KUBWIMANA","DOMINIQUE","M",0.66780760656723104,"Second Class Honours, Lower Division","(BSC WITH HONS IN RURAL DEVELOPMENT)","Rural Development and Agricultural Economics","Agriculture and Food Science","COLLEGE OF AGRICULTURE, ANIMAL SCIENCES AND VETERINARY MEDICINE"]
[708,216078024,"KWIZERA","JOHN","M",0.63684903513865965,"Second Class Honours, Lower Division","(BSC WITH HONS IN RURAL DEVELOPMENT)","Rural Development and Agricultural Economics","Agriculture and Food Science","COLLEGE OF AGRICULTURE, ANIMAL SCIENCES AND VETERINARY MEDICINE"]
[709,215012722,"KWIZERA","JEAN DAMASCENE","M",0.62812270681785765,"Second Class Honours, Lower Division","(BSC WITH HONS IN RURAL DEVELOPMENT)","Rural Development and Agricultural Economics","Agriculture and Food Science","COLLEGE OF AGRICULTURE, ANIMAL SCIENCES AND VETERINARY MEDICINE"]
[710,216138906,"MUGENI","ANGELIQUE","F",0.66705900172178401,"Second Class Honours, Lower Division","(BSC WITH HONS IN RURAL DEVELOPMENT)","Rural Development and Agricultural Economics","Agriculture and Food Science","COLLEGE OF AGRICULTURE, ANIMAL SCIENCES AND VETERINARY MEDICINE"]
[711,216075807,"MUKASHYAKA","ADELPHINE","F",0.69465511380076206,"Second Class Honours, Lower Division","(BSC WITH HONS IN RURAL DEVELOPMENT)","Rural Development and Agricultural Economics","Agriculture and Food Science","COLLEGE OF AGRICULTURE, ANIMAL SCIENCES AND VETERINARY MEDICINE"]
[712,216107385,"MUKESHIMANA","BEATHE","F",0.66086912382582463,"Second Class Honours, Lower Division","(BSC WITH HONS IN RURAL DEVELOPMENT)","Rural Development and Agricultural Economics","Agriculture and Food Science","COLLEGE OF AGRICULTURE, ANIMAL SCIENCES AND VETERINARY MEDICINE"]
[713,216277841,"MUNDERE","JEAN PIERRE","M",0.70760573827862361,"Second Class Honours, Upper Division","(BSC WITH HONS IN RURAL DEVELOPMENT)","Rural Development and Agricultural Economics","Agriculture and Food Science","COLLEGE OF AGRICULTURE, ANIMAL SCIENCES AND VETERINARY MEDICINE"]
[714,216136814,"MUTABARUKA","ALEX","M",0.65467201204230074,"Second Class Honours, Lower Division","(BSC WITH HONS IN RURAL DEVELOPMENT)","Rural Development and Agricultural Economics","Agriculture and Food Science","COLLEGE OF AGRICULTURE, ANIMAL SCIENCES AND VETERINARY MEDICINE"]
[715,216232066,"MUTAMULIZA","CHRISTA BENITHA","F",0.66727976893453145,"Second Class Honours, Lower Division","(BSC WITH HONS IN RURAL DEVELOPMENT)","Rural Development and Agricultural Economics","Agriculture and Food Science","COLLEGE OF AGRICULTURE, ANIMAL SCIENCES AND VETERINARY MEDICINE"]
[716,215042888,"NDINDABO TUYISENGE","HELENE","F",0.72671678591804723,"Second Class Honours, Upper Division","(BSC WITH HONS IN RURAL DEVELOPMENT)","Rural Development and Agricultural Economics","Agriculture and Food Science","COLLEGE OF AGRICULTURE, ANIMAL SCIENCES AND VETERINARY MEDICINE"]
[717,216298350,"NSENGIYUMVA","AMINADAB","M",0.65421891232145402,"Second Class Honours, Lower Division","(BSC WITH HONS IN RURAL DEVELOPMENT)","Rural Development and Agricultural Economics","Agriculture and Food Science","COLLEGE OF AGRICULTURE, ANIMAL SCIENCES AND VETERINARY MEDICINE"]
[718,215023217,"NSHUTI","ALICE","F",0.64500889575684783,"Second Class Honours, Lower Division","(BSC WITH HONS IN RURAL DEVELOPMENT)","Rural Development and Agricultural Economics","Agriculture and Food Science","COLLEGE OF AGRICULTURE, ANIMAL SCIENCES AND VETERINARY MEDICINE"]
[719,216183170,"NYIRANIZEYIMANA","YVETTE","F",0.64414882073068858,"Second Class Honours, Lower Division","(BSC WITH HONS IN RURAL DEVELOPMENT)","Rural Development and Agricultural Economics","Agriculture and Food Science","COLLEGE OF AGRICULTURE, ANIMAL SCIENCES AND VETERINARY MEDICINE"]
[720,216263662,"SINAYOBYE","EGIDE","M",0.70353295194286547,"Second Class Honours, Upper Division","(BSC WITH HONS IN RURAL DEVELOPMENT)","Rural Development and Agricultural Economics","Agriculture and Food Science","COLLEGE OF AGRICULTURE, ANIMAL SCIENCES AND VETERINARY MEDICINE"]
[721,216242355,"TUYISHIME","SAMUEL","M",0.6729865329482243,"Second Class Honours, Lower Division","(BSC WITH HONS IN RURAL DEVELOPMENT)","Rural Development and Agricultural Economics","Agriculture and Food Science","COLLEGE OF AGRICULTURE, ANIMAL SCIENCES AND VETERINARY MEDICINE"]
[722,216246709,"TWAGIRUMUKIZA","JEREMIE","M",0.68914400253682984,"Second Class Honours, Lower Division","(BSC WITH HONS IN RURAL DEVELOPMENT)","Rural Development and Agricultural Economics","Agriculture and Food Science","COLLEGE OF AGRICULTURE, ANIMAL SCIENCES AND VETERINARY MEDICINE"]
[723,216075203,"UWITONZE","MARIE GORETTI","F",0.64484509806019108,"Second Class Honours, Lower Division","(BSC WITH HONS IN RURAL DEVELOPMENT)","Rural Development and Agricultural Economics","Agriculture and Food Science","COLLEGE OF AGRICULTURE, ANIMAL SCIENCES AND VETERINARY MEDICINE"]
[724,215040029,"KABAGAMBE","GEOFREY","M",62.991666666666667,"SECOND CLASS HONOURS, LOWER DIVISION","(BSC WITH HONS IN RURAL DEVELOPMENT)","VETERINARY MEDICINE","VETERINARY MEDICINE","COLLEGE OF AGRICULTURE, ANIMAL SCIENCES AND VETERINARY MEDICINE"]
[725,216318297,"ABAYISENGA","ANNE MARIE","F",0.65420106922398591,"Second Class Honours, Lower Division","(BSC WITH HONS IN SOIL SCIENCES)","SOIL SCIENCES","Agriculture and Food Science","COLLEGE OF AGRICULTURE, ANIMAL SCIENCES AND VETERINARY MEDICINE"]
[726,216070643,"BANANIZA","THEOGENE","M",0.66333019179894182,"Second Class Honours, Lower Division","(BSC WITH HONS IN SOIL SCIENCES)","SOIL SCIENCES","Agriculture and Food Science","COLLEGE OF AGRICULTURE, ANIMAL SCIENCES AND VETERINARY MEDICINE"]
[727,216129249,"BENIMANA","MAURICE","M",0.66792486221340386,"Second Class Honours, Lower Division","(BSC WITH HONS IN SOIL SCIENCES)","SOIL SCIENCES","Agriculture and Food Science","COLLEGE OF AGRICULTURE, ANIMAL SCIENCES AND VETERINARY MEDICINE"]
[728,216109809,"BIGARUKA","FRANCOIS","M",0.65399032738095242,"Second Class Honours, Lower Division","(BSC WITH HONS IN SOIL SCIENCES)","SOIL SCIENCES","Agriculture and Food Science","COLLEGE OF AGRICULTURE, ANIMAL SCIENCES AND VETERINARY MEDICINE"]
[729,216156173,"BIMENYIMANA","ISAAC","M",0.74758748346560855,"Second Class Honours, Upper Division","(BSC WITH HONS IN SOIL SCIENCES)","SOIL SCIENCES","Agriculture and Food Science","COLLEGE OF AGRICULTURE, ANIMAL SCIENCES AND VETERINARY MEDICINE"]
[730,216079608,"DUKUNDANE","JEAN BAPTISTE","M",0.65990601631393286,"Second Class Honours, Lower Division","(BSC WITH HONS IN SOIL SCIENCES)","SOIL SCIENCES","Agriculture and Food Science","COLLEGE OF AGRICULTURE, ANIMAL SCIENCES AND VETERINARY MEDICINE"]
[731,216083516,"DUSABIMANA","JEAN CLAUDE","M",0.71480955687830683,"Second Class Honours, Lower Division","(BSC WITH HONS IN SOIL SCIENCES)","SOIL SCIENCES","Agriculture and Food Science","COLLEGE OF AGRICULTURE, ANIMAL SCIENCES AND VETERINARY MEDICINE"]
[732,216247861,"DUSENGE","ANNE VENESSA","F",0.70385734678130518,"Second Class Honours, Lower Division","(BSC WITH HONS IN SOIL SCIENCES)","SOIL SCIENCES","Agriculture and Food Science","COLLEGE OF AGRICULTURE, ANIMAL SCIENCES AND VETERINARY MEDICINE"]
[733,216143756,"DUSENGEYESU","ERIC","M",0.75125516424162242,"Second Class Honours, Upper Division","(BSC WITH HONS IN SOIL SCIENCES)","SOIL SCIENCES","Agriculture and Food Science","COLLEGE OF AGRICULTURE, ANIMAL SCIENCES AND VETERINARY MEDICINE"]
[734,216135583,"GATO","SAMSON","M",0.6405095679012347,"Second Class Honours, Lower Division","(BSC WITH HONS IN SOIL SCIENCES)","SOIL SCIENCES","Agriculture and Food Science","COLLEGE OF AGRICULTURE, ANIMAL SCIENCES AND VETERINARY MEDICINE"]
[735,216186498,"HAGENIMANA","LABAN","M",0.66487844466490298,"Second Class Honours, Lower Division","(BSC WITH HONS IN SOIL SCIENCES)","SOIL SCIENCES","Agriculture and Food Science","COLLEGE OF AGRICULTURE, ANIMAL SCIENCES AND VETERINARY MEDICINE"]
[736,216185696,"HAKUZIYAREMYE","CHRISTIAN","M",0.66576931768077596,"Second Class Honours, Lower Division","(BSC WITH HONS IN SOIL SCIENCES)","SOIL SCIENCES","Agriculture and Food Science","COLLEGE OF AGRICULTURE, ANIMAL SCIENCES AND VETERINARY MEDICINE"]
[737,216125219,"HARERIMANA","YVES","M",0.75398921406525576,"Second Class Honours, Upper Division","(BSC WITH HONS IN SOIL SCIENCES)","SOIL SCIENCES","Agriculture and Food Science","COLLEGE OF AGRICULTURE, ANIMAL SCIENCES AND VETERINARY MEDICINE"]
[738,216189632,"HATEGEKIMANA","THEONESTE","M",0.728321097883598,"Second Class Honours, Lower Division","(BSC WITH HONS IN SOIL SCIENCES)","SOIL SCIENCES","Agriculture and Food Science","COLLEGE OF AGRICULTURE, ANIMAL SCIENCES AND VETERINARY MEDICINE"]
[739,216103061,"IHUMURE","DESIRE","M",0.71648244047619047,"Second Class Honours, Lower Division","(BSC WITH HONS IN SOIL SCIENCES)","SOIL SCIENCES","Agriculture and Food Science","COLLEGE OF AGRICULTURE, ANIMAL SCIENCES AND VETERINARY MEDICINE"]
[740,216085616,"INGABIRE","GISELE","F",0.71088663470017632,"Second Class Honours, Lower Division","(BSC WITH HONS IN SOIL SCIENCES)","SOIL SCIENCES","Agriculture and Food Science","COLLEGE OF AGRICULTURE, ANIMAL SCIENCES AND VETERINARY MEDICINE"]
[741,216148510,"INGABIRE","CLAUDINE","F",0.71173824404761898,"Second Class Honours, Lower Division","(BSC WITH HONS IN SOIL SCIENCES)","SOIL SCIENCES","Agriculture and Food Science","COLLEGE OF AGRICULTURE, ANIMAL SCIENCES AND VETERINARY MEDICINE"]
[742,216122198,"IRIBAGIZA","DELPHINE","F",0.70277418430335092,"Second Class Honours, Lower Division","(BSC WITH HONS IN SOIL SCIENCES)","SOIL SCIENCES","Agriculture and Food Science","COLLEGE OF AGRICULTURE, ANIMAL SCIENCES AND VETERINARY MEDICINE"]
[743,216166772,"IRIBAGIZA","DATIVE","F",0.6885523644179895,"Second Class Honours, Lower Division","(BSC WITH HONS IN SOIL SCIENCES)","SOIL SCIENCES","Agriculture and Food Science","COLLEGE OF AGRICULTURE, ANIMAL SCIENCES AND VETERINARY MEDICINE"]
[744,216115973,"KWIZERA","ENOCK","M",0.71041683752204587,"Second Class Honours, Upper Division","(BSC WITH HONS IN SOIL SCIENCES)","SOIL SCIENCES","Agriculture and Food Science","COLLEGE OF AGRICULTURE, ANIMAL SCIENCES AND VETERINARY MEDICINE"]
[745,216236479,"KWIZERA","CLAUDINE","F",0.72937643849206357,"Second Class Honours, Upper Division","(BSC WITH HONS IN SOIL SCIENCES)","SOIL SCIENCES","Agriculture and Food Science","COLLEGE OF AGRICULTURE, ANIMAL SCIENCES AND VETERINARY MEDICINE"]
[746,215042975,"MAZIMPAKA","EMMANUEL","M",0.69677940365961211,"Second Class Honours, Lower Division","(BSC WITH HONS IN SOIL SCIENCES)","SOIL SCIENCES","Agriculture and Food Science","COLLEGE OF AGRICULTURE, ANIMAL SCIENCES AND VETERINARY MEDICINE"]
[747,216144159,"MIZERO","FLORENTINE","F",0.69617905092592591,"Second Class Honours, Lower Division","(BSC WITH HONS IN SOIL SCIENCES)","SOIL SCIENCES","Agriculture and Food Science","COLLEGE OF AGRICULTURE, ANIMAL SCIENCES AND VETERINARY MEDICINE"]
[748,216171490,"MPOREBUCYE","BELTRAND","M",0.67183815035273364,"Second Class Honours, Lower Division","(BSC WITH HONS IN SOIL SCIENCES)","SOIL SCIENCES","Agriculture and Food Science","COLLEGE OF AGRICULTURE, ANIMAL SCIENCES AND VETERINARY MEDICINE"]
[749,216087600,"MUCUZI","JEAN PIERRE","M",0.69775699955908277,"Second Class Honours, Lower Division","(BSC WITH HONS IN SOIL SCIENCES)","SOIL SCIENCES","Agriculture and Food Science","COLLEGE OF AGRICULTURE, ANIMAL SCIENCES AND VETERINARY MEDICINE"]
[750,216110750,"MUGIRANEZA","CONSTANTIN","M",0.72725869157848322,"Second Class Honours, Upper Division","(BSC WITH HONS IN SOIL SCIENCES)","SOIL SCIENCES","Agriculture and Food Science","COLLEGE OF AGRICULTURE, ANIMAL SCIENCES AND VETERINARY MEDICINE"]
[751,216126819,"MUGWANEZA","ALINE","F",0.66038395061728405,"Second Class Honours, Lower Division","(BSC WITH HONS IN SOIL SCIENCES)","SOIL SCIENCES","Agriculture and Food Science","COLLEGE OF AGRICULTURE, ANIMAL SCIENCES AND VETERINARY MEDICINE"]
[752,216166950,"MUHAWENIMANA","JEAN PAUL","M",0.7111324680335096,"Second Class Honours, Lower Division","(BSC WITH HONS IN SOIL SCIENCES)","SOIL SCIENCES","Agriculture and Food Science","COLLEGE OF AGRICULTURE, ANIMAL SCIENCES AND VETERINARY MEDICINE"]
[753,216199387,"MUHIRE","OBED","M",0.68707094356261023,"Second Class Honours, Lower Division","(BSC WITH HONS IN SOIL SCIENCES)","SOIL SCIENCES","Agriculture and Food Science","COLLEGE OF AGRICULTURE, ANIMAL SCIENCES AND VETERINARY MEDICINE"]
[754,216231914,"MUKAMURENZI","JEANNETTE","F",0.70233158068783075,"Second Class Honours, Lower Division","(BSC WITH HONS IN SOIL SCIENCES)","SOIL SCIENCES","Agriculture and Food Science","COLLEGE OF AGRICULTURE, ANIMAL SCIENCES AND VETERINARY MEDICINE"]
[755,216142164,"MUKANSAGUYE","VESTINE","F",0.67135183531746034,"Second Class Honours, Lower Division","(BSC WITH HONS IN SOIL SCIENCES)","SOIL SCIENCES","Agriculture and Food Science","COLLEGE OF AGRICULTURE, ANIMAL SCIENCES AND VETERINARY MEDICINE"]
[756,216080177,"MUKANSORO","GERMAINE","F",0.7076233355379189,"Second Class Honours, Lower Division","(BSC WITH HONS IN SOIL SCIENCES)","SOIL SCIENCES","Agriculture and Food Science","COLLEGE OF AGRICULTURE, ANIMAL SCIENCES AND VETERINARY MEDICINE"]
[757,216105471,"MUKESHIMANA","YVETTE","F",0.70334233355379183,"Second Class Honours, Lower Division","(BSC WITH HONS IN SOIL SCIENCES)","SOIL SCIENCES","Agriculture and Food Science","COLLEGE OF AGRICULTURE, ANIMAL SCIENCES AND VETERINARY MEDICINE"]
[758,216232538,"MUKESHIMANA","CHARLOTTE","F",0.69438764329806002,"Second Class Honours, Lower Division","(BSC WITH HONS IN SOIL SCIENCES)","SOIL SCIENCES","Agriculture and Food Science","COLLEGE OF AGRICULTURE, ANIMAL SCIENCES AND VETERINARY MEDICINE"]
[759,215011799,"MUSEMINARI"," JEAN IRENEE","M",0.6759044146825397,"Second Class Honours, Lower Division","(BSC WITH HONS IN SOIL SCIENCES)","SOIL SCIENCES","Agriculture and Food Science","COLLEGE OF AGRICULTURE, ANIMAL SCIENCES AND VETERINARY MEDICINE"]
[760,216153360,"MUTIMUTUJE","DIVINE","F",0.69808861882716056,"Second Class Honours, Lower Division","(BSC WITH HONS IN SOIL SCIENCES)","SOIL SCIENCES","Agriculture and Food Science","COLLEGE OF AGRICULTURE, ANIMAL SCIENCES AND VETERINARY MEDICINE"]
[761,216072522,"NAMBAJIMANA","JOSEPH","M",0.66928308531746028,"Second Class Honours, Lower Division","(BSC WITH HONS IN SOIL SCIENCES)","SOIL SCIENCES","Agriculture and Food Science","COLLEGE OF AGRICULTURE, ANIMAL SCIENCES AND VETERINARY MEDICINE"]
[762,216076102,"NDAGIWENIMANA","DAVID","M",0.72053226410934745,"Second Class Honours, Upper Division","(BSC WITH HONS IN SOIL SCIENCES)","SOIL SCIENCES","Agriculture and Food Science","COLLEGE OF AGRICULTURE, ANIMAL SCIENCES AND VETERINARY MEDICINE"]
[763,216117496,"NGABONZIMA","JEAN DE DIEU","M",0.68497976190476195,"Second Class Honours, Lower Division","(BSC WITH HONS IN SOIL SCIENCES)","SOIL SCIENCES","Agriculture and Food Science","COLLEGE OF AGRICULTURE, ANIMAL SCIENCES AND VETERINARY MEDICINE"]
[764,216194563,"NIKUZE","MARIE CHANTAL","F",0.69457280643738972,"Second Class Honours, Lower Division","(BSC WITH HONS IN SOIL SCIENCES)","SOIL SCIENCES","Agriculture and Food Science","COLLEGE OF AGRICULTURE, ANIMAL SCIENCES AND VETERINARY MEDICINE"]
[765,216134544,"NIRWORUKUNDO","SANDRINE","F",0.71312333553791885,"Second Class Honours, Upper Division","(BSC WITH HONS IN SOIL SCIENCES)","SOIL SCIENCES","Agriculture and Food Science","COLLEGE OF AGRICULTURE, ANIMAL SCIENCES AND VETERINARY MEDICINE"]
[766,216094496,"NIWEMUGENI","VALENTINE","F",0.68621883818342155,"Second Class Honours, Lower Division","(BSC WITH HONS IN SOIL SCIENCES)","SOIL SCIENCES","Agriculture and Food Science","COLLEGE OF AGRICULTURE, ANIMAL SCIENCES AND VETERINARY MEDICINE"]
[767,216076641,"NIYIBIZI","THEOPHILE","M",0.72508899911816582,"Second Class Honours, Upper Division","(BSC WITH HONS IN SOIL SCIENCES)","SOIL SCIENCES","Agriculture and Food Science","COLLEGE OF AGRICULTURE, ANIMAL SCIENCES AND VETERINARY MEDICINE"]
[768,216196736,"NIYIBIZI","RACHEL","F",0.70385063381834212,"Second Class Honours, Lower Division","(BSC WITH HONS IN SOIL SCIENCES)","SOIL SCIENCES","Agriculture and Food Science","COLLEGE OF AGRICULTURE, ANIMAL SCIENCES AND VETERINARY MEDICINE"]
[769,215008360,"NIYIGABA"," DOMINIQUE","M",0.65300405092592595,"Second Class Honours, Lower Division","(BSC WITH HONS IN SOIL SCIENCES)","SOIL SCIENCES","Agriculture and Food Science","COLLEGE OF AGRICULTURE, ANIMAL SCIENCES AND VETERINARY MEDICINE"]
[770,216218152,"NIYIGENA","HONORETTE","F",0.60702925154320975,"Second Class Honours, Lower Division","(BSC WITH HONS IN SOIL SCIENCES)","SOIL SCIENCES","Agriculture and Food Science","COLLEGE OF AGRICULTURE, ANIMAL SCIENCES AND VETERINARY MEDICINE"]
[771,216139430,"NIYOMURINZI","CLARISSE","F",0.72004827491181655,"Second Class Honours, Upper Division","(BSC WITH HONS IN SOIL SCIENCES)","SOIL SCIENCES","Agriculture and Food Science","COLLEGE OF AGRICULTURE, ANIMAL SCIENCES AND VETERINARY MEDICINE"]
[772,216085136,"NIYOMWUNGERI","MARIUS","M",0.71972030974426815,"Second Class Honours, Upper Division","(BSC WITH HONS IN SOIL SCIENCES)","SOIL SCIENCES","Agriculture and Food Science","COLLEGE OF AGRICULTURE, ANIMAL SCIENCES AND VETERINARY MEDICINE"]
[773,216198399,"NIYONIZEYE","YVONNE","F",0.69493085868606697,"Second Class Honours, Lower Division","(BSC WITH HONS IN SOIL SCIENCES)","SOIL SCIENCES","Agriculture and Food Science","COLLEGE OF AGRICULTURE, ANIMAL SCIENCES AND VETERINARY MEDICINE"]
[774,216120454,"NIYONSABA","ERIC","M",0.69580072200176357,"Second Class Honours, Lower Division","(BSC WITH HONS IN SOIL SCIENCES)","SOIL SCIENCES","Agriculture and Food Science","COLLEGE OF AGRICULTURE, ANIMAL SCIENCES AND VETERINARY MEDICINE"]
[775,216124891,"NIYONSENGA","JONAS","M",0.69736046626984138,"Second Class Honours, Lower Division","(BSC WITH HONS IN SOIL SCIENCES)","SOIL SCIENCES","Agriculture and Food Science","COLLEGE OF AGRICULTURE, ANIMAL SCIENCES AND VETERINARY MEDICINE"]
[776,216115167,"NIYOYITA","ERNESTE","M",0.70735830026455015,"Second Class Honours, Upper Division","(BSC WITH HONS IN SOIL SCIENCES)","SOIL SCIENCES","Agriculture and Food Science","COLLEGE OF AGRICULTURE, ANIMAL SCIENCES AND VETERINARY MEDICINE"]
[777,216132223,"NIZEYIMANA","JACQUES","M",0.63458564263668427,"Second Class Honours, Lower Division","(BSC WITH HONS IN SOIL SCIENCES)","SOIL SCIENCES","Agriculture and Food Science","COLLEGE OF AGRICULTURE, ANIMAL SCIENCES AND VETERINARY MEDICINE"]
[778,216102200,"NKURUNZIZA","ERIC","M",0.67272741402116398,"Second Class Honours, Lower Division","(BSC WITH HONS IN SOIL SCIENCES)","SOIL SCIENCES","Agriculture and Food Science","COLLEGE OF AGRICULTURE, ANIMAL SCIENCES AND VETERINARY MEDICINE"]
[779,215009070,"NSENGIMANA","ERIC","M",0.69801143628747797,"Second Class Honours, Lower Division","(BSC WITH HONS IN SOIL SCIENCES)","SOIL SCIENCES","Agriculture and Food Science","COLLEGE OF AGRICULTURE, ANIMAL SCIENCES AND VETERINARY MEDICINE"]
[780,216167205,"NSENGIMANA","PATRICK","M",0.6655302854938272,"Second Class Honours, Lower Division","(BSC WITH HONS IN SOIL SCIENCES)","SOIL SCIENCES","Agriculture and Food Science","COLLEGE OF AGRICULTURE, ANIMAL SCIENCES AND VETERINARY MEDICINE"]
[781,216271681,"NSENGIMANA","VIVENS","M",0.71703768738977058,"Second Class Honours, Lower Division","(BSC WITH HONS IN SOIL SCIENCES)","SOIL SCIENCES","Agriculture and Food Science","COLLEGE OF AGRICULTURE, ANIMAL SCIENCES AND VETERINARY MEDICINE"]
[782,216081572,"NSHIMYUMUREMYI","JEAN PAUL","M",0.69870706569664909,"Second Class Honours, Lower Division","(BSC WITH HONS IN SOIL SCIENCES)","SOIL SCIENCES","Agriculture and Food Science","COLLEGE OF AGRICULTURE, ANIMAL SCIENCES AND VETERINARY MEDICINE"]
[783,216244803,"NSHUNGUYINKA","GILBERT","M",0.66347927689594355,"Second Class Honours, Lower Division","(BSC WITH HONS IN SOIL SCIENCES)","SOIL SCIENCES","Agriculture and Food Science","COLLEGE OF AGRICULTURE, ANIMAL SCIENCES AND VETERINARY MEDICINE"]
[784,216078105,"NSHUTI","ELVAIN","M",0.65958897707231046,"Second Class Honours, Lower Division","(BSC WITH HONS IN SOIL SCIENCES)","SOIL SCIENCES","Agriculture and Food Science","COLLEGE OF AGRICULTURE, ANIMAL SCIENCES AND VETERINARY MEDICINE"]
[785,216162777,"NTAKIRUTIMANA","ALPHONSINE","F",0.68934404761904777,"Second Class Honours, Lower Division","(BSC WITH HONS IN SOIL SCIENCES)","SOIL SCIENCES","Agriculture and Food Science","COLLEGE OF AGRICULTURE, ANIMAL SCIENCES AND VETERINARY MEDICINE"]
[786,216195306,"NYANDWI","ANDRE","M",0.67554234457671958,"Second Class Honours, Lower Division","(BSC WITH HONS IN SOIL SCIENCES)","SOIL SCIENCES","Agriculture and Food Science","COLLEGE OF AGRICULTURE, ANIMAL SCIENCES AND VETERINARY MEDICINE"]
[787,216175461,"NYIRAHABAGUSENGA","ELINA","F",0.64860582010582002,"Second Class Honours, Lower Division","(BSC WITH HONS IN SOIL SCIENCES)","SOIL SCIENCES","Agriculture and Food Science","COLLEGE OF AGRICULTURE, ANIMAL SCIENCES AND VETERINARY MEDICINE"]
[788,216253349,"NYIRAMIRINDI","ANGELIQUE","F",0.70633581349206354,"Second Class Honours, Lower Division","(BSC WITH HONS IN SOIL SCIENCES)","SOIL SCIENCES","Agriculture and Food Science","COLLEGE OF AGRICULTURE, ANIMAL SCIENCES AND VETERINARY MEDICINE"]
[789,216093325,"NYIRANDAYAMBAJE","ODETTE","F",0.68927475749559075,"Second Class Honours, Lower Division","(BSC WITH HONS IN SOIL SCIENCES)","SOIL SCIENCES","Agriculture and Food Science","COLLEGE OF AGRICULTURE, ANIMAL SCIENCES AND VETERINARY MEDICINE"]
[790,216142083,"NYIRANSABIMANA","MARTHE","F",0.72338612764550281,"Second Class Honours, Lower Division","(BSC WITH HONS IN SOIL SCIENCES)","SOIL SCIENCES","Agriculture and Food Science","COLLEGE OF AGRICULTURE, ANIMAL SCIENCES AND VETERINARY MEDICINE"]
[791,216142091,"NYIRANZABONIMPA","SOLANGE","F",0.7005987985008818,"Second Class Honours, Lower Division","(BSC WITH HONS IN SOIL SCIENCES)","SOIL SCIENCES","Agriculture and Food Science","COLLEGE OF AGRICULTURE, ANIMAL SCIENCES AND VETERINARY MEDICINE"]
[792,216092264,"NZAYISENGA","PHILOMENE","F",0.73356214175485013,"Second Class Honours, Lower Division","(BSC WITH HONS IN SOIL SCIENCES)","SOIL SCIENCES","Agriculture and Food Science","COLLEGE OF AGRICULTURE, ANIMAL SCIENCES AND VETERINARY MEDICINE"]
[793,216144256,"NZAYISHIMIRA","VALENTINE","F",0.72896097332451504,"Second Class Honours, Lower Division","(BSC WITH HONS IN SOIL SCIENCES)","SOIL SCIENCES","Agriculture and Food Science","COLLEGE OF AGRICULTURE, ANIMAL SCIENCES AND VETERINARY MEDICINE"]
[794,216072808,"REME JABIRO","JEAN LUC","M",0.6951598930776014,"Second Class Honours, Lower Division","(BSC WITH HONS IN SOIL SCIENCES)","SOIL SCIENCES","Agriculture and Food Science","COLLEGE OF AGRICULTURE, ANIMAL SCIENCES AND VETERINARY MEDICINE"]
[795,216123275,"RUKUNDO","CHRISTIAN","M",0.65174490740740731,"Second Class Honours, Lower Division","(BSC WITH HONS IN SOIL SCIENCES)","SOIL SCIENCES","Agriculture and Food Science","COLLEGE OF AGRICULTURE, ANIMAL SCIENCES AND VETERINARY MEDICINE"]
[796,216154618,"SEBAKUNGU","PASCAL","M",0.66084186507936504,"Second Class Honours, Lower Division","(BSC WITH HONS IN SOIL SCIENCES)","SOIL SCIENCES","Agriculture and Food Science","COLLEGE OF AGRICULTURE, ANIMAL SCIENCES AND VETERINARY MEDICINE"]
[797,216188709,"SEBAZUNGU","JEAN  NEPOMUSCENE","M",0.68768336640211647,"Second Class Honours, Lower Division","(BSC WITH HONS IN SOIL SCIENCES)","SOIL SCIENCES","Agriculture and Food Science","COLLEGE OF AGRICULTURE, ANIMAL SCIENCES AND VETERINARY MEDICINE"]
[798,215043060,"SHUMBUSHO","OLIVIER","M",0.66856307870370368,"Second Class Honours, Lower Division","(BSC WITH HONS IN SOIL SCIENCES)","SOIL SCIENCES","Agriculture and Food Science","COLLEGE OF AGRICULTURE, ANIMAL SCIENCES AND VETERINARY MEDICINE"]
[799,216141176,"SIBOMANA","ALPHONSE","M",0.67341668871252214,"Second Class Honours, Lower Division","(BSC WITH HONS IN SOIL SCIENCES)","SOIL SCIENCES","Agriculture and Food Science","COLLEGE OF AGRICULTURE, ANIMAL SCIENCES AND VETERINARY MEDICINE"]
[800,216263417,"SIBOMANA","JEAN DAMASCENE","M",0.66108735119047624,"Second Class Honours, Lower Division","(BSC WITH HONS IN SOIL SCIENCES)","SOIL SCIENCES","Agriculture and Food Science","COLLEGE OF AGRICULTURE, ANIMAL SCIENCES AND VETERINARY MEDICINE"]
[801,216200814,"SINGURANAYO","JAPHET","M",0.71261450066137566,"Second Class Honours, Lower Division","(BSC WITH HONS IN SOIL SCIENCES)","SOIL SCIENCES","Agriculture and Food Science","COLLEGE OF AGRICULTURE, ANIMAL SCIENCES AND VETERINARY MEDICINE"]
[802,216122481,"TUMUKUNDE","NAOME","F",0.70336865630511458,"Second Class Honours, Lower Division","(BSC WITH HONS IN SOIL SCIENCES)","SOIL SCIENCES","Agriculture and Food Science","COLLEGE OF AGRICULTURE, ANIMAL SCIENCES AND VETERINARY MEDICINE"]
[803,216181364,"TUSHEMERIRWE","RUTH","F",0.68768714175485002,"Second Class Honours, Lower Division","(BSC WITH HONS IN SOIL SCIENCES)","SOIL SCIENCES","Agriculture and Food Science","COLLEGE OF AGRICULTURE, ANIMAL SCIENCES AND VETERINARY MEDICINE"]
[804,216195616,"TUYISENGE","DOLLARD","M",0.66237713844797186,"Second Class Honours, Lower Division","(BSC WITH HONS IN SOIL SCIENCES)","SOIL SCIENCES","Agriculture and Food Science","COLLEGE OF AGRICULTURE, ANIMAL SCIENCES AND VETERINARY MEDICINE"]
[805,216189268,"TUYIZERE","PATRICK","M",0.63324336419753091,"Second Class Honours, Lower Division","(BSC WITH HONS IN SOIL SCIENCES)","SOIL SCIENCES","Agriculture and Food Science","COLLEGE OF AGRICULTURE, ANIMAL SCIENCES AND VETERINARY MEDICINE"]
[806,216213290,"TWAGIRAYEZU","MICHEL","M",0.66712600859788351,"Second Class Honours, Lower Division","(BSC WITH HONS IN SOIL SCIENCES)","SOIL SCIENCES","Agriculture and Food Science","COLLEGE OF AGRICULTURE, ANIMAL SCIENCES AND VETERINARY MEDICINE"]
[807,216194342,"TWIZERIMANA","JEAN DE DIEU","M",0.66203580246913574,"Second Class Honours, Lower Division","(BSC WITH HONS IN SOIL SCIENCES)","SOIL SCIENCES","Agriculture and Food Science","COLLEGE OF AGRICULTURE, ANIMAL SCIENCES AND VETERINARY MEDICINE"]
[808,216113830,"UMUGWANEZA","CANDIDE","F",0.71367311507936504,"Second Class Honours, Upper Division","(BSC WITH HONS IN SOIL SCIENCES)","SOIL SCIENCES","Agriculture and Food Science","COLLEGE OF AGRICULTURE, ANIMAL SCIENCES AND VETERINARY MEDICINE"]
[809,216096251,"UMURUTASATE","ESPERANCE","F",0.6952142085537919,"Second Class Honours, Lower Division","(BSC WITH HONS IN SOIL SCIENCES)","SOIL SCIENCES","Agriculture and Food Science","COLLEGE OF AGRICULTURE, ANIMAL SCIENCES AND VETERINARY MEDICINE"]
[810,216077885,"UMUTONIWASE","MARIE ANGE","F",0.68757563932980603,"Second Class Honours, Lower Division","(BSC WITH HONS IN SOIL SCIENCES)","SOIL SCIENCES","Agriculture and Food Science","COLLEGE OF AGRICULTURE, ANIMAL SCIENCES AND VETERINARY MEDICINE"]
[811,216197953,"URINZWENIMANA","PAULINE","F",0.70926493606701935,"Second Class Honours, Upper Division","(BSC WITH HONS IN SOIL SCIENCES)","SOIL SCIENCES","Agriculture and Food Science","COLLEGE OF AGRICULTURE, ANIMAL SCIENCES AND VETERINARY MEDICINE"]
[812,216071496,"UWASE","SAFI","F",0.78107468033509686,"Second Class Honours, Upper Division","(BSC WITH HONS IN SOIL SCIENCES)","SOIL SCIENCES","Agriculture and Food Science","COLLEGE OF AGRICULTURE, ANIMAL SCIENCES AND VETERINARY MEDICINE"]
[813,216103681,"UWERA","CLEMENTINE","F",0.75658946759259249,"Second Class Honours, Lower Division","(BSC WITH HONS IN SOIL SCIENCES)","SOIL SCIENCES","Agriculture and Food Science","COLLEGE OF AGRICULTURE, ANIMAL SCIENCES AND VETERINARY MEDICINE"]
[814,216094542,"UWIDUHAYE","FAUTINE","F",0.67991435185185178,"Second Class Honours, Lower Division","(BSC WITH HONS IN SOIL SCIENCES)","SOIL SCIENCES","Agriculture and Food Science","COLLEGE OF AGRICULTURE, ANIMAL SCIENCES AND VETERINARY MEDICINE"]
[815,216160286,"UWIMANIMPAYE","ATHANASIE","F",0.70672362213403883,"Second Class Honours, Upper Division","(BSC WITH HONS IN SOIL SCIENCES)","SOIL SCIENCES","Agriculture and Food Science","COLLEGE OF AGRICULTURE, ANIMAL SCIENCES AND VETERINARY MEDICINE"]
[816,215008267,"UWINGENEYE","BERTHE","F",0.65609281856261026,"Second Class Honours, Lower Division","(BSC WITH HONS IN SOIL SCIENCES)","SOIL SCIENCES","Agriculture and Food Science","COLLEGE OF AGRICULTURE, ANIMAL SCIENCES AND VETERINARY MEDICINE"]
[817,216091446,"UWIRAGIYE","MARIE ALICE","F",0.68159028328924165,"Second Class Honours, Lower Division","(BSC WITH HONS IN SOIL SCIENCES)","SOIL SCIENCES","Agriculture and Food Science","COLLEGE OF AGRICULTURE, ANIMAL SCIENCES AND VETERINARY MEDICINE"]
[818,216141249,"UWIRINGIYIMANA","MARIE CHANTAL","F",0.69997263007054666,"Second Class Honours, Lower Division","(BSC WITH HONS IN SOIL SCIENCES)","SOIL SCIENCES","Agriculture and Food Science","COLLEGE OF AGRICULTURE, ANIMAL SCIENCES AND VETERINARY MEDICINE"]
[819,216175836,"UYISENGA","JACKSON","M",0.73998955026455027,"Second Class Honours, Lower Division","(BSC WITH HONS IN SOIL SCIENCES)","SOIL SCIENCES","Agriculture and Food Science","COLLEGE OF AGRICULTURE, ANIMAL SCIENCES AND VETERINARY MEDICINE"]
[820,216094038,"UZAMUKUNDA","VALENTINE","F",0.70804247685185184,"Second Class Honours, Lower Division","(BSC WITH HONS IN SOIL SCIENCES)","SOIL SCIENCES","Agriculture and Food Science","COLLEGE OF AGRICULTURE, ANIMAL SCIENCES AND VETERINARY MEDICINE"]
[821,216109396,"NSHIMIYIMANA","EZECHIEL","M",65.680480787843592,"SECOND CLASS HONOURS, LOWER DIVISION","(BSC WITH HONS IN AGRIBUSINESS)","Rural Development and Agricultural Economics","Agriculture and Food Science","COLLEGE OF AGRICULTURE, ANIMAL SCIENCES AND VETERINARY MEDICINE"]
[822,216099463,"NYIRINKINDI","INNOCENT","M",70.070578300425865,"SECOND CLASS HONOURS, LOWER DIVISION","(BSC WITH HONS IN AGRIBUSINESS)","Rural Development and Agricultural Economics","Agriculture and Food Science","COLLEGE OF AGRICULTURE, ANIMAL SCIENCES AND VETERINARY MEDICINE"]
[823,215013862,"NYIRANKUNZABO","CATHERINE","F",67.734679636082078,"SECOND CLASS HONOURS, LOWER DIVISION","(BSC WITH HONS IN AGRIBUSINESS)","Rural Development and Agricultural Economics","Agriculture and Food Science","COLLEGE OF AGRICULTURE, ANIMAL SCIENCES AND VETERINARY MEDICINE"]
[824,216070058,"MUTONI","GENTILLE","F",0.69896509616432378,"Second Class Honours, Lower Division","(BSC WITH HONS IN IRRIGATION AND DRAINAGE)","IRRIGATION AND DRAINAGE","AGRICULTURAL ENGINEERIN+J383:K384G","COLLEGE OF AGRICULTURE, ANIMAL SCIENCES AND VETERINARY MEDICINE"]
[825,216185904,"IMBABAZIZAYO","MARIE CLAIRE","F",66.726246128532708,"SECOND CLASS HONOURS, LOWER DIVISION","(BSC WITH HONS IN AGRIBUSINESS)","Rural Development and Agricultural Economics","Agriculture and Food Science","COLLEGE OF AGRICULTURE, ANIMAL SCIENCES AND VETERINARY MEDICINE"]
[826,215009267,"KWIZERA","EMMANUEL","M",68.124630758807584,"SECOND CLASS HONOURS, LOWER DIVISION","(BSC WITH HONS IN AGRIBUSINESS)","Rural Development and Agricultural Economics","Agriculture and Food Science","COLLEGE OF AGRICULTURE, ANIMAL SCIENCES AND VETERINARY MEDICINE"]
[827,216093139,"NIYOBUHUNGIRO","JULIENNE","F",0.73567554862900264,"Second Class Honours, Lower Division","(BSC WITH HONS IN AGRO-FORESTRY)","FORESTRY AND NATURE CONSERVATION","SCHOOL OF FORESTRY, CONSERVATION AND BIODIVERSITY ","COLLEGE OF AGRICULTURE, ANIMAL SCIENCES AND VETERINARY MEDICINE"]
[828,216100917,"MUNYANEZA","THADEE","M",0.71410934445671304,"Second Class Honours, Lower Division","(BSC WITH HONS IN AGRO-FORESTRY)","FORESTRY AND NATURE CONSERVATION","SCHOOL OF FORESTRY, CONSERVATION AND BIODIVERSITY ","COLLEGE OF AGRICULTURE, ANIMAL SCIENCES AND VETERINARY MEDICINE"]
[829,216204569,"UWINEZA","OLIVE","F",0.6753043829744817,"Second Class Honours, Lower Division","(BSC WITH HONS IN AGRO-FORESTRY)","FORESTRY AND NATURE CONSERVATION","SCHOOL OF FORESTRY, CONSERVATION AND BIODIVERSITY ","COLLEGE OF AGRICULTURE, ANIMAL SCIENCES AND VETERINARY MEDICINE"]
[830,216178177,"SEMPUNDU","ELYSEE","M",0.66439659226373027,"Second Class Honours, Lower Division","(BSC WITH HONS IN AGRO-FORESTRY)","FORESTRY AND NATURE CONSERVATION","SCHOOL OF FORESTRY, CONSERVATION AND BIODIVERSITY ","COLLEGE OF AGRICULTURE, ANIMAL SCIENCES AND VETERINARY MEDICINE"]
[831,216210674,"BIGENIMANA","FRANÇOIS XAVIER","M",62.21330616773799,"SECOND CLASS HONOURS, LOWER DIVISION","(BSC WITH HONS IN AGRO-FORESTRY)","FORESTRY AND NATURE CONSERVATION","SCHOOL OF FORESTRY, CONSERVATION AND BIODIVERSITY ","COLLEGE OF AGRICULTURE, ANIMAL SCIENCES AND VETERINARY MEDICINE"]
[832,216113059,"KWIHANGANA","CHRISTINE","F",0.64102304005387889,"Second Class Honours, Lower Division","(BSC WITH HONS IN FORESTRY)","FORESTRY AND NATURE CONSERVATION","SCHOOL OF FORESTRY, CONSERVATION AND BIODIVERSITY ","COLLEGE OF AGRICULTURE, ANIMAL SCIENCES AND VETERINARY MEDICINE"]
[833,215043299,"MUGENZI","VEDASTE","M",0.71098332106490003,"Second Class Honours, Lower Division","(BSC WITH HONS IN FORESTRY)","FORESTRY AND NATURE CONSERVATION","SCHOOL OF FORESTRY, CONSERVATION AND BIODIVERSITY ","COLLEGE OF AGRICULTURE, ANIMAL SCIENCES AND VETERINARY MEDICINE"]
[834,219070139,"UMUHOZA","CONSOLEE ","F",0.66451356735369882,"Second Class Honours, Lower Division","(BSC WITH HONS IN FORESTRY)","FORESTRY AND NATURE CONSERVATION","SCHOOL OF FORESTRY, CONSERVATION AND BIODIVERSITY ","COLLEGE OF AGRICULTURE, ANIMAL SCIENCES AND VETERINARY MEDICINE"]
[835,216101425,"BIKORIMANA","EMMANUEL","M",0.64507390810943432,"Second Class Honours, Lower Division","(BSC WITH HONS IN FORESTRY)","FORESTRY AND NATURE CONSERVATION","SCHOOL OF FORESTRY, CONSERVATION AND BIODIVERSITY ","COLLEGE OF AGRICULTURE, ANIMAL SCIENCES AND VETERINARY MEDICINE"]